Workbook

Sheet Notice
B2: DISCLAIMER
B4: 1. This workbook is the property of Fonterra Co-operative Group Limited (Fonterra).
B5: 2. The workbook contains the higher level inputs and calculations underpinning the calculation of the Farmgate Milk Price for the 2014/15 season.
B6: To protect the commercial confidentiality of certain information derived from Fonterra's actual performance data, a number of inputs have been aggregated for the purposes of this workbook.
B7: The workbook does not contain all the intermediate calculations required to calculate the Farmgate Milk Price. For example, the workbook does not contain the calculations required to convert contracted prices into 'shipment month' prices, or the
B8: 'tilted annuity' calculations used to calculate the WACC charge and depreciation inputs.
B9: 3. Fonterra does not warrant that the workbook is free from error, and explicitly disclaims any liability to any third party with respect to any use they may make of the workbook.
B10: 4. Third party recipients of this model use it entirely at their own risk and, in the absence of express written consent, no responsibility is taken or accepted for any loss which may result therefrom, including the direct or indirect consequences of computer viruses.
B11: 5. The model was not designed for use by third parties and the model may not be able to be readily operated in a correct manner by such parties.

Sheet Global
K1: F15 Milk Price | N1: =Summary!L104 -> 4.396283403
K2: Average FX conversion rate (Sales) | N2: =Summary!L20 -> 0.7881983631
F7: Period Ended | O7: =K34 -> 2015-05-31 | Q7: =EOMONTH(T7,-1) -> 2014-05-31 | R7: =EOMONTH(S7,-1) -> 2014-04-30 | S7: =EOMONTH(T7,-1) -> 2014-05-31 | T7: =K32 -> 2014-06-30 | U7: =EOMONTH(T7,1) -> 2014-07-31 | V7: 2014-08-31 | W7: 2014-09-30 | X7: 2014-10-31 | Y7: 2014-11-30 | Z7: 2014-12-31 | AA7: 2015-01-31 | AB7: 2015-02-28 | AC7: 2015-03-31 | AD7: 2015-04-30 | AE7: 2015-05-31 | AF7: 2015-06-30 | AG7: 2015-07-31 | AH7: 2015-08-31 | AI7: 2015-09-30 | AJ7: 2015-10-31 | AK7: 2015-11-30 | AL7: 2015-12-31 | AM7: 2016-01-31 | AN7: 2016-02-29 | AO7: 2016-03-31 | AP7: =EOMONTH(AO7,1) -> 2016-04-30 | AQ7: =EOMONTH(AP7,1) -> 2016-05-31 | AR7: =EOMONTH(AQ7,1) -> 2016-06-30
D8: Calendar Year | T8: =YEAR(T7) -> 2014 | U8: 2014 | V8: 2014 | W8: 2014 | X8: 2014 | Y8: 2014 | Z8: 2014 | AA8: 2015 | AB8: 2015 | AC8: 2015 | AD8: 2015 | AE8: 2015 | AF8: 2015 | AG8: 2015 | AH8: 2015 | AI8: 2015 | AJ8: 2015 | AK8: 2015 | AL8: 2015 | AM8: 2016 | AN8: 2016 | AO8: 2016
D9: Month Number | T9: 1 | U9: =T9+1 -> 2 | V9: 3 | W9: 4 | X9: 5 | Y9: 6 | Z9: 7 | AA9: 8 | AB9: 9 | AC9: 10 | AD9: 11 | AE9: 12 | AF9: 13 | AG9: 14 | AH9: 15 | AI9: 16 | AJ9: 17 | AK9: 18 | AL9: 19 | AM9: 20 | AN9: 21 | AO9: 22
D10: Days in Period | R10: =R7-EOMONTH(R7,-1) -> 30 | S10: =S7-R7 -> 31 | T10: =T7-S7 -> 30 | U10: =U7-T7 -> 31 | V10: 31 | W10: 30 | X10: 31 | Y10: 30 | Z10: 31 | AA10: 31 | AB10: 28 | AC10: 31 | AD10: 30 | AE10: 31 | AF10: 30 | AG10: 31 | AH10: 31 | AI10: 30 | AJ10: 31 | AK10: 30 | AL10: 31 | AM10: 31 | AN10: 29 | AO10: 31
D11: Year to Go flag | O11: =INDEX(LookupTables!E11:E28,LookupTables!I11) -> 2015-07-31 | P11: =LookupTables!I11 -> 14 | T11: =IF(T9<=$P$11,1,0) -> 1 | U11: 1 | V11: 1 | W11: 1 | X11: 1 | Y11: 1 | Z11: 1 | AA11: 1 | AB11: 1 | AC11: 1 | AD11: 1 | AE11: 1 | AF11: 1 | AG11: 1 | AH11: 0 | AI11: 0 | AJ11: 0 | AK11: 0 | AL11: 0 | AM11: 0 | AN11: 0 | AO11: 0
C13: GENERAL MODEL INPUTS
C15: MODEL INFORMATION
C17: This model contains circular logic relating to the calculation of tax expense and net working capital. It is therefore necessary to set the calculation approach to 'iterative calculations.'
C20: INPUT KEY
F22: Colour Key: | K22: Description
K23: General Input Cells
K24: Calculation cell with different logic to adjacent cells
K25: Normal general input cells where inputs have been 'bundled' into a higher level / different input for purposes of this simplified model.
K26: Additional input cells added for purpose of this public model
K27: Cells intentionally left blank in 'Calculations' Tab
C29: DATE AND TIME DATA
A31: 7 | F31: First Day of the season | K31: 2014-06-01
F32: End Date of First Period | K32: =EOMONTH(K31,0) -> 2014-06-30
F34: End of season | K34: =EOMONTH(K31,11) -> 2015-05-31
C36: GLOBAL TIME DEPENDENT INPUTS | R36: =R7 -> 2014-04-30 | S36: 2014-05-31 | T36: 2014-06-30 | U36: 2014-07-31 | V36: 2014-08-31 | W36: 2014-09-30 | X36: 2014-10-31 | Y36: 2014-11-30 | Z36: 2014-12-31 | AA36: 2015-01-31 | AB36: 2015-02-28 | AC36: 2015-03-31 | AD36: 2015-04-30 | AE36: 2015-05-31 | AF36: 2015-06-30 | AG36: 2015-07-31 | AH36: 2015-08-31 | AI36: 2015-09-30 | AJ36: 2015-10-31 | AK36: 2015-11-30 | AL36: 2015-12-31 | AM36: 2016-01-31 | AN36: 2016-02-29 | AO36: 2016-03-31
F38: WACC - Annual | O38: 0.061
F39: WACC - monthly | O39: =(1+$O$38)^(1/12)-1 -> 0.004946515449
C41: SUMMARY OF ERROR CHECKS
F43: Worksheet name:
F44: Data Input | K44: ='Data Input'!J4 -> Okay
F45: Calculations | K45: =Calculations!J5 -> Okay
F46: Summary | K46: =Summary!L141 -> Okay | L46: If the 'Summary' sheet error check returns 'error', press F9 for more iterations until the figure (right) is close to zero. | U46: =SUM(Summary!Q141:AJ141) -> 6.199980304e-05
F47: Overall model | K47: =IF(COUNTA(K44:K46)=COUNTIF(K44:K46,"Okay"),"Okay","Error") -> Okay
F49: Calculations Worksheet:
F50: Debtor Reconciliation Check | K50: =Calculations!B906 -> Okay
F51: Closing Inventory Check | K51: =Calculations!B976 -> Okay
F52: FIFO Production Volume Check | K52: =Calculations!B1010 -> Okay
F53: Milk Solids Volume Check | K53: =Calculations!B1029 -> Okay
F54: Milk Price Calculation Check | K54: =Calculations!B1253 -> Okay
F55: PV of Cash Flow Check | K55: =Calculations!B1267 -> Okay
F57: Summary Worksheet
F58: Operating Cash Flow Check | K58: =Summary!L141 -> Okay

Sheet Data Input
F4: =Calculations!F5 -> Overall error check | J4: =IF(COUNTA(B:B)=COUNTIF(B:B,"Okay"),"Okay","Error") -> Okay | M4: Annual | T4: Monthly
J6: Units | K6: Input | N6: =Global!O7 -> 2015-05-31 | Q6: Date | R6: =Global!R7 -> 2014-04-30 | S6: =Global!S7 -> 2014-05-31 | T6: =Global!T7 -> 2014-06-30 | U6: =Global!U7 -> 2014-07-31 | V6: =Global!V7 -> 2014-08-31 | W6: =Global!W7 -> 2014-09-30 | X6: =Global!X7 -> 2014-10-31 | Y6: =Global!Y7 -> 2014-11-30 | Z6: =Global!Z7 -> 2014-12-31 | AA6: =Global!AA7 -> 2015-01-31 | AB6: =Global!AB7 -> 2015-02-28 | AC6: =Global!AC7 -> 2015-03-31 | AD6: =Global!AD7 -> 2015-04-30 | AE6: =Global!AE7 -> 2015-05-31 | AF6: =Global!AF7 -> 2015-06-30 | AG6: =Global!AG7 -> 2015-07-31 | AH6: =Global!AH7 -> 2015-08-31 | AI6: =Global!AI7 -> 2015-09-30 | AJ6: =Global!AJ7 -> 2015-10-31 | AK6: =Global!AK7 -> 2015-11-30 | AL6: =Global!AL7 -> 2015-12-31 | AM6: =Global!AM7 -> 2016-01-31 | AN6: =Global!AN7 -> 2016-02-29 | AO6: =Global!AO7 -> 2016-03-31
D7: Calendar Year | T7: =YEAR(T6) -> 2014 | U7: 2014 | V7: 2014 | W7: 2014 | X7: 2014 | Y7: 2014 | Z7: 2014 | AA7: =YEAR(AA6) -> 2015 | AB7: 2015 | AC7: 2015 | AD7: 2015 | AE7: 2015 | AF7: 2015 | AG7: 2015 | AH7: 2015 | AI7: 2015 | AJ7: 2015 | AK7: 2015 | AL7: 2015 | AM7: 2016 | AN7: =YEAR(AN6) -> 2016 | AO7: =YEAR(AO6) -> 2016
D8: Month Number | T8: =Global!T9 -> 1 | U8: =Global!U9 -> 2 | V8: =Global!V9 -> 3 | W8: =Global!W9 -> 4 | X8: =Global!X9 -> 5 | Y8: =Global!Y9 -> 6 | Z8: =Global!Z9 -> 7 | AA8: =Global!AA9 -> 8 | AB8: =Global!AB9 -> 9 | AC8: =Global!AC9 -> 10 | AD8: =Global!AD9 -> 11 | AE8: =Global!AE9 -> 12 | AF8: =Global!AF9 -> 13 | AG8: =Global!AG9 -> 14 | AH8: =Global!AH9 -> 15 | AI8: =Global!AI9 -> 16 | AJ8: =Global!AJ9 -> 17 | AK8: =Global!AK9 -> 18 | AL8: =Global!AL9 -> 19 | AM8: =Global!AM9 -> 20 | AN8: =Global!AN9 -> 21 | AO8: =Global!AO9 -> 22
D9: Days in Period | R9: =Global!R10 -> 30 | S9: =Global!S10 -> 31 | T9: =Global!T10 -> 30 | U9: =Global!U10 -> 31 | V9: =Global!V10 -> 31 | W9: =Global!W10 -> 30 | X9: =Global!X10 -> 31 | Y9: =Global!Y10 -> 30 | Z9: =Global!Z10 -> 31 | AA9: =Global!AA10 -> 31 | AB9: =Global!AB10 -> 28 | AC9: =Global!AC10 -> 31 | AD9: =Global!AD10 -> 30 | AE9: =Global!AE10 -> 31 | AF9: =Global!AF10 -> 30 | AG9: =Global!AG10 -> 31 | AH9: =Global!AH10 -> 31 | AI9: =Global!AI10 -> 30 | AJ9: =Global!AJ10 -> 31 | AK9: =Global!AK10 -> 30 | AL9: =Global!AL10 -> 31 | AM9: =Global!AM10 -> 31 | AN9: =Global!AN10 -> 29 | AO9: =Global!AO10 -> 31
D10: Year to Go flag | N10: 1 | P10: =Global!P11 -> 14 | T10: =Global!T11 -> 1 | U10: =Global!U11 -> 1 | V10: =Global!V11 -> 1 | W10: =Global!W11 -> 1 | X10: =Global!X11 -> 1 | Y10: =Global!Y11 -> 1 | Z10: =Global!Z11 -> 1 | AA10: =Global!AA11 -> 1 | AB10: =Global!AB11 -> 1 | AC10: =Global!AC11 -> 1 | AD10: =Global!AD11 -> 1 | AE10: =Global!AE11 -> 1 | AF10: =Global!AF11 -> 1 | AG10: =Global!AG11 -> 1 | AH10: =Global!AH11 -> 0 | AI10: =Global!AI11 -> 0 | AJ10: =Global!AJ11 -> 0 | AK10: =Global!AK11 -> 0 | AL10: =Global!AL11 -> 0 | AM10: =Global!AM11 -> 0 | AN10: =Global!AN11 -> 0 | AO10: =Global!AO11 -> 0
Q11: updated | T11: =T6 -> 2014-06-30 | U11: 2014-07-31 | V11: 2014-08-31 | W11: 2014-09-30 | X11: 2014-10-31 | Y11: 2014-11-30 | Z11: 2014-12-31 | AA11: 2015-01-31 | AB11: 2015-02-28 | AC11: 2015-03-31 | AD11: 2015-04-30 | AE11: 2015-05-31 | AF11: 2015-06-30 | AG11: 2015-07-31 | AH11: 2015-08-31 | AI11: 2015-09-30 | AJ11: 2015-10-31 | AK11: 2015-11-30 | AL11: 2015-12-31 | AM11: 2016-01-31 | AN11: =AN6 -> 2016-02-29 | AO11: =AO6 -> 2016-03-31
F14: GLOBAL
F16: STATUS / DATA SOURCE | J16: Weighted average annual FX rate for revenue. Also used in this simplified model to translate costs. In practice, USD purchases have a different time profile, & therefore weighted average conversion rate, to sales.
J17: We have adjusted the USD cost inputs to correct for this difference (so reported NZD values reconcile to the actual F15 milk price calculation.)
F20: FX
F22: Weighted average annual FX rate | R22: 0.7881983631 | S22: 0.7881983631 | T22: 0.7881983631 | U22: 0.7881983631 | V22: 0.7881983631 | W22: 0.7881983631 | X22: 0.7881983631 | Y22: 0.7881983631 | Z22: 0.7881983631 | AA22: 0.7881983631 | AB22: 0.7881983631 | AC22: 0.7881983631 | AD22: 0.7881983631 | AE22: 0.7881983631 | AF22: 0.7881983631 | AG22: 0.7881983631 | AH22: 0.7881983631 | AI22: 0.7881983631 | AJ22: 0.7881983631 | AK22: 0.7881983631 | AL22: 0.7881983631 | AM22: 0.7881983631 | AN22: 0.7881983631
F24: MILK SUPPLY
F26: STATUS / DATA SOURCE | J26: The minor difference between 'milk paid for' and 'milk collected' reflects circumstances where Fonterra is unable to collect and process milk (eg due to adverse weather events) but is contractually obliged to pay for it.
J27: The calculation of the aggregate amount available to pay for milk is based on milk actually collected and therefore available for processing. The average milk price per kgMS is calculated based on all milk paid for by Fonterra.
F30: KGMS | O30: YTD | P30: YTG
F31: Milk Paid For | J31: 000 kgms | N31: =SUM(T31:AE31) -> 1614194.771 | O31: =SUMIF($T$10:$AE$10,1,T31:AE31) -> 1614194.771 | P31: =N31-O31 -> 0 | T31: 9271.0431 | U31: 14795.776 | V31: 103296.6697 | W31: 194871.7288 | X31: 232213.1511 | Y31: 216311.1982 | Z31: 201191.1397 | AA31: 178245.9355 | AB31: 141071.0985 | AC31: 139950.4369 | AD31: 116401.8232 | AE31: 66574.7702
F32: Milk Supply collected | J32: 000 kgms | N32: =SUM(T32:AE32) -> 1614125.28 | T32: 9271.0431 | U32: 14726.523 | V32: 103296.4319 | W32: 194871.7288 | X32: 232213.1511 | Y32: 216311.1982 | Z32: 201191.1397 | AA32: 178245.9355 | AB32: 141071.0985 | AC32: 139950.4369 | AD32: 116401.8232 | AE32: 66574.7702
F33: Monthly distribution | J33: % | N33: =SUM(T33:AE33) -> 1 | T33: =T32/$N$32 -> 0.005743694876 | U33: =U32/$N$32 -> 0.0091235316 | V33: 0.06399530022 | W33: 0.1207289987 | X33: 0.1438631524 | Y33: 0.134011406 | Z33: 0.1246440671 | AA33: 0.110428811 | AB33: 0.08739786201 | AC33: 0.08670357786 | AD33: 0.07211449113 | AE33: 0.04124510719
F36: PRODUCTION
F38: STATUS / DATA SOURCE | J38: Milk composition shown below is weighted average composition by quarter. In practice monthly average composition is used. The detail of the loss and composition assumptions reflects information that is confidential
J39: to Fonterra and is therefore not disclosed. We have left the relevant logic intact but have hardcoded the results of production volume calculations on the Calculations tab.
F40: National average composition
F41: Fat | J41: % w/w | T41: 0.04726501892 | U41: 0.04726501892 | V41: 0.04726501892 | W41: 0.0462265344 | X41: 0.0462265344 | Y41: 0.0462265344 | Z41: 0.04844723568 | AA41: 0.04844723568 | AB41: 0.04844723568 | AC41: 0.05577613469 | AD41: 0.05577613469 | AE41: 0.05577613469
F42: Protein | J42: % w/w | T42: 0.03762633233 | U42: 0.03762633233 | V42: 0.03762633233 | W42: 0.0362346889 | X42: 0.0362346889 | Y42: 0.0362346889 | Z42: 0.036870357 | AA42: 0.036870357 | AB42: 0.036870357 | AC42: 0.04169582511 | AD42: 0.04169582511 | AE42: 0.04169582511
F43: Lactose + Minerals | J43: % w/w | T43: 0.05424470434 | U43: 0.05424470434 | V43: 0.05424470434 | W43: 0.05485041294 | X43: 0.05485041294 | Y43: 0.05485041294 | Z43: 0.05363443196 | AA43: 0.05363443196 | AB43: 0.05363443196 | AC43: 0.05214662869 | AD43: 0.05214662869 | AE43: 0.05214662869
F45: Milk Composition Input Parameters
F46: Cream Fat Content | J46: % | N46: 0.42
F47: Skimmilk Fat Content | J47: % | N47: 0.0008
F48: Wholemilk Density | J48: % | N48: 1.032
F50: Lactose Standardising Inputs
F51: Lactose losses - WMP | J51: %
F52: Lactose losses - SMP | J52: %
F53: Lactose losses - BMP | J53: %
F54: Lactose content of lactose powder | J54: % | N54: 0.95
F56: Composition Target | L56: Fat | M56: Protein | N56: Moisture
F57: Butter | J57: %w/w
F58: AMF | J58: %w/w
F59: SMP | J59: %w/w
F60: BMP | J60: %w/w
F61: WMP | J61: %w/w
F63: Value Component Usage | L63: Fat | M63: Protein
F64: Butter | J64: kg/mt
F65: AMF | J65: kg/mt
F66: SMP | J66: kg/mt
F67: BMP | J67: kg/mt
F68: WMP | J68: kg/mt
F70: Product mix
F71: Annual average ratio of WMP MT to WMP + SMP | J71: % | N71: =SUMPRODUCT($T$33:$AE$33,T71:AE71) -> 0.7721960401 | T71: 0.7721960401 | U71: 0.7721960401 | V71: 0.7721960401 | W71: 0.7721960401 | X71: 0.7721960401 | Y71: 0.7721960401 | Z71: 0.7721960401 | AA71: 0.7721960401 | AB71: 0.7721960401 | AC71: 0.7721960401 | AD71: 0.7721960401 | AE71: 0.7721960401
F72: Annual average ratio of Butter MT to Butter + AMF | J72: % | N72: =SUMPRODUCT($T$33:$AE$33,T72:AE72) -> 0.6051158767 | T72: 0.6051158767 | U72: 0.6051158767 | V72: 0.6051158767 | W72: 0.6051158767 | X72: 0.6051158767 | Y72: 0.6051158767 | Z72: 0.6051158767 | AA72: 0.6051158767 | AB72: 0.6051158767 | AC72: 0.6051158767 | AD72: 0.6051158767 | AE72: 0.6051158767
F74: Fat : Protein Valued Component Ratio | N74: 0.43
F77: REVENUE
F79: STATUS / DATA SOURCE | J79: Prices and sales phasings entered as 3 month averages, consistent with F15 Milk Price Statement.
J80: Downgrade adjustments are normally calculated separately but have been included here in average prices.
J81: Lactose prices to model are for calculated prices of lactose in month of use, under the assumption lactose has been imported in prior months and stored for a period prior to usage.
E83: 1. Base Commodity Prices
F84: Full Year Commodity Prices - To Model
F85: Butter | J85: USD | N85: =SUM(T85:AO85)/COUNTIF(T85:AO85,"<>0") -> 3061.828448 | T85: 0 | U85: 0 | V85: 3213.00564 | W85: 3213.00564 | X85: 3213.00564 | Y85: 2807.987421 | Z85: 2807.987421 | AA85: 2807.987421 | AB85: 3216.509772 | AC85: 3216.509772 | AD85: 3216.509772 | AE85: 3338.300012 | AF85: 3338.300012 | AG85: 3338.300012 | AH85: 2733.339393 | AI85: 2733.339393 | AJ85: 2733.339393 | AK85: 0 | AL85: 0 | AM85: 0 | AN85: 0 | AO85: 0
F86: AMF | J86: USD | N86: =SUM(T86:AO86)/COUNTIF(T86:AO86,"<>0") -> 3566.778453 | T86: 0 | U86: 0 | V86: 3641.714543 | W86: 3641.714543 | X86: 3641.714543 | Y86: 3416.661264 | Z86: 3416.661264 | AA86: 3416.661264 | AB86: 3921.955168 | AC86: 3921.955168 | AD86: 3921.955168 | AE86: 3781.232456 | AF86: 3781.232456 | AG86: 3781.232456 | AH86: 3072.328836 | AI86: 3072.328836 | AJ86: 3072.328836 | AK86: 0 | AL86: 0 | AM86: 0 | AN86: 0 | AO86: 0
F87: SMP | J87: USD | N87: =SUM(T87:AO87)/COUNTIF(T87:AO87,"<>0") -> 2576.757305 | T87: 0 | U87: 0 | V87: 3217.125511 | W87: 3217.125511 | X87: 3217.125511 | Y87: 2760.743754 | Z87: 2760.743754 | AA87: 2760.743754 | AB87: 2486.476173 | AC87: 2486.476173 | AD87: 2486.476173 | AE87: 2481.744699 | AF87: 2481.744699 | AG87: 2481.744699 | AH87: 1937.696385 | AI87: 1937.696385 | AJ87: 1937.696385 | AK87: 0 | AL87: 0 | AM87: 0 | AN87: 0 | AO87: 0
F88: BMP | J88: USD | N88: =SUM(T88:AO88)/COUNTIF(T88:AO88,"<>0") -> 2832.246695 | T88: 0 | U88: 0 | V88: 4121.810002 | W88: 4121.810002 | X88: 4121.810002 | Y88: 3056.208028 | Z88: 3056.208028 | AA88: 3056.208028 | AB88: 2713.232595 | AC88: 2713.232595 | AD88: 2713.232595 | AE88: 2350.752936 | AF88: 2350.752936 | AG88: 2350.752936 | AH88: 1919.229916 | AI88: 1919.229916 | AJ88: 1919.229916 | AK88: 0 | AL88: 0 | AM88: 0 | AN88: 0 | AO88: 0
F89: WMP | J89: USD | N89: =SUM(T89:AO89)/COUNTIF(T89:AO89,"<>0") -> 2651.615126 | T89: 0 | U89: 0 | V89: 3130.172398 | W89: 3130.172398 | X89: 3130.172398 | Y89: 2693.657934 | Z89: 2693.657934 | AA89: 2693.657934 | AB89: 2422.787818 | AC89: 2422.787818 | AD89: 2422.787818 | AE89: 2592.895936 | AF89: 2592.895936 | AG89: 2592.895936 | AH89: 2418.561543 | AI89: 2418.561543 | AJ89: 2418.561543 | AK89: 0 | AL89: 0 | AM89: 0 | AN89: 0 | AO89: 0
F91: Lactose
F92: Fonterra Price | J92: USD | M92: 1
F93: Competitor Price | J93: USD | M93: 2 | N93: =SUMPRODUCT($T$93:$AE$93,Calculations!$T$216:$AE$216)/SUM(Calculations!$T$216:$AE$216) -> 1317.32886 | T93: 1470.572652 | U93: 1481.461698 | V93: 1498.476355 | W93: 1481.487398 | X93: 1436.783226 | Y93: 1380.258488 | Z93: 1360.604577 | AA93: 1313.250001 | AB93: 1281.183249 | AC93: 1231.879357 | AD93: 1126.498388 | AE93: 971.1503461
F94: Adjustment for diffence in average FX | J94: USD | N94: -31.36604643
F95: Lactose | J95: USD | M95: =IF(N92<N93,1,2) -> 1 | N95: =CHOOSE($M$95,N$92,N$93) -> 0 | T95: =T93+$N$94 -> 1439.206606 | U95: 1450.095651 | V95: 1467.110308 | W95: 1450.121351 | X95: 1405.417179 | Y95: 1348.892441 | Z95: 1329.238531 | AA95: 1281.883954 | AB95: 1249.817202 | AC95: 1200.513311 | AD95: 1095.132342 | AE95: 939.7842996
E97: 2. Sales Phasing
F98: To Model: Selected Full Year Percentage Sales Phasings Adjusted to Align to YTD Percentage Phasings
F99: Butter | J99: % | N99: =SUM(T99:AO99) -> 1 | T99: 0 | U99: 0 | V99: 0 | W99: 0.04699788937 | X99: 0.04699788937 | Y99: 0.1087560212 | Z99: 0.1087560212 | AA99: 0.1087560212 | AB99: 0.07833826418 | AC99: 0.07833826418 | AD99: 0.07833826418 | AE99: 0.06080796465 | AF99: 0.06080796465 | AG99: 0.06080796465 | AH99: 0.0540991571 | AI99: 0.0540991571 | AJ99: 0.0540991571 | AK99: 0 | AL99: 0 | AM99: 0 | AN99: 0 | AO99: 0
F100: AMF | J100: % | N100: =SUM(T100:AO100) -> 1 | T100: 0 | U100: 0 | V100: 0 | W100: 0.06167832456 | X100: 0.06167832456 | Y100: 0.09702562965 | Z100: 0.09702562965 | AA100: 0.09702562965 | AB100: 0.06750132743 | AC100: 0.06750132743 | AD100: 0.06750132743 | AE100: 0.0762277185 | AF100: 0.0762277185 | AG100: 0.0762277185 | AH100: 0.05145977471 | AI100: 0.05145977471 | AJ100: 0.05145977471 | AK100: 0 | AL100: 0 | AM100: 0 | AN100: 0 | AO100: 0
F101: SMP | J101: % | N101: =SUM(T101:AO101) -> 1 | T101: 0 | U101: 0 | V101: 0 | W101: 0.02957505832 | X101: 0.02957505832 | Y101: 0.1177244073 | Z101: 0.1177244073 | AA101: 0.1177244073 | AB101: 0.08466918782 | AC101: 0.08466918782 | AD101: 0.08466918782 | AE101: 0.06621914303 | AF101: 0.06621914303 | AG101: 0.06621914303 | AH101: 0.04500388966 | AI101: 0.04500388966 | AJ101: 0.04500388966 | AK101: 0 | AL101: 0 | AM101: 0 | AN101: 0 | AO101: 0
F102: BMP | J102: % | N102: =SUM(T102:AO102) -> 1 | T102: 0 | U102: 0 | V102: 0 | W102: 0.04189980485 | X102: 0.04189980485 | Y102: 0.0808492511 | Z102: 0.0808492511 | AA102: 0.0808492511 | AB102: 0.07130259969 | AC102: 0.07130259969 | AD102: 0.07130259969 | AE102: 0.08333435486 | AF102: 0.08333435486 | AG102: 0.08333435486 | AH102: 0.06991392445 | AI102: 0.06991392445 | AJ102: 0.06991392445 | AK102: 0 | AL102: 0 | AM102: 0 | AN102: 0 | AO102: 0
F103: WMP | J103: % | N103: =SUM(T103:AO103) -> 1 | T103: 0 | U103: 0 | V103: 0 | W103: 0.06325176179 | X103: 0.06325176179 | Y103: 0.1117392662 | Z103: 0.1117392662 | AA103: 0.1117392662 | AB103: 0.08642470626 | AC103: 0.08642470626 | AD103: 0.08642470626 | AE103: 0.07184392095 | AF103: 0.07184392095 | AG103: 0.07184392095 | AH103: 0.02115759867 | AI103: 0.02115759867 | AJ103: 0.02115759867 | AK103: 0 | AL103: 0 | AM103: 0 | AN103: 0 | AO103: 0
E105: 3. Edible, Stockfood and Placement Spec Downgrade
L107: Butter | M107: AMF | N107: SMP | O107: BMP | P107: WMP
F108: Placement Specs Downgrade Adjustment | J108: % of Loss in Price x % of Production
F109: Edible Downgrade Downgrade Adjustment | J109: % of Loss in Price x % of Production
F110: Stockfood Downgrade Downgrade Adjustment | J110: % of Loss in Price x % of Production
E112: 4. Trader's Commission
F114: USD fixed costs | J114: USD 000's
F115: NZD fixed costs | J115: NZD 000's | N115: 102599.5509
F116: Annual production sold on GDT | J116: % | N116: 0.9
F117: Sales support cost across all volume | J117: USD / MT
F119: GDT fees schedule thresholds
F120: Base level threshold (upper limit) | J120: MT | N120: 0
F121: 2nd level threshold (upper limit) | J121: MT | N121: 50000
F122: 3rd level threshold (upper limit) | J122: MT | N122: 250000
F124: Base level threshold | J124: USD / MT | N124: 0
F125: 2nd level threshold | J125: USD / MT | N125: 30
F126: 3rd level threshold | J126: USD / MT | N126: 20
F127: Commission costs beyond 3rd level threshold | J127: USD / MT | N127: 5
F129: Fixed commission phasing | J129: % | N129: =SUM(V129:AG129) -> 1 | V129: 0.08333333333 | W129: 0.08333333333 | X129: 0.08333333333 | Y129: 0.08333333333 | Z129: 0.08333333333 | AA129: 0.08333333333 | AB129: 0.08333333333 | AC129: 0.08333333333 | AD129: 0.08333333333 | AE129: 0.08333333333 | AF129: 0.08333333333 | AG129: 0.08333333333
F132: COLLECTION
F134: STATUS / DATA SOURCE
F137: By Product Diversion (Transport Cost) | J137: NZD '000
F138: Farm Milk Collection | J138: NZD '000 | N138: 367182.5224
F139: Total | J139: NZD '000 | N139: =SUM(N137:N138) -> 367182.5224
F141: Phasing | J141: NZD '000 | N141: =SUM(Q141:AO141) -> 1 | T141: 0.04133948466 | U141: 0.04624914536 | V141: 0.06282986389 | W141: 0.1024957554 | X141: 0.1336531502 | Y141: 0.1259140978 | Z141: 0.1101401768 | AA141: 0.1014414357 | AB141: 0.0767290354 | AC141: 0.07488876682 | AD141: 0.06680260318 | AE141: 0.0575164849
F143: OPEX
F145: STATUS / DATA SOURCE | J145: NOTE: (a) weighted average unit costs across all RCPs, given F15 actual product mix (b) average unit costs grossed up for weighted average rework volumes.
F149: Variable Costs
L150: Butter | M150: AMF | N150: SMP | O150: BMP | P150: WMP
F151: Production | J151: MT | L151: =Calculations!$N$185 -> 253099.5923 | M151: =Calculations!$N$186 -> 165166.73 | N151: =Calculations!$N$187 -> 589749.9347 | O151: =Calculations!$N$188 -> 63804.62069 | P151: =Calculations!$N$189 -> 1999098.543
F152: Rework | J152: MT
F153: Total Manufacuer | J153: MT
F154: Average Revenue per MT | J154: NZD '000s | L154: =Calculations!N353 -> 3840.013965 | M154: =Calculations!N354 -> 4538.147706 | N154: =Calculations!N355 -> 3237.16292 | O154: =Calculations!N356 -> 3371.362238 | P154: =Calculations!N357 -> 3348.73874
F155: Weights | J155: % | L155: =L151/SUM($L$151:$P$151) -> 0.08241818087 | M155: =M151/SUM($L$151:$P$151) -> 0.05378413021 | N155: =N151/SUM($L$151:$P$151) -> 0.1920434417 | O155: =O151/SUM($L$151:$P$151) -> 0.02077704164 | P155: =P151/SUM($L$151:$P$151) -> 0.6509772056
L156: Butter | M156: AMF | N156: SMP | O156: BMP | P156: WMP
F157: Rework - downgrade adjustment | J157: % of Production
F158: Packaging costs | J158: NZD / MT | L158: 167.287071 | M158: 167.287071 | N158: 167.287071 | O158: 167.287071 | P158: 167.287071
F159: Energy (Exclusive of ETS Costs) | J159: NZD / MT
F160: Water, cleaning / CIP, consumables, effluent, lab, carbon | J160: NZD / MT
F161: Cleaning & CIP | J161: NZD / MT
F162: Consumables | J162: NZD / MT
F163: Effluent | J163: NZD / MT
F164: Laboratory | J164: NZD / MT
F165: Carbon Credit Requirement | J165: MT CO2e / MT
F167: Fixed Manufacturing Costs
F168: Wages & ERE | J168: NZD '000s
F169: Repairs & Maintenance | J169: NZD '000s
F170: Energy | J170: NZD '000s
F171: Water (Fixed) | J171: NZD '000s
F172: Cleaning & CIP (Fixed) | J172: NZD '000s
F173: Consumables (Fixed) | J173: NZD '000s
F174: Effluent (Fixed) | J174: NZD '000s
F175: Laboratory (Fixed) | J175: NZD '000s
F176: Total | J176: NZD '000s | N176: =SUM(N168:N170) -> 0
F178: Site Overheads
F179: Staff Costs | J179: NZD '000s
F180: Other | J180: NZD '000s | N180: 387041.7228
F181: Total | J181: NZD '000s | N181: =SUM(ROpexOverheads) -> 
F183: Fixed Opex - Phasing | J183: % | N183: =SUM(T183:AE183) -> 1 | T183: 0.0953967276 | U183: 0.09545026095 | V183: 0.08759421194 | W183: 0.08041636686 | X183: 0.08181526152 | Y183: 0.07762094773 | Z183: 0.07879251644 | AA183: 0.07472657194 | AB183: 0.07246617621 | AC183: 0.07832896852 | AD183: 0.08200343218 | AE183: 0.0953885581
F185: Lactose CIF costs per MT | J185: USD | T185: 88.32491549 | U185: 88.32491549 | V185: 88.32491549 | W185: 88.32491549 | X185: 88.32491549 | Y185: 88.32491549 | Z185: 88.32491549 | AA185: 88.32491549 | AB185: 88.32491549 | AC185: 88.32491549 | AD185: 88.32491549 | AE185: 88.32491549
F187: NZUSSPOT Index | J187: NZD / MT CO2e | T187: 0.1447619048 | U187: 0.13 | V187: 0.13 | W187: 0.13 | X187: 0.1491304348 | Y187: 0.15 | Z187: 0.1313333333 | AA187: 6.2225 | AB187: 6.0365 | AC187: 6.461363636 | AD187: 6.561333333 | AE187: 5.883333333
F189: SUPPLY CHAIN
F191: STATUS / DATA SOURCE
F194: Inland Freight Costs per MT
F195: Butter | J195: NZD / MT
F196: Other (Excl Lactose) | J196: NZD / MT
F197: Lactose | J197: NZD / MT
F199: Variable Supply Chain Costs
F200: Kotahi Fees | J200: USD / MT
F201: Complaints | J201: NZD / MT | N201: 76.43748377
F202: Supply chain admin etc (excl depn & amortisation) | J202: NZD / MT
F203: Pallets & Recycling | J203: NZD / MT
F204: Port Costs | J204: NZD / MT
F205: Dry Storage Costs | J205: NZD / MT
F206: Cool Storage Costs (Butter) per month | J206: NZD / MT
F207: Cool Storage Costs (Inbound) | J207: NZD / MT
F208: Cool Storage Costs (Outbound) | J208: NZD / MT
F209: Cool Storage Write-off Costs | J209: NZD / MT
F211: Fixed Supply Chain Costs
F212: Group Supply Chain Overheads | J212: NZD '000
F214: Supply Chain - Phasing | J214: % | N214: =SUM(T214:AO214) -> 1 | T214: 0.07695353482 | U214: 0.06080168379 | V214: 0.07477710625 | W214: 0.08379381469 | X214: 0.08673651303 | Y214: 0.09083598335 | Z214: 0.08574060333 | AA214: 0.09658340316 | AB214: 0.0834235151 | AC214: 0.09403069183 | AD214: 0.08158029806 | AE214: 0.08474285258
F216: ADMINISTRATION
F218: STATUS / DATA SOURCE
F221: NZ Manufacturing Overhead | J221: NZD '000
F222: Corporate Overhead | J222: NZD '000
F223: Fms Overheads | J223: NZD '000
F224: Shareholder Relations | J224: NZD '000
F225: Admin costs to model | J225: NZD '000 | N225: 260645.4994
F227: Admin - Phasing | J227: % | N227: =SUM(T227:AO227) -> 1 | T227: 0.0693707596 | U227: 0.1615095108 | V227: 0.07561102156 | W227: 0.07714733952 | X227: 0.08590756115 | Y227: 0.07303073976 | Z227: 0.08179312858 | AA227: 0.07253666436 | AB227: 0.0669679519 | AC227: 0.07871872691 | AD227: 0.07675565193 | AE227: 0.08065094392
F229: FIXED ASSETS
F231: STATUS / DATA SOURCE | J231: Fonterra's actual accounting and tax depreciation for collection assets are used in the calculation. Bundled here into (a) other depreciation and (b) as an adjustment to tilted annuity depreciation : tax depreciation ratio.
F235: Capital Charge | J235: NZD '000 | N235: 393067.8407
F236: Net Depreciation | J236: NZD '000 | N236: 262527.4858
F237: Accounting Depreciation - collection assets | J237: NZD '000
F238: Tax Depreciation - collection assets | J238: NZD '000
F240: INCOME TAX
F242: STATUS / DATA SOURCE | J242: Tax depn as % accounting depn ratio actually set at 130% for F15 for assets other than collection assets. Adjusted here to generate correct average ratio when collection assets are included.
F246: Company Tax Rate | J246: % | N246: 0.28
F247: Tax depn as % of accounting depn | J247: % | N247: 1.2290538
F250: WORKING CAPITAL
F252: STATUS / DATA SOURCE | J252: Debtor days reset to weighted average across 5 RCPs. In practice debtor days are calculated by reference to sales included in Milk Price calcuatlion for each RCP.
J253: Creditor days normally set separately across lactose (which is paid for prior to month of utilisation, when cost is recognised in model) and other. Have been (a) set equal here and (b) used as balancing adjustment to align simplified capital charge to actual.
F255: Creditor days - Other | J255: Days | N255: -11.343002
F256: Creditor days - Lactose | J256: Days | N256: =N255 -> -11.343002
F257: Debtor Days
F258: Butter | J258: Days | N258: 29.12709303
F259: AMF | J259: Days | N259: 29.12709303
F260: SMP | J260: Days | N260: 29.12709303
F261: BMP | J261: Days | N261: 29.12709303
F262: WMP | J262: Days | N262: 29.12709303
F264: Supplier Payables - Advance Rate Schedule
F265: Advance rate | N265: 4.4 | U265: 5 | V265: 5 | W265: 5 | X265: 4.69 | Y265: 4.4 | Z265: 4.29 | AA265: 4.23 | AB265: 4.25 | AC265: 4.26 | AD265: 4.27 | AE265: 4.28 | AF265: 4.28 | AG265: 4.28 | AH265: 4.35 | AI265: 4.35 | AJ265: 4.4
F266: YTD advance rate / YTG % MP | J266: % | U266: =IF(T10=1,U265,MAX(U265/$N$265,IF(S10=1,T266/MilkPrice,T266))) -> 5 | V266: =IF(U10=1,V265,MAX(V265/$N$265,IF(T10=1,U266/MilkPrice,U266))) -> 5 | W266: =IF(V10=1,W265,MAX(W265/$N$265,IF(U10=1,V266/MilkPrice,V266))) -> 5 | X266: =IF(W10=1,X265,MAX(X265/$N$265,IF(V10=1,W266/MilkPrice,W266))) -> 4.69 | Y266: =IF(X10=1,Y265,MAX(Y265/$N$265,IF(W10=1,X266/MilkPrice,X266))) -> 4.4 | Z266: =IFERROR(IF(Y10=1,Z265,MAX(Z265/$N$265,IF(X10=1,Y266/MilkPrice,Y266))),1) -> 4.29 | AA266: =IF(Z10=1,AA265,MAX(AA265/$N$265,IF(Y10=1,Z266/MilkPrice,Z266))) -> 4.23 | AB266: =IF(AA10=1,AB265,MAX(AB265/$N$265,IF(Z10=1,AA266/MilkPrice,AA266))) -> 4.25 | AC266: =IFERROR(IF(AB10=1,AC265,MAX(AC265/$N$265,IF(AA10=1,AB266/MilkPrice,AB266))),1) -> 4.26 | AD266: =IF(AC10=1,AD265,MAX(AD265/$N$265,IF(AB10=1,AC266/MilkPrice,AC266))) -> 4.27 | AE266: 4.28 | AF266: 4.28 | AG266: 4.28 | AH266: 4.35 | AI266: 0.989472152 | AJ266: 1

Sheet Calculations
F5: Overall error check | J5: =IF(COUNTA(B:B)=COUNTIF(B:B,"Okay"),"Okay","Error") -> Okay | N5: Annual | T5: Monthly
J9: Units | K9: Cross Reference | N9: =Global!O7 -> 2015-05-31 | R9: =Global!R7 -> 2014-04-30 | S9: =Global!S7 -> 2014-05-31 | T9: =Global!T7 -> 2014-06-30 | U9: =Global!U7 -> 2014-07-31 | V9: =Global!V7 -> 2014-08-31 | W9: =Global!W7 -> 2014-09-30 | X9: =Global!X7 -> 2014-10-31 | Y9: =Global!Y7 -> 2014-11-30 | Z9: =Global!Z7 -> 2014-12-31 | AA9: =Global!AA7 -> 2015-01-31 | AB9: =Global!AB7 -> 2015-02-28 | AC9: =Global!AC7 -> 2015-03-31 | AD9: =Global!AD7 -> 2015-04-30 | AE9: =Global!AE7 -> 2015-05-31 | AF9: =Global!AF7 -> 2015-06-30 | AG9: =Global!AG7 -> 2015-07-31 | AH9: =Global!AH7 -> 2015-08-31 | AI9: =Global!AI7 -> 2015-09-30 | AJ9: =Global!AJ7 -> 2015-10-31 | AK9: =Global!AK7 -> 2015-11-30 | AL9: =Global!AL7 -> 2015-12-31 | AM9: =Global!AM7 -> 2016-01-31 | AN9: =Global!AN7 -> 2016-02-29 | AO9: =Global!AO7 -> 2016-03-31 | AP9: =Global!AP7 -> 2016-04-30 | AQ9: =Global!AQ7 -> 2016-05-31
D10: Calendar Year | T10: =YEAR(T9) -> 2014 | U10: =YEAR(U9) -> 2014 | V10: 2014 | W10: 2014 | X10: 2014 | Y10: 2014 | Z10: 2014 | AA10: 2015 | AB10: 2015 | AC10: 2015 | AD10: 2015 | AE10: 2015 | AF10: 2015 | AG10: 2015 | AH10: 2015 | AI10: 2015 | AJ10: 2015 | AK10: 2015 | AL10: 2015 | AM10: =YEAR(AM9) -> 2016 | AN10: =YEAR(AN9) -> 2016 | AO10: =YEAR(AO9) -> 2016 | AP10: =YEAR(AP9) -> 2016
D11: Month Number | T11: 1 | U11: =T11+1 -> 2 | V11: =U11+1 -> 3 | W11: =V11+1 -> 4 | X11: 5 | Y11: 6 | Z11: 7 | AA11: 8 | AB11: 9 | AC11: 10 | AD11: 11 | AE11: 12 | AF11: 13 | AG11: 14 | AH11: 15 | AI11: 16 | AJ11: 17 | AK11: 18 | AL11: 19 | AM11: =AL11+1 -> 20 | AN11: =AM11+1 -> 21 | AO11: =AN11+1 -> 22 | AP11: =AO11+1 -> 23
D12: Days in Period | R12: =Global!R10 -> 30 | S12: =Global!S10 -> 31 | T12: =Global!T10 -> 30 | U12: =U9-T9 -> 31 | V12: =V9-U9 -> 31 | W12: 30 | X12: 31 | Y12: 30 | Z12: 31 | AA12: 31 | AB12: 28 | AC12: 31 | AD12: 30 | AE12: 31 | AF12: 30 | AG12: 31 | AH12: 31 | AI12: 30 | AJ12: 31 | AK12: 30 | AL12: 31 | AM12: 31 | AN12: 29 | AO12: 31 | AP12: 30
D13: Year to Go flag | N13: 1 | P13: =Global!P11 -> 14 | T13: =Global!T11 -> 1 | U13: =Global!U11 -> 1 | V13: =Global!V11 -> 1 | W13: =Global!W11 -> 1 | X13: =Global!X11 -> 1 | Y13: =Global!Y11 -> 1 | Z13: =Global!Z11 -> 1 | AA13: =Global!AA11 -> 1 | AB13: =Global!AB11 -> 1 | AC13: =Global!AC11 -> 1 | AD13: =Global!AD11 -> 1 | AE13: =Global!AE11 -> 1 | AF13: =Global!AF11 -> 1 | AG13: =Global!AG11 -> 1 | AH13: =Global!AH11 -> 0 | AI13: =Global!AI11 -> 0 | AJ13: =Global!AJ11 -> 0 | AK13: =Global!AK11 -> 0 | AL13: =Global!AL11 -> 0 | AM13: =Global!AM11 -> 0 | AN13: =Global!AN11 -> 0 | AO13: =Global!AO11 -> 0
D14: PRODUCTION
D16: COMMENT | F16: See comments below. Production volumes to model have been hardcoded to align to actual volumes. Detail of loss / specification offsets, which is confidential to Fonterra, is required to
F17: flow milk supply through yield logic. Logic has however been retained in the model, and we have disclosed overall valued component usages by RCP (in cells O59:P63).
D20: DATA INPUT
F21: Milk Collected | J21: ='Data Input'!J32 -> 000 kgms | N21: ='Data Input'!N32 -> 1614125.28 | T21: ='Data Input'!T32 -> 9271.0431 | U21: ='Data Input'!U32 -> 14726.523 | V21: ='Data Input'!V32 -> 103296.4319 | W21: ='Data Input'!W32 -> 194871.7288 | X21: ='Data Input'!X32 -> 232213.1511 | Y21: ='Data Input'!Y32 -> 216311.1982 | Z21: ='Data Input'!Z32 -> 201191.1397 | AA21: ='Data Input'!AA32 -> 178245.9355 | AB21: ='Data Input'!AB32 -> 141071.0985 | AC21: ='Data Input'!AC32 -> 139950.4369 | AD21: ='Data Input'!AD32 -> 116401.8232 | AE21: ='Data Input'!AE32 -> 66574.7702
F22: Milk Supply - Phasing | J22: ='Data Input'!J33 -> % | N22: =SUM(T22:AE22) -> 1 | T22: ='Data Input'!T33 -> 0.005743694876 | U22: ='Data Input'!U33 -> 0.0091235316 | V22: ='Data Input'!V33 -> 0.06399530022 | W22: ='Data Input'!W33 -> 0.1207289987 | X22: ='Data Input'!X33 -> 0.1438631524 | Y22: ='Data Input'!Y33 -> 0.134011406 | Z22: ='Data Input'!Z33 -> 0.1246440671 | AA22: ='Data Input'!AA33 -> 0.110428811 | AB22: ='Data Input'!AB33 -> 0.08739786201 | AC22: ='Data Input'!AC33 -> 0.08670357786 | AD22: ='Data Input'!AD33 -> 0.07211449113 | AE22: ='Data Input'!AE33 -> 0.04124510719
F24: ='Data Input'!F40 -> National average composition
F25: ='Data Input'!F41 -> Fat | J25: ='Data Input'!J41 -> % w/w | T25: ='Data Input'!T41 -> 0.04726501892 | U25: ='Data Input'!U41 -> 0.04726501892 | V25: ='Data Input'!V41 -> 0.04726501892 | W25: ='Data Input'!W41 -> 0.0462265344 | X25: ='Data Input'!X41 -> 0.0462265344 | Y25: ='Data Input'!Y41 -> 0.0462265344 | Z25: ='Data Input'!Z41 -> 0.04844723568 | AA25: ='Data Input'!AA41 -> 0.04844723568 | AB25: ='Data Input'!AB41 -> 0.04844723568 | AC25: ='Data Input'!AC41 -> 0.05577613469 | AD25: ='Data Input'!AD41 -> 0.05577613469 | AE25: ='Data Input'!AE41 -> 0.05577613469
F26: ='Data Input'!F42 -> Protein | J26: ='Data Input'!J42 -> % w/w | T26: ='Data Input'!T42 -> 0.03762633233 | U26: ='Data Input'!U42 -> 0.03762633233 | V26: ='Data Input'!V42 -> 0.03762633233 | W26: ='Data Input'!W42 -> 0.0362346889 | X26: ='Data Input'!X42 -> 0.0362346889 | Y26: ='Data Input'!Y42 -> 0.0362346889 | Z26: ='Data Input'!Z42 -> 0.036870357 | AA26: ='Data Input'!AA42 -> 0.036870357 | AB26: ='Data Input'!AB42 -> 0.036870357 | AC26: ='Data Input'!AC42 -> 0.04169582511 | AD26: ='Data Input'!AD42 -> 0.04169582511 | AE26: ='Data Input'!AE42 -> 0.04169582511
F27: ='Data Input'!F43 -> Lactose + Minerals | J27: ='Data Input'!J43 -> % w/w | T27: ='Data Input'!T43 -> 0.05424470434 | U27: ='Data Input'!U43 -> 0.05424470434 | V27: ='Data Input'!V43 -> 0.05424470434 | W27: ='Data Input'!W43 -> 0.05485041294 | X27: ='Data Input'!X43 -> 0.05485041294 | Y27: ='Data Input'!Y43 -> 0.05485041294 | Z27: ='Data Input'!Z43 -> 0.05363443196 | AA27: ='Data Input'!AA43 -> 0.05363443196 | AB27: ='Data Input'!AB43 -> 0.05363443196 | AC27: ='Data Input'!AC43 -> 0.05214662869 | AD27: ='Data Input'!AD43 -> 0.05214662869 | AE27: ='Data Input'!AE43 -> 0.05214662869
F29: ='Data Input'!F70 -> Product mix
F30: ='Data Input'!F71 -> Annual average ratio of WMP MT to WMP + SMP | J30: ='Data Input'!J71 -> % | T30: ='Data Input'!T71 -> 0.7721960401 | U30: ='Data Input'!U71 -> 0.7721960401 | V30: ='Data Input'!V71 -> 0.7721960401 | W30: ='Data Input'!W71 -> 0.7721960401 | X30: ='Data Input'!X71 -> 0.7721960401 | Y30: ='Data Input'!Y71 -> 0.7721960401 | Z30: ='Data Input'!Z71 -> 0.7721960401 | AA30: ='Data Input'!AA71 -> 0.7721960401 | AB30: ='Data Input'!AB71 -> 0.7721960401 | AC30: ='Data Input'!AC71 -> 0.7721960401 | AD30: ='Data Input'!AD71 -> 0.7721960401 | AE30: ='Data Input'!AE71 -> 0.7721960401
F31: ='Data Input'!F72 -> Annual average ratio of Butter MT to Butter + AMF | J31: ='Data Input'!J72 -> % | T31: ='Data Input'!T72 -> 0.6051158767 | U31: ='Data Input'!U72 -> 0.6051158767 | V31: ='Data Input'!V72 -> 0.6051158767 | W31: ='Data Input'!W72 -> 0.6051158767 | X31: ='Data Input'!X72 -> 0.6051158767 | Y31: ='Data Input'!Y72 -> 0.6051158767 | Z31: ='Data Input'!Z72 -> 0.6051158767 | AA31: ='Data Input'!AA72 -> 0.6051158767 | AB31: ='Data Input'!AB72 -> 0.6051158767 | AC31: ='Data Input'!AC72 -> 0.6051158767 | AD31: ='Data Input'!AD72 -> 0.6051158767 | AE31: ='Data Input'!AE72 -> 0.6051158767
F33: ='Data Input'!F45 -> Milk Composition Input Parameters
F34: ='Data Input'!F46 -> Cream Fat Content | J34: ='Data Input'!J46 -> % | N34: ='Data Input'!N46 -> 0.42
F35: ='Data Input'!F47 -> Skimmilk Fat Content | J35: ='Data Input'!J47 -> % | N35: ='Data Input'!N47 -> 0.0008
F36: ='Data Input'!F48 -> Wholemilk Density | J36: ='Data Input'!J48 -> % | N36: ='Data Input'!N48 -> 1.032
F38: ='Data Input'!F50 -> Lactose Standardising Inputs
F39: ='Data Input'!F51 -> Lactose losses - WMP | J39: ='Data Input'!J51 -> % | N39: ='Data Input'!N51 -> 0
F40: ='Data Input'!F52 -> Lactose losses - SMP | J40: ='Data Input'!J52 -> % | N40: ='Data Input'!N52 -> 0
F41: ='Data Input'!F53 -> Lactose losses - BMP | J41: ='Data Input'!J53 -> % | N41: ='Data Input'!N53 -> 0
F42: ='Data Input'!F54 -> Lactose content of lactose powder | J42: ='Data Input'!J54 -> % | N42: ='Data Input'!N54 -> 0.95
F44: ='Data Input'!F56 -> Composition Target | L44: ='Data Input'!L56 -> Fat | M44: ='Data Input'!M56 -> Protein | N44: ='Data Input'!N56 -> Moisture
F45: ='Data Input'!F57 -> Butter | J45: ='Data Input'!J57 -> %w/w | L45: ='Data Input'!L57 -> 0 | M45: ='Data Input'!M57 -> 0 | N45: ='Data Input'!N57 -> 0
F46: ='Data Input'!F58 -> AMF | J46: ='Data Input'!J58 -> %w/w | L46: ='Data Input'!L58 -> 0 | M46: ='Data Input'!M58 -> 0 | N46: ='Data Input'!N58 -> 0
F47: ='Data Input'!F59 -> SMP | J47: ='Data Input'!J59 -> %w/w | L47: ='Data Input'!L59 -> 0 | M47: ='Data Input'!M59 -> 0 | N47: ='Data Input'!N59 -> 0
F48: ='Data Input'!F60 -> BMP | J48: ='Data Input'!J60 -> %w/w | L48: ='Data Input'!L60 -> 0 | M48: ='Data Input'!M60 -> 0 | N48: ='Data Input'!N60 -> 0
F49: ='Data Input'!F61 -> WMP | J49: ='Data Input'!J61 -> %w/w | L49: ='Data Input'!L61 -> 0 | M49: ='Data Input'!M61 -> 0 | N49: ='Data Input'!N61 -> 0
F51: ='Data Input'!F63 -> Value Component Usage | L51: ='Data Input'!L63 -> Fat | M51: ='Data Input'!M63 -> Protein
F52: ='Data Input'!F64 -> Butter | J52: ='Data Input'!J64 -> kg/mt | L52: ='Data Input'!L64 -> 0 | M52: ='Data Input'!M64 -> 0
F53: ='Data Input'!F65 -> AMF | J53: ='Data Input'!J65 -> kg/mt | L53: ='Data Input'!L65 -> 0 | M53: ='Data Input'!M65 -> 0
F54: ='Data Input'!F66 -> SMP | J54: ='Data Input'!J66 -> kg/mt | L54: ='Data Input'!L66 -> 0 | M54: ='Data Input'!M66 -> 0
F55: ='Data Input'!F67 -> BMP | J55: ='Data Input'!J67 -> kg/mt | L55: ='Data Input'!L67 -> 0 | M55: ='Data Input'!M67 -> 0
F56: ='Data Input'!F68 -> WMP | J56: ='Data Input'!J68 -> kg/mt | L56: ='Data Input'!L68 -> 0 | M56: ='Data Input'!M68 -> 0
O57: Hardcoded for use in inventory calculations
D58: CALCULATIONS | F58: Valued Component Usage | L58: Fat | M58: Protein | O58: Fat | P58: Protein
D59: Logic retained, but key input cells not populated. | F59: Butter | J59: % | L59: =OFFSET($L$51,MATCH($F59,$F$52:$F$56,0),)/1000 -> 0 | M59: =OFFSET($M$51,MATCH($F59,$F$52:$F$56,0),)/1000 -> 0 | O59: 0.83064 | P59: 0.0054
F60: AMF | J60: % | L60: =OFFSET($L$51,MATCH($F60,$F$52:$F$56,0),)/1000 -> 0 | M60: =OFFSET($M$51,MATCH($F60,$F$52:$F$56,0),)/1000 -> 0 | O60: 1.00166 | P60: 0.0004
F61: SMP | J61: % | L61: =OFFSET($L$51,MATCH($F61,$F$52:$F$56,0),)/1000 -> 0 | M61: =OFFSET($M$51,MATCH($F61,$F$52:$F$56,0),)/1000 -> 0 | O61: 0.009722788264 | P61: 0.3302541074
F62: BMP | J62: % | L62: =OFFSET($L$51,MATCH($F62,$F$52:$F$56,0),)/1000 -> 0 | M62: =OFFSET($M$51,MATCH($F62,$F$52:$F$56,0),)/1000 -> 0 | O62: 0.08052 | P62: 0.30437
F63: WMP | J63: % | L63: =OFFSET($L$51,MATCH($F63,$F$52:$F$56,0),)/1000 -> 0 | M63: =OFFSET($M$51,MATCH($F63,$F$52:$F$56,0),)/1000 -> 0 | O63: 0.2627688894 | P63: 0.243438178
F65: Lactose Requirements per MT
F66: SMP | J66: % | N66: =SUMPRODUCT(T66:AE66,T187:AE187)/N187 -> 1.052631579 | T66: =T$90/1000 -> 1.052631579 | U66: =U$90/1000 -> 1.052631579 | V66: 1.052631579 | W66: 1.052631579 | X66: 1.052631579 | Y66: 1.052631579 | Z66: 1.052631579 | AA66: 1.052631579 | AB66: 1.052631579 | AC66: 1.052631579 | AD66: 1.052631579 | AE66: 1.052631579
F67: BMP | J67: % | N67: =SUMPRODUCT(T67:AE67,T188:AE188)/N188 -> 1.052631579 | T67: =T$92/1000 -> 1.052631579 | U67: =U$92/1000 -> 1.052631579 | V67: 1.052631579 | W67: 1.052631579 | X67: 1.052631579 | Y67: 1.052631579 | Z67: 1.052631579 | AA67: 1.052631579 | AB67: 1.052631579 | AC67: 1.052631579 | AD67: 1.052631579 | AE67: 1.052631579
F68: WMP | J68: % | N68: =SUMPRODUCT(T68:AE68,T189:AE189)/N189 -> 1.052631579 | T68: =T$108/1000 -> 1.052631579 | U68: =U$108/1000 -> 1.052631579 | V68: 1.052631579 | W68: 1.052631579 | X68: 1.052631579 | Y68: 1.052631579 | Z68: 1.052631579 | AA68: 1.052631579 | AB68: 1.052631579 | AC68: 1.052631579 | AD68: 1.052631579 | AE68: 1.052631579
F70: Wholemilk Composition Parameters
F71: Fat | J71: kg Fat / m3 wholemilk | T71: =$N$36*T25*1000 -> 48.77749952 | U71: 48.77749952 | V71: 48.77749952 | W71: 47.7057835 | X71: 47.7057835 | Y71: 47.7057835 | Z71: 49.99754722 | AA71: 49.99754722 | AB71: 49.99754722 | AC71: 57.560971 | AD71: 57.560971 | AE71: 57.560971
F72: Protein | J72: kg Protein / m3 wholemilk | T72: =$N$36*T26*1000 -> 38.83037496 | U72: 38.83037496 | V72: 38.83037496 | W72: 37.39419894 | X72: 37.39419894 | Y72: 37.39419894 | Z72: 38.05020842 | AA72: 38.05020842 | AB72: 38.05020842 | AC72: 43.03009151 | AD72: 43.03009151 | AE72: 43.03009151
F73: Raw Milk Protein : SNF Ratio | J73: % | T73: =T26/SUM(T26:T27) -> 0.4095559786 | U73: 0.4095559786 | V73: 0.4095559786 | W73: 0.3978113672 | X73: 0.3978113672 | Y73: 0.3978113672 | Z73: 0.4073857022 | AA73: 0.4073857022 | AB73: 0.4073857022 | AC73: 0.4443172937 | AD73: 0.4443172937 | AE73: 0.4443172937
F74: Cream Protein | J74: % | T74: =(1-$N$34)/(1-T25)*T26 -> 0.02290592157 | U74: 0.02290592157 | V74: 0.02290592157 | W74: 0.02203470774 | X74: 0.02203470774 | Y74: 0.02203470774 | Z74: 0.02247359039 | AA74: 0.02247359039 | AB74: 0.02247359039 | AC74: 0.02561212383 | AD74: 0.02561212383 | AE74: 0.02561212383
F76: SMP
F77: Excess Cream
F78: kg cream | J78: kg /m3 wholemilk | T78: =(T$72*$L$54-T$71*$M$54)/(T$74*$L$54-$N$34*$M$54) -> 
F79: Fat | J79: kg /m3 wholemilk | T79: =T78*$N$34 ->  | U79: =U78*$N$34 -> 
F80: Protein | J80: kg /m3 wholemilk | T80: =T78*T74 -> 
F82: SMP | J82: kg /m3 wholemilk | T82: =(T71-T78*$N$34)/$L$54*1000 -> 
F83: Butter | J83: kg /m3 wholemilk | T83: =(T79*$M$55-T80*$L$55)*1000/($L$52*$M$55-$M$52*$L$55) -> 
F84: BMP | J84: kg /m3 wholemilk | T84: =(T80-T83*$M$52/1000)/($M$55/1000) -> 
F85: AMF | J85: kg /m3 wholemilk | T85: =(T79*$M$55-T80*$L$55)*1000/($L$53*$M$55-$M$53*$L$55) -> 
F86: BMP | J86: kg /m3 wholemilk | T86: =(T80-T85*$M$53/1000)/($M$55/1000) -> 
F88: Lactose Standardising
F89: Primary product (excl Losses) | J89: kg/mt | T89: =(1-$L$47-$N$47-$M$47/T73)*1000 -> 1000 | U89: =(1-$L$47-$N$47-$M$47/U73)*1000 -> 1000 | V89: 1000 | W89: 1000 | X89: 1000 | Y89: 1000 | Z89: 1000 | AA89: 1000 | AB89: 1000 | AC89: 1000 | AD89: 1000 | AE89: 1000
F90: Primary product (incl Losses) | J90: kg/mt | T90: =T89/(1-$N$40)/$N$42 -> 1052.631579 | U90: =U89/(1-$N$40)/$N$42 -> 1052.631579 | V90: 1052.631579 | W90: 1052.631579 | X90: 1052.631579 | Y90: 1052.631579 | Z90: 1052.631579 | AA90: 1052.631579 | AB90: 1052.631579 | AC90: 1052.631579 | AD90: 1052.631579 | AE90: 1052.631579
F91: BMP (excl Losses) | J91: kg/mt | T91: =(1-$L$48-$N$48-$M$48/T73)*1000 -> 1000 | U91: 1000 | V91: 1000 | W91: 1000 | X91: 1000 | Y91: 1000 | Z91: 1000 | AA91: 1000 | AB91: 1000 | AC91: 1000 | AD91: 1000 | AE91: 1000
F92: BMP (incl Losses and Moisture) | J92: kg/mt | T92: =T91/(1-$N$41)/$N$42 -> 1052.631579 | U92: =U91/(1-$N$41)/$N$42 -> 1052.631579 | V92: 1052.631579 | W92: 1052.631579 | X92: 1052.631579 | Y92: 1052.631579 | Z92: 1052.631579 | AA92: 1052.631579 | AB92: 1052.631579 | AC92: 1052.631579 | AD92: 1052.631579 | AE92: 1052.631579
F94: WMP
F95: Excess Cream
F96: kg cream | J96: kg /m3 wholemilk | T96: =(T$72*$L$56-T$71*$M$56)/(T$74*$L$56-$N$34*$M$56) -> 
F97: Fat | J97: kg /m3 wholemilk | T97: =T96*$N$34 ->  | U97: =U96*$N$34 -> 
F98: Protein | J98: kg /m3 wholemilk | T98: =T96*T74 -> 
F100: WMP | J100: kg /m3 wholemilk | T100: =(T71-T96*$N$34)/$L$56*1000 -> 
F101: Butter | J101: kg /m3 wholemilk | T101: =(T97*$M$55-T98*$L$55)*1000/($L$52*$M$55-$M$52*$L$55) -> 
F102: BMP | J102: kg /m3 wholemilk | T102: =(T98-T101*$M$52/1000)/($M$55/1000) -> 
F103: AMF | J103: kg /m3 wholemilk | T103: =(T97*$M$55-T98*$L$55)*1000/($L$53*$M$55-$M$53*$L$55) -> 
F104: BMP | J104: kg /m3 wholemilk | T104: =(T98-T103*$M$53/1000)/($M$55/1000) -> 
F106: Lactose Standardising
F107: Primary product (excl Losses) | J107: kg/mt | T107: =(1-$L$49-$N$49-$M$49/T73)*1000 -> 1000 | U107: =(1-$L$49-$N$49-$M$49/U73)*1000 -> 1000 | V107: 1000 | W107: 1000 | X107: 1000 | Y107: 1000 | Z107: 1000 | AA107: 1000 | AB107: 1000 | AC107: 1000 | AD107: 1000 | AE107: 1000
F108: Primary product (incl Losses) | J108: kg/mt | T108: =T107/(1-$N$39)/$N$42 -> 1052.631579 | U108: =U107/(1-$N$39)/$N$42 -> 1052.631579 | V108: 1052.631579 | W108: 1052.631579 | X108: 1052.631579 | Y108: 1052.631579 | Z108: 1052.631579 | AA108: 1052.631579 | AB108: 1052.631579 | AC108: 1052.631579 | AD108: 1052.631579 | AE108: 1052.631579
F109: BMP (excl Losses) | J109: kg/mt | T109: =(1-$L$48-$N$48-$M$48/T73)*1000 -> 1000 | U109: 1000 | V109: 1000 | W109: 1000 | X109: 1000 | Y109: 1000 | Z109: 1000 | AA109: 1000 | AB109: 1000 | AC109: 1000 | AD109: 1000 | AE109: 1000
F110: BMP (incl Losses and Moisture) | J110: kg/mt | T110: =T109/(1-$N$41)/$N$42 -> 1052.631579 | U110: 1052.631579 | V110: 1052.631579 | W110: 1052.631579 | X110: 1052.631579 | Y110: 1052.631579 | Z110: 1052.631579 | AA110: 1052.631579 | AB110: 1052.631579 | AC110: 1052.631579 | AD110: 1052.631579 | AE110: 1052.631579
F112: Monthly National Average Yields
F113: SMP | J113: % | N113: =SUMPRODUCT(T113:AE113,$T$21:$AE$21)/$N$21 ->  | T113: =T82/SUM(T$71:T$72) -> 
F114: SMP Butter | J114: % | N114: =SUMPRODUCT(T114:AE114,$T$21:$AE$21)/$N$21 ->  | T114: =T83/SUM(T$71:T$72) -> 
F115: SMP Butter BMP | J115: % | T115: =T84/SUM(T$71:T$72) -> 
F116: SMP AMF | J116: % | T116: =T85/SUM(T$71:T$72) -> 
F117: SMP AMF BMP | J117: % | T117: =T86/SUM(T$71:T$72) -> 
F119: WMP | J119: % | T119: =T100/SUM(T$71:T$72) -> 
F120: WMP Butter | J120: % | T120: =T101/SUM(T$71:T$72) -> 
F121: WMP Butter BMP | J121: % | T121: =T102/SUM(T$71:T$72) -> 
F122: WMP AMF | J122: % | T122: =T103/SUM(T$71:T$72) -> 
F123: WMP AMF BMP | J123: % | T123: =T104/SUM(T$71:T$72) -> 
F125: Calculated Mix to Model
F126: % of milksolids allocated to WMP | J126: % | N126: =SUMPRODUCT(T126:AE126,'Data Input'!$T$33:$AE$33) -> 0 | T126: =IFERROR(T30/(T30+(1-T30)*(T119/T113)),0) -> 0 | U126: 0 | V126: 0 | W126: 0 | X126: 0 | Y126: 0 | Z126: 0 | AA126: 0 | AB126: 0 | AC126: 0 | AD126: 0 | AE126: 0
F127: % of milkfat allocated to Butter - SMP | J127: % | N127: =SUMPRODUCT(T127:AE127,'Data Input'!$T$33:$AE$33) -> 0 | T127: =IFERROR(T31/(T31+(1-T31)*(T114/T116)),0) -> 0 | U127: 0 | V127: 0 | W127: 0 | X127: 0 | Y127: 0 | Z127: 0 | AA127: 0 | AB127: 0 | AC127: 0 | AD127: 0 | AE127: 0
F128: % of milkfat allocated to Butter - WMP | J128: % | N128: =SUMPRODUCT(T128:AE128,'Data Input'!$T$33:$AE$33) -> 0 | T128: =IFERROR(T31/(T31+(1-T31)*(T120/T122)),0) -> 0 | U128: 0 | V128: 0 | W128: 0 | X128: 0 | Y128: 0 | Z128: 0 | AA128: 0 | AB128: 0 | AC128: 0 | AD128: 0 | AE128: 0
F130: Product Weights
F131: SMP | J131: % | N131: =1-N126 -> 1 | T131: =1-T126 -> 1 | U131: 1 | V131: 1 | W131: 1 | X131: 1 | Y131: 1 | Z131: 1 | AA131: 1 | AB131: 1 | AC131: 1 | AD131: 1 | AE131: 1
F132: SMP Butter | J132: % | N132: =N131*N127 -> 0 | T132: =T131*T127 -> 0 | U132: 0 | V132: 0 | W132: 0 | X132: 0 | Y132: 0 | Z132: 0 | AA132: 0 | AB132: 0 | AC132: 0 | AD132: 0 | AE132: 0
F133: SMP Butter BMP | J133: % | N133: =N132 -> 0 | T133: =T132 -> 0 | U133: =U132 -> 0 | V133: 0 | W133: 0 | X133: 0 | Y133: 0 | Z133: 0 | AA133: 0 | AB133: 0 | AC133: 0 | AD133: 0 | AE133: 0
F134: SMP AMF | J134: % | N134: =N131*(1-N127) -> 1 | T134: =T131*(1-T127) -> 1 | U134: 1 | V134: 1 | W134: 1 | X134: 1 | Y134: 1 | Z134: 1 | AA134: 1 | AB134: 1 | AC134: 1 | AD134: 1 | AE134: 1
F135: SMP AMF BMP | J135: % | N135: =N134 -> 1 | T135: =T134 -> 1 | U135: =U134 -> 1 | V135: 1 | W135: 1 | X135: 1 | Y135: 1 | Z135: 1 | AA135: 1 | AB135: 1 | AC135: 1 | AD135: 1 | AE135: 1
F137: WMP | J137: % | N137: =N126 -> 0 | T137: =T126 -> 0 | U137: 0 | V137: 0 | W137: 0 | X137: 0 | Y137: 0 | Z137: 0 | AA137: 0 | AB137: 0 | AC137: 0 | AD137: 0 | AE137: 0
F138: WMP Butter | J138: % | N138: =N137*N128 -> 0 | T138: =T137*T128 -> 0 | U138: 0 | V138: 0 | W138: 0 | X138: 0 | Y138: 0 | Z138: 0 | AA138: 0 | AB138: 0 | AC138: 0 | AD138: 0 | AE138: 0
F139: WMP Butter BMP | J139: % | N139: =N138 -> 0 | T139: =T138 -> 0 | U139: =U138 -> 0 | V139: 0 | W139: 0 | X139: 0 | Y139: 0 | Z139: 0 | AA139: 0 | AB139: 0 | AC139: 0 | AD139: 0 | AE139: 0
F140: WMP AMF | J140: % | N140: =N137*(1-N128) -> 0 | T140: =T137*(1-T128) -> 0 | U140: 0 | V140: 0 | W140: 0 | X140: 0 | Y140: 0 | Z140: 0 | AA140: 0 | AB140: 0 | AC140: 0 | AD140: 0 | AE140: 0
F141: WMP AMF BMP | J141: % | N141: =N140 -> 0 | T141: =T140 -> 0 | U141: =U140 -> 0 | V141: 0 | W141: 0 | X141: 0 | Y141: 0 | Z141: 0 | AA141: 0 | AB141: 0 | AC141: 0 | AD141: 0 | AE141: 0
F142: Calculated Yields
F143: Butter | N143: =SUMPRODUCT(T143:AE143,$T$21:$AE$21)/$N$21 ->  | T143: =T132*T114+T138*T120 -> 
F144: AMF | N144: =SUMPRODUCT(T144:AE144,$T$21:$AE$21)/$N$21 ->  | T144: =T134*T116+T140*T122 -> 
F145: SMP | N145: =SUMPRODUCT(T145:AE145,$T$21:$AE$21)/$N$21 ->  | T145: =T131*T113 -> 
F146: BMP | N146: =SUMPRODUCT(T146:AE146,$T$21:$AE$21)/$N$21 ->  | T146: =T133*T115+T139*T121+T135*T117+T141*T123 -> 
F147: WMP | N147: =SUMPRODUCT(T147:AE147,$T$21:$AE$21)/$N$21 ->  | T147: =T137*T119 -> 
F148: Total | N148: =SUM(N143:N147) ->  | T148: =SUM(T143:T147) -> 
D150: Actual yield calculations | F150: Product Mix to Model
F151: Butter | J151: MT | N151: =SUM(T151:AE151) ->  | T151: =T143*T$21 ->  | U151: =U143*U$21 -> 
F152: AMF | J152: MT | N152: =SUM(T152:AE152) ->  | T152: =T144*T$21 -> 
F153: SMP | J153: MT | N153: =SUM(T153:AE153) ->  | T153: =T145*T$21 ->  | U153: =U145*U$21 -> 
F154: BMP | J154: MT | N154: =SUM(T154:AE154) ->  | W154: =W146*W$21 -> 
F155: WMP | J155: MT | N155: =SUM(T155:AE155) ->  | T155: =T147*T$21 -> 
F156: Total | J156: MT | N156: =SUM(N151:N155) ->  | T156: =SUM(T151:T155) ->  | U156: =SUM(U151:U155) ->  | V156: =SUM(V151:V155) ->  | W156: =SUM(W151:W155) -> 
F158: Fat Usage
F159: Butter | J159: 000 KgMS | N159: =SUM(T159:AE159) ->  | T159: =T151*$L59 -> 
F160: AMF | J160: 000 KgMS | N160: =SUM(T160:AE160) -> 
F161: SMP | J161: 000 KgMS | N161: =SUM(T161:AE161) -> 
F162: BMP | J162: 000 KgMS | N162: =SUM(T162:AE162) -> 
F163: WMP | J163: 000 KgMS | N163: =SUM(T163:AE163) -> 
F164: Total | J164: 000 KgMS | N164: =SUM(N159:N163) ->  | T164: =SUM(T159:T163) -> 
F166: Protein Usage
F167: Butter | J167: 000 KgMS | N167: =SUM(T167:AE167) ->  | T167: =T151*$M59 -> 
F168: AMF | J168: 000 KgMS | N168: =SUM(T168:AE168) -> 
F169: SMP | J169: 000 KgMS | N169: =SUM(T169:AE169) -> 
F170: BMP | J170: 000 KgMS | N170: =SUM(T170:AE170) -> 
F171: WMP | J171: 000 KgMS | N171: =SUM(T171:AE171) -> 
F172: Total | J172: 000 KgMS | N172: =SUM(N167:N171) ->  | T172: =SUM(T167:T171) -> 
F174: Milk Composition
F175: Fat | J175: MT | N175: =IF(ISERROR(N164/SUM(N164,N172)),"N/A",N164/SUM(N164,N172)) -> N/A | T175: =IF(ISERROR(T164/SUM(T164,T172)),"N/A",T164/SUM(T164,T172)) -> N/A | U175: =IF(ISERROR(U164/SUM(U164,U172)),"N/A",U164/SUM(U164,U172)) -> N/A | V175: N/A | W175: N/A | X175: N/A | Y175: N/A | Z175: N/A | AA175: N/A | AB175: N/A | AC175: N/A | AD175: N/A | AE175: N/A
F176: Protein | J176: MT | N176: =IF(ISERROR(N172/SUM(N164,N172)),"N/A",N172/SUM(N164,N172)) -> N/A | T176: =IF(ISERROR(T172/SUM(T164,T172)),"N/A",T172/SUM(T164,T172)) -> N/A | U176: =IF(ISERROR(U172/SUM(U164,U172)),"N/A",U172/SUM(U164,U172)) -> N/A | V176: N/A | W176: N/A | X176: N/A | Y176: N/A | Z176: N/A | AA176: N/A | AB176: N/A | AC176: N/A | AD176: N/A | AE176: N/A
F178: Required Lactose - Calculated
F179: SMP | J179: MT | N179: =SUM(T179:AE179) ->  | T179: =T66*T153 -> 
F180: BMP | J180: MT | N180: =SUM(T180:AE180) -> 
F181: WMP | J181: MT | N181: =SUM(T181:AE181) -> 
F182: Total | J182: MT | N182: =SUM(T182:AE182) ->  | T182: =SUM(T179:T181) ->  | U182: =SUM(U179:U181) -> 
D184: Hard coded outputs from actual yield calculations | F184: Product Mix to Model
F185: Butter | J185: MT | N185: =SUM(T185:AE185) -> 253099.5923 | T185: 1450.553714 | U185: 2101.92186 | V185: 14974.60264 | W185: 29151.14548 | X185: 36230.09916 | Y185: 33032.3231 | Z185: 30441.29753 | AA185: 28181.03794 | AB185: 24130.64611 | AC185: 23634.26398 | AD185: 19103.18861 | AE185: 10668.51214
F186: AMF | J186: MT | N186: =SUM(T186:AE186) -> 165166.73 | T186: 946.5966005 | U186: 1371.663847 | V186: 9772.066913 | W186: 19023.33912 | X186: 23642.89469 | Y186: 21556.10264 | Z186: 19865.26144 | AA186: 18390.27018 | AB186: 15747.08151 | AC186: 15423.15443 | AD186: 12466.2832 | AE186: 6962.015422
F187: SMP | J187: MT | N187: =SUM(T187:AE187) -> 589749.9347 | T187: 3399.468192 | U187: 5554.42762 | V187: 38798.56246 | W187: 72464.81005 | X187: 84038.4608 | Y187: 79707.57624 | Z187: 74613.47527 | AA187: 65181.01373 | AB187: 50130.3568 | AC187: 49884.36197 | AD187: 41858.11088 | AE187: 24119.31071
F188: BMP | J188: MT | N188: =SUM(T188:AE188) -> 63804.62069 | T188: 364.6616171 | U188: 538.675804 | V188: 3746.47437 | W188: 6985.236425 | X188: 8674.083794 | Y188: 8017.296404 | Z188: 7446.203999 | AA188: 6823.837839 | AB188: 6086.474165 | AC188: 6406.707182 | AD188: 5516.922015 | AE188: 3198.047071
F189: WMP | J189: MT | N189: =SUM(T189:AE189) -> 1999098.543 | T189: 11523.311 | U189: 18828.06171 | V189: 131517.0128 | W189: 245636.816 | X189: 284868.475 | Y189: 270187.9053 | Z189: 252920.231 | AA189: 220946.6452 | AB189: 169928.8416 | AC189: 169094.9833 | AD189: 141888.0843 | AE189: 81758.17591
F190: Total | J190: MT | N190: =SUM(N185:N189) -> 3070919.421 | T190: 17684.59112 | U190: 28394.75084 | V190: 198808.7192 | W190: 373261.3471 | X190: 437454.0135 | Y190: 412501.2037 | Z190: 385286.4692 | AA190: 339522.8049 | AB190: 266023.4002 | AC190: 264443.4708 | AD190: 220832.589 | AE190: 126706.0613
F192: Fat Usage
F193: Butter | J193: 000 KgMS | N193: =SUM(T193:AE193) -> 210234.6453 | T193: 1204.887937 | U193: 1745.940374 | V193: 12438.50394 | W193: 24214.10748 | X193: 30094.16957 | Y193: 27437.96886 | Z193: 25285.75938 | AA193: 23408.29736 | AB193: 20043.87988 | AC193: 19631.56503 | AD193: 15867.87258 | AE193: 8861.692927
F194: AMF | J194: 000 KgMS | N194: =SUM(T194:AE194) -> 165440.9068 | T194: 948.1679508 | U194: 1373.940809 | V194: 9788.288544 | W194: 19054.91786 | X194: 23682.14189 | Y194: 21591.88577 | Z194: 19898.23777 | AA194: 18420.79803 | AB194: 15773.22167 | AC194: 15448.75687 | AD194: 12486.97723 | AE194: 6973.572368
F195: SMP | J195: 000 KgMS | N195: =SUM(T195:AE195) -> 5734.013744 | T195: 33.05230944 | U195: 54.00452367 | V195: 377.2302078 | W195: 704.5600047 | X195: 817.0881604 | Y195: 774.9798868 | Z195: 725.4510216 | AA195: 633.7411953 | AB195: 487.4068448 | AC195: 485.0150891 | AD195: 406.9775492 | AE195: 234.5069511
F196: BMP | J196: 000 KgMS | N196: =SUM(T196:AE196) -> 5137.548058 | T196: 29.36255341 | U196: 43.37417574 | V196: 301.6661163 | W196: 562.4512369 | X196: 698.4372271 | Y196: 645.5527065 | Z196: 599.568346 | AA196: 549.4554228 | AB196: 490.0828998 | AC196: 515.8680623 | AD196: 444.2225606 | AE196: 257.5067502
F197: WMP | J197: 000 KgMS | N197: =SUM(T197:AE197) -> 525300.904 | T197: 3027.967633 | U197: 4947.428864 | V197: 34558.57938 | W197: 64545.71334 | X197: 74854.57281 | Y197: 70996.97582 | Z197: 66459.5682 | AA197: 58057.90457 | AB197: 44652.01299 | AC197: 44432.90095 | AD197: 37283.77434 | AE197: 21483.50508
F198: Total | J198: 000 KgMS | N198: =SUM(N193:N197) -> 911848.0179 | T198: 5243.438384 | U198: 8164.688746 | V198: 57464.26819 | W198: 109081.7499 | X198: 130146.4097 | Y198: 121447.363 | Z198: 112968.5847 | AA198: 101070.1966 | AB198: 81446.60429 | AC198: 80514.106 | AD198: 66489.82426 | AE198: 37810.78408
F200: Protein Usage
F201: Butter | J201: 000 KgMS | N201: =SUM(T201:AE201) -> 1366.737798 | T201: 7.832990056 | U201: 11.35037805 | V201: 80.86285427 | W201: 157.4161856 | X201: 195.6425355 | Y201: 178.3745447 | Z201: 164.3830067 | AA201: 152.1776049 | AB201: 130.305489 | AC201: 127.6250255 | AD201: 103.1572185 | AE201: 57.60996558
F202: AMF | J202: 000 KgMS | N202: =SUM(T202:AE202) -> 66.066692 | T202: 0.3786386402 | U202: 0.5486655387 | V202: 3.908826765 | W202: 7.609335648 | X202: 9.457157875 | Y202: 8.622441057 | Z202: 7.946104575 | AA202: 7.356108073 | AB202: 6.298832605 | AC202: 6.169261772 | AD202: 4.986513279 | AE202: 2.784806169
F203: SMP | J203: 000 KgMS | N203: =SUM(T203:AE203) -> 194767.3383 | T203: 1117.111404 | U203: 1825.26033 | V203: 12749.73441 | W203: 23865.93716 | X203: 28360.23563 | Y203: 26363.42116 | Z203: 24519.00103 | AA203: 21419.3661 | AB203: 16473.51588 | AC203: 16392.67864 | AD203: 13755.14356 | AE203: 7925.932976
F204: BMP | J204: 000 KgMS | N204: =SUM(T204:AE204) -> 19420.2124 | T204: 110.9920564 | U204: 163.9567545 | V204: 1140.314404 | W204: 2126.096411 | X204: 2640.130884 | Y204: 2440.224506 | Z204: 2266.401111 | AA204: 2076.971523 | AB204: 1852.540142 | AC204: 1950.009465 | AD204: 1679.185554 | AE204: 973.389587
F205: WMP | J205: 000 KgMS | N205: =SUM(T205:AE205) -> 486656.9071 | T205: 2791.289627 | U205: 4560.718125 | V205: 31857.34322 | W205: 59632.91978 | X205: 70861.27525 | Y205: 65873.19251 | Z205: 61264.82373 | AA205: 53519.86759 | AB205: 41161.83387 | AC205: 40959.8485 | AD205: 34369.52609 | AE205: 19804.26879
F206: Total | J206: 000 KgMS | N206: =SUM(N201:N205) -> 702277.2622 | T206: 4027.604716 | U206: 6561.834254 | V206: 45832.16371 | W206: 85789.97888 | X206: 102066.7414 | Y206: 94863.83516 | Z206: 88222.55498 | AA206: 77175.73892 | AB206: 59624.49421 | AC206: 59436.3309 | AD206: 49911.99894 | AE206: 28763.98612
F208: Milk Composition
F209: Fat | J209: MT | N209: =IF(ISERROR(N198/SUM(N198,N206)),"N/A",N198/SUM(N198,N206)) -> 0.5649177478 | T209: 0.5655715681 | U209: 0.5544206699 | V209: 0.5563044834 | W209: 0.5597618012 | X209: 0.5604609775 | Y209: 0.5614474149 | Z209: 0.561498806 | AA209: 0.567026655 | AB209: 0.5773443686 | AC209: 0.5753044277 | AD209: 0.5712094745 | AE209: 0.5679446428
F210: Protein | J210: MT | N210: =IF(ISERROR(N206/SUM(N198,N206)),"N/A",N206/SUM(N198,N206)) -> 0.4350822522 | T210: 0.4344284319 | U210: 0.4455793301 | V210: 0.4436955166 | W210: 0.4402381988 | X210: 0.4395390225 | Y210: 0.4385525851 | Z210: 0.438501194 | AA210: 0.432973345 | AB210: 0.4226556314 | AC210: 0.4246955723 | AD210: 0.4287905255 | AE210: 0.4320553572
F212: Required Lactose - Calculated
F213: SMP | J213: MT | N213: =SUM(T213:AE213) -> 0
F214: BMP | J214: MT | N214: =SUM(T214:AE214) -> 0
F215: WMP | J215: MT | N215: =SUM(T215:AE215) -> 0
F216: Total | J216: MT | N216: =SUM(T216:AE216) -> 345684.5014 | T216: 2136.661645 | U216: 3614.145305 | V216: 22631.5267 | W216: 35067.48073 | X216: 34792.13216 | Y216: 40457.0885 | Z216: 41449.31901 | AA216: 36281.06124 | AB216: 32215.57118 | AC216: 38349.14573 | AD216: 36267.11843 | AE216: 22423.25076
D218: COMPONENT MILK PRICE
D221: COMMENT
F225: Milk Price | J225: NZD | N225: =IF(ISERROR(N1249),2,N1249) -> 4.396283403 | T225: =$N225 -> 4.396283403 | U225: 4.396283403 | V225: 4.396283403 | W225: 4.396283403 | X225: 4.396283403 | Y225: 4.396283403 | Z225: 4.396283403 | AA225: 4.396283403 | AB225: 4.396283403 | AC225: 4.396283403 | AD225: 4.396283403 | AE225: 4.396283403 | AF225: 4.396283403 | AG225: 4.396283403 | AH225: 4.396283403 | AI225: 4.396283403 | AJ225: 4.396283403 | AK225: 4.396283403 | AL225: 4.396283403 | AM225: 4.396283403 | AN225: 4.396283403 | AO225: 4.396283403
F227: kgms into production
F228: Total | J228: 000 kgms | K228: ="Row "&ROW(K$21) -> Row 21 | N228: =SUM(T228:AE228) -> 1614125.28 | T228: =T21 -> 9271.0431 | U228: 14726.523 | V228: 103296.4319 | W228: 194871.7288 | X228: 232213.1511 | Y228: 216311.1982 | Z228: 201191.1397 | AA228: 178245.9355 | AB228: 141071.0985 | AC228: 139950.4369 | AD228: 116401.8232 | AE228: 66574.7702
F229: Fat | J229: 000 kgms | N229: =SUM(T229:AE229) -> 911848.0179 | T229: =T198 -> 5243.438384 | U229: =U198 -> 8164.688746 | V229: 57464.26819 | W229: 109081.7499 | X229: 130146.4097 | Y229: 121447.363 | Z229: 112968.5847 | AA229: 101070.1966 | AB229: 81446.60429 | AC229: 80514.106 | AD229: 66489.82426 | AE229: 37810.78408
F230: Protein | J230: 000 kgms | N230: =SUM(T230:AE230) -> 702277.2622 | T230: =T206 -> 4027.604716 | U230: =U206 -> 6561.834254 | V230: 45832.16371 | W230: 85789.97888 | X230: 102066.7414 | Y230: 94863.83516 | Z230: 88222.55498 | AA230: 77175.73892 | AB230: 59624.49421 | AC230: 59436.3309 | AD230: 49911.99894 | AE230: 28763.98612
F231: Total | J231: 000 kgms | N231: =N229+N230 -> 1614125.28 | T231: =T230+T229 -> 9271.0431 | U231: 14726.523 | V231: 103296.4319 | W231: 194871.7288 | X231: 232213.1511 | Y231: 216311.1982 | Z231: 201191.1397 | AA231: 178245.9355 | AB231: 141071.0985 | AC231: 139950.4369 | AD231: 116401.8232 | AE231: 66574.7702
F232: Protein : Fat ratio | J232: % | N232: =N230/N229 -> 0.7701692042 | T232: =T230/T229 -> 0.7681228272 | U232: =U230/U229 -> 0.8036845565 | V232: 0.7975767404 | W232: 0.7864741713 | X232: 0.784245541 | Y232: 0.7811107033 | Z232: 0.7809476874 | AA232: 0.7635855231 | AB232: 0.7320685096 | AC232: 0.7382101578 | AD232: 0.7506712416 | AE232: 0.7607349814
F233: Valued Component Ratio | J233: % | N233: ='Data Input'!N74 -> 0.43 | T233: =$N233 -> 0.43 | U233: =$N233 -> 0.43 | V233: 0.43 | W233: 0.43 | X233: 0.43 | Y233: 0.43 | Z233: 0.43 | AA233: 0.43 | AB233: 0.43 | AC233: 0.43 | AD233: 0.43 | AE233: 0.43
F235: Fat Price | J235: NZD | N235: =(1+N232)/(1+1/N233*N232)*N225 -> 2.788216154 | T235: =$N235 -> 2.788216154 | U235: =$N235 -> 2.788216154 | V235: 2.788216154 | W235: 2.788216154 | X235: 2.788216154 | Y235: 2.788216154 | Z235: 2.788216154 | AA235: 2.788216154 | AB235: 2.788216154 | AC235: 2.788216154 | AD235: =$N235 -> 2.788216154 | AE235: 2.788216154 | AF235: 2.788216154 | AG235: 2.788216154 | AH235: 2.788216154 | AI235: 2.788216154 | AJ235: 2.788216154 | AK235: 2.788216154 | AL235: 2.788216154 | AM235: 2.788216154 | AN235: 2.788216154 | AO235: 2.788216154
F236: Protein Price | J236: NZD | N236: =(1+N232)/(N232+N233)*N225 -> 6.484223613 | T236: =$N236 -> 6.484223613 | U236: 6.484223613 | V236: 6.484223613 | W236: 6.484223613 | X236: 6.484223613 | Y236: 6.484223613 | Z236: 6.484223613 | AA236: 6.484223613 | AB236: 6.484223613 | AC236: 6.484223613 | AD236: 6.484223613 | AE236: 6.484223613 | AF236: 6.484223613 | AG236: 6.484223613 | AH236: 6.484223613 | AI236: 6.484223613 | AJ236: 6.484223613 | AK236: 6.484223613 | AL236: 6.484223613 | AM236: 6.484223613 | AN236: 6.484223613 | AO236: 6.484223613
D238: Conversion of Average FX Cash Conversion Rates to Corresponding ACRs for Transaction Months
D240: COMMENT | F240: This section converts average USD : NZD cash conversion rates into:
F241: 1. Average FX conversion rates by month of sale, given the receivables days assumption.
F242: 2. Average FX conversion rates by month in which a USD-denominated cost is incurred, given the Trade Creditors days assumption.
D244: DATA INPUT
F245: Average Conversion Rate to model - Cash | J245: USD : NZD | R245: ='Data Input'!R22 -> 0.7881983631 | S245: ='Data Input'!S22 -> 0.7881983631 | T245: ='Data Input'!T22 -> 0.7881983631 | U245: ='Data Input'!U22 -> 0.7881983631 | V245: ='Data Input'!V22 -> 0.7881983631 | W245: ='Data Input'!W22 -> 0.7881983631 | X245: ='Data Input'!X22 -> 0.7881983631 | Y245: ='Data Input'!Y22 -> 0.7881983631 | Z245: ='Data Input'!Z22 -> 0.7881983631 | AA245: ='Data Input'!AA22 -> 0.7881983631 | AB245: ='Data Input'!AB22 -> 0.7881983631 | AC245: ='Data Input'!AC22 -> 0.7881983631 | AD245: ='Data Input'!AD22 -> 0.7881983631 | AE245: ='Data Input'!AE22 -> 0.7881983631 | AF245: ='Data Input'!AF22 -> 0.7881983631 | AG245: ='Data Input'!AG22 -> 0.7881983631 | AH245: ='Data Input'!AH22 -> 0.7881983631 | AI245: ='Data Input'!AI22 -> 0.7881983631 | AJ245: ='Data Input'!AJ22 -> 0.7881983631 | AK245: ='Data Input'!AK22 -> 0.7881983631 | AL245: ='Data Input'!AL22 -> 0.7881983631 | AM245: ='Data Input'!AM22 -> 0.7881983631 | AN245: ='Data Input'!AN22 -> 0.7881983631 | AO245: =AN245 -> 0.7881983631
F247: Timing of Receipts in respect of sales
F248: Received in month of sale | J248: % | K248: ="Row "&ROW(F896) -> Row 896 | T248: =T896 -> 0.02909689886 | U248: =U896 -> 0.06041635374 | V248: 0.06041635374 | W248: 0.02909689886 | X248: 0.06041635374 | Y248: 0.02909689886 | Z248: 0.06041635374 | AA248: 0.06041635374 | AB248: 0 | AC248: 0.06041635374 | AD248: 0.02909689886 | AE248: 0.06041635374 | AF248: 0.02909689886 | AG248: 0.06041635374 | AH248: 0.06041635374 | AI248: 0.02909689886 | AJ248: 0.06041635374 | AK248: 0.02909689886 | AL248: 0.06041635374 | AM248: =AM896/SUM(AM$896:AM$898) -> 0.06041635374 | AN248: =AN896/SUM(AN$896:AN$897) -> 0 | AO248: 1
F249: Received in 1 month's time | J249: % | K249: ="Row "&ROW(F897) -> Row 897 | T249: =T897 -> 0.9709031011 | U249: =U897 -> 0.9395836463 | V249: 0.9395836463 | W249: 0.9709031011 | X249: 0.9395836463 | Y249: 0.9709031011 | Z249: 0.9395836463 | AA249: 0.9032258065 | AB249: 1 | AC249: 0.9395836463 | AD249: 0.9709031011 | AE249: 0.9395836463 | AF249: 0.9709031011 | AG249: 0.9395836463 | AH249: 0.9395836463 | AI249: 0.9709031011 | AJ249: 0.9395836463 | AK249: 0.9709031011 | AL249: 0.9395836463 | AM249: =AM897/SUM(AM$896:AM$898) -> 0.935483871 | AN249: =AN897/SUM(AN$896:AN$897) -> 1
F250: Received in 2 month's time | J250: % | K250: ="Row "&ROW(F898) -> Row 898 | T250: =T898 -> 0 | U250: =U898 -> 0 | V250: 0 | W250: 0 | X250: 0 | Y250: 0 | Z250: 0 | AA250: 0.03635783981 | AB250: 0 | AC250: 0 | AD250: 0 | AE250: 0 | AF250: 0 | AG250: 0 | AH250: 0 | AI250: 0 | AJ250: 0 | AK250: 0 | AL250: 0 | AM250: =AM898/SUM(AM$896:AM$898) -> 0.004099775295
F251: Received in 3 month's time | J251: % | K251: ="Row "&ROW(F899) -> Row 899 | T251: =T899 -> 0 | U251: =U899 -> 0 | V251: 0 | W251: 0 | X251: 0 | Y251: 0 | Z251: 0 | AA251: 0 | AB251: 0 | AC251: 0 | AD251: 0 | AE251: 0 | AF251: 0 | AG251: 0 | AH251: 0 | AI251: 0 | AJ251: 0 | AK251: 0 | AL251: 0
... 826 more rows

Sheet Summary
J3: 1
S4: MONTHLY
I5: Period Number | O5: 1 | P5: 1 | Q5: 1 | R5: =IF(Q5=12,1,Q5+1) -> 2 | S5: 3 | T5: 4 | U5: 5 | V5: 6 | W5: 7 | X5: 8 | Y5: 9 | Z5: 10 | AA5: 11 | AB5: 12 | AC5: 1 | AD5: 2 | AE5: 3 | AF5: 4 | AG5: 5 | AH5: 6 | AI5: 7 | AJ5: 8
O6: =Global!R36 -> 2014-04-30 | P6: =Global!S36 -> 2014-05-31 | Q6: =Global!T36 -> 2014-06-30 | R6: =Global!U36 -> 2014-07-31 | S6: =Global!V36 -> 2014-08-31 | T6: =Global!W36 -> 2014-09-30 | U6: =Global!X36 -> 2014-10-31 | V6: =Global!Y36 -> 2014-11-30 | W6: =Global!Z36 -> 2014-12-31 | X6: =Global!AA36 -> 2015-01-31 | Y6: =Global!AB36 -> 2015-02-28 | Z6: =Global!AC36 -> 2015-03-31 | AA6: =Global!AD36 -> 2015-04-30 | AB6: =Global!AE36 -> 2015-05-31 | AC6: =Global!AF36 -> 2015-06-30 | AD6: =Global!AG36 -> 2015-07-31 | AE6: =Global!AH36 -> 2015-08-31 | AF6: =Global!AI36 -> 2015-09-30 | AG6: =Global!AJ36 -> 2015-10-31 | AH6: =Global!AK36 -> 2015-11-30 | AI6: =Global!AL36 -> 2015-12-31 | AJ6: =Global!AM36 -> 2016-01-31
I7: Period | O7: 1 | P7: 1 | Q7: 1 | R7: =Q7+1 -> 2 | S7: 3 | T7: 4 | U7: 5 | V7: 6 | W7: 7 | X7: 8 | Y7: 9 | Z7: 10 | AA7: 11 | AB7: 12 | AC7: 13 | AD7: 14 | AE7: 15 | AF7: 16 | AG7: 17 | AH7: 18 | AI7: 19 | AJ7: 20
I9: Financial Year | L9: =Global!O7 -> 2015-05-31 | O9: =Global!R36 -> 2014-04-30 | P9: =Global!S36 -> 2014-05-31 | Q9: =Global!T36 -> 2014-06-30 | R9: =Global!U36 -> 2014-07-31 | S9: =Global!V36 -> 2014-08-31 | T9: =Global!W36 -> 2014-09-30 | U9: =Global!X36 -> 2014-10-31 | V9: =Global!Y36 -> 2014-11-30 | W9: =Global!Z36 -> 2014-12-31 | X9: =Global!AA36 -> 2015-01-31 | Y9: =Global!AB36 -> 2015-02-28 | Z9: =Global!AC36 -> 2015-03-31 | AA9: =Global!AD36 -> 2015-04-30 | AB9: =Global!AE36 -> 2015-05-31 | AC9: =Global!AF36 -> 2015-06-30 | AD9: =Global!AG36 -> 2015-07-31 | AE9: =Global!AH36 -> 2015-08-31 | AF9: =Global!AI36 -> 2015-09-30 | AG9: =Global!AJ36 -> 2015-10-31 | AH9: =Global!AK36 -> 2015-11-30 | AI9: =Global!AL36 -> 2015-12-31 | AJ9: =Global!AM36 -> 2016-01-31
I10: KGMS '000s
I11: Milk Supply Paid for | L11: =SUM(O11:AB11) -> 1614194.771 | O11: ='Data Input'!R31 -> 0 | P11: ='Data Input'!S31 -> 0 | Q11: ='Data Input'!T31 -> 9271.0431 | R11: ='Data Input'!U31 -> 14795.776 | S11: ='Data Input'!V31 -> 103296.6697 | T11: ='Data Input'!W31 -> 194871.7288 | U11: ='Data Input'!X31 -> 232213.1511 | V11: ='Data Input'!Y31 -> 216311.1982 | W11: ='Data Input'!Z31 -> 201191.1397 | X11: ='Data Input'!AA31 -> 178245.9355 | Y11: ='Data Input'!AB31 -> 141071.0985 | Z11: ='Data Input'!AC31 -> 139950.4369 | AA11: ='Data Input'!AD31 -> 116401.8232 | AB11: ='Data Input'!AE31 -> 66574.7702
I12: Milk Supply Collected | L12: =SUM(O12:AB12) -> 1614125.28 | O12: ='Data Input'!R32 -> 0 | P12: ='Data Input'!S32 -> 0 | Q12: ='Data Input'!T32 -> 9271.0431 | R12: ='Data Input'!U32 -> 14726.523 | S12: ='Data Input'!V32 -> 103296.4319 | T12: ='Data Input'!W32 -> 194871.7288 | U12: ='Data Input'!X32 -> 232213.1511 | V12: ='Data Input'!Y32 -> 216311.1982 | W12: ='Data Input'!Z32 -> 201191.1397 | X12: ='Data Input'!AA32 -> 178245.9355 | Y12: ='Data Input'!AB32 -> 141071.0985 | Z12: ='Data Input'!AC32 -> 139950.4369 | AA12: ='Data Input'!AD32 -> 116401.8232 | AB12: ='Data Input'!AE32 -> 66574.7702
I14: $'000
I16: NZD Revenue
I17: Sales | J17: =$J$3&I17 -> 1Sales | L17: =SUM(O17:AJ17) -> 10540140.83 | O17: =-SUMIF(Calculations!$I$15:$I$1318,$J17,Calculations!R$15:R$1318) -> 0 | P17: =-SUMIF(Calculations!$I$15:$I$1318,$J17,Calculations!S$15:S$1318) -> 0 | Q17: =-SUMIF(Calculations!$I$15:$I$1318,$J17,Calculations!T$15:T$1318) -> 0 | R17: =-SUMIF(Calculations!$I$15:$I$1318,$J17,Calculations!U$15:U$1318) -> 0 | S17: =-SUMIF(Calculations!$I$15:$I$1318,$J17,Calculations!V$15:V$1318) -> 0 | T17: =-SUMIF(Calculations!$I$15:$I$1318,$J17,Calculations!W$15:W$1318) -> 682885.7494 | U17: =-SUMIF(Calculations!$I$15:$I$1318,$J17,Calculations!X$15:X$1318) -> 682885.7494 | V17: =-SUMIF(Calculations!$I$15:$I$1318,$J17,Calculations!Y$15:Y$1318) -> 1194100.634 | W17: =-SUMIF(Calculations!$I$15:$I$1318,$J17,Calculations!Z$15:Z$1318) -> 1194100.634 | X17: =-SUMIF(Calculations!$I$15:$I$1318,$J17,Calculations!AA$15:AA$1318) -> 1194100.634 | Y17: =-SUMIF(Calculations!$I$15:$I$1318,$J17,Calculations!AB$15:AB$1318) -> 840641.1051 | Z17: =-SUMIF(Calculations!$I$15:$I$1318,$J17,Calculations!AC$15:AC$1318) -> 840641.1051 | AA17: =-SUMIF(Calculations!$I$15:$I$1318,$J17,Calculations!AD$15:AD$1318) -> 840641.1051 | AB17: =-SUMIF(Calculations!$I$15:$I$1318,$J17,Calculations!AE$15:AE$1318) -> 736873.6922 | AC17: =-SUMIF(Calculations!$I$15:$I$1318,$J17,Calculations!AF$15:AF$1318) -> 736873.6922 | AD17: =-SUMIF(Calculations!$I$15:$I$1318,$J17,Calculations!AG$15:AG$1318) -> 736873.6922 | AE17: =-SUMIF(Calculations!$I$15:$I$1318,$J17,Calculations!AH$15:AH$1318) -> 286507.6796 | AF17: =-SUMIF(Calculations!$I$15:$I$1318,$J17,Calculations!AI$15:AI$1318) -> 286507.6796 | AG17: =-SUMIF(Calculations!$I$15:$I$1318,$J17,Calculations!AJ$15:AJ$1318) -> 286507.6796 | AH17: =-SUMIF(Calculations!$I$15:$I$1318,$J17,Calculations!AK$15:AK$1318) -> 0 | AI17: =-SUMIF(Calculations!$I$15:$I$1318,$J17,Calculations!AL$15:AL$1318) -> 0 | AJ17: =-SUMIF(Calculations!$I$15:$I$1318,$J17,Calculations!AM$15:AM$1318) -> 0
I18: Downgrade expense (excl rework) | J18: =$J$3&I18 -> 1Downgrade expense (excl rework) | L18: =SUM(O18:AJ18) -> 0 | O18: =-SUMIF(Calculations!$I$15:$I$1318,$J18,Calculations!R$15:R$1318) -> 0 | P18: =-SUMIF(Calculations!$I$15:$I$1318,$J18,Calculations!S$15:S$1318) -> 0 | Q18: =-SUMIF(Calculations!$I$15:$I$1318,$J18,Calculations!T$15:T$1318) -> 0 | R18: =-SUMIF(Calculations!$I$15:$I$1318,$J18,Calculations!U$15:U$1318) -> 0 | S18: =-SUMIF(Calculations!$I$15:$I$1318,$J18,Calculations!V$15:V$1318) -> 0 | T18: =-SUMIF(Calculations!$I$15:$I$1318,$J18,Calculations!W$15:W$1318) -> 0 | U18: =-SUMIF(Calculations!$I$15:$I$1318,$J18,Calculations!X$15:X$1318) -> 0 | V18: =-SUMIF(Calculations!$I$15:$I$1318,$J18,Calculations!Y$15:Y$1318) -> 0 | W18: =-SUMIF(Calculations!$I$15:$I$1318,$J18,Calculations!Z$15:Z$1318) -> 0 | X18: =-SUMIF(Calculations!$I$15:$I$1318,$J18,Calculations!AA$15:AA$1318) -> 0 | Y18: =-SUMIF(Calculations!$I$15:$I$1318,$J18,Calculations!AB$15:AB$1318) -> 0 | Z18: =-SUMIF(Calculations!$I$15:$I$1318,$J18,Calculations!AC$15:AC$1318) -> 0 | AA18: =-SUMIF(Calculations!$I$15:$I$1318,$J18,Calculations!AD$15:AD$1318) -> 0 | AB18: =-SUMIF(Calculations!$I$15:$I$1318,$J18,Calculations!AE$15:AE$1318) -> 0 | AC18: =-SUMIF(Calculations!$I$15:$I$1318,$J18,Calculations!AF$15:AF$1318) -> 0 | AD18: =-SUMIF(Calculations!$I$15:$I$1318,$J18,Calculations!AG$15:AG$1318) -> 0 | AE18: =-SUMIF(Calculations!$I$15:$I$1318,$J18,Calculations!AH$15:AH$1318) -> 0 | AF18: =-SUMIF(Calculations!$I$15:$I$1318,$J18,Calculations!AI$15:AI$1318) -> 0 | AG18: =-SUMIF(Calculations!$I$15:$I$1318,$J18,Calculations!AJ$15:AJ$1318) -> 0 | AH18: =-SUMIF(Calculations!$I$15:$I$1318,$J18,Calculations!AK$15:AK$1318) -> 0 | AI18: =-SUMIF(Calculations!$I$15:$I$1318,$J18,Calculations!AL$15:AL$1318) -> 0 | AJ18: =-SUMIF(Calculations!$I$15:$I$1318,$J18,Calculations!AM$15:AM$1318) -> 0
I19: Net Sales | L19: =SUM(L17:L18) -> 10540140.83 | O19: =SUM(O17:O18) -> 0 | P19: =SUM(P17:P18) -> 0 | Q19: =SUM(Q17:Q18) -> 0 | R19: 0 | S19: 0 | T19: 682885.7494 | U19: 682885.7494 | V19: 1194100.634 | W19: 1194100.634 | X19: 1194100.634 | Y19: 840641.1051 | Z19: 840641.1051 | AA19: 840641.1051 | AB19: 736873.6922 | AC19: 736873.6922 | AD19: 736873.6922 | AE19: 286507.6796 | AF19: 286507.6796 | AG19: 286507.6796 | AH19: 0 | AI19: 0 | AJ19: 0
I20: Average conversion rate (Sales) | L20: =Calculations!N334/Calculations!N342 -> 0.7881983631
I21: Non-Milk Costs
I22: Commission | J22: =$J$3&I22 -> 1Commission | L22: =SUM(O22:AJ22) -> 125524.1575 | O22: =SUMIF(Calculations!$I$15:$I$1318,$J22,Calculations!R$15:R$1318) -> 0 | P22: =SUMIF(Calculations!$I$15:$I$1318,$J22,Calculations!S$15:S$1318) -> 0 | Q22: =SUMIF(Calculations!$I$15:$I$1318,$J22,Calculations!T$15:T$1318) -> 0 | R22: =SUMIF(Calculations!$I$15:$I$1318,$J22,Calculations!U$15:U$1318) -> 0 | S22: =SUMIF(Calculations!$I$15:$I$1318,$J22,Calculations!V$15:V$1318) -> 8549.962577 | T22: =SUMIF(Calculations!$I$15:$I$1318,$J22,Calculations!W$15:W$1318) -> 9808.901751 | U22: =SUMIF(Calculations!$I$15:$I$1318,$J22,Calculations!X$15:X$1318) -> 9808.901751 | V22: =SUMIF(Calculations!$I$15:$I$1318,$J22,Calculations!Y$15:Y$1318) -> 11099.39974 | W22: =SUMIF(Calculations!$I$15:$I$1318,$J22,Calculations!Z$15:Z$1318) -> 11099.39974 | X22: =SUMIF(Calculations!$I$15:$I$1318,$J22,Calculations!AA$15:AA$1318) -> 11099.39974 | Y22: =SUMIF(Calculations!$I$15:$I$1318,$J22,Calculations!AB$15:AB$1318) -> 10477.67281 | Z22: =SUMIF(Calculations!$I$15:$I$1318,$J22,Calculations!AC$15:AC$1318) -> 10477.67281 | AA22: =SUMIF(Calculations!$I$15:$I$1318,$J22,Calculations!AD$15:AD$1318) -> 10477.67281 | AB22: =SUMIF(Calculations!$I$15:$I$1318,$J22,Calculations!AE$15:AE$1318) -> 10162.21971 | AC22: =SUMIF(Calculations!$I$15:$I$1318,$J22,Calculations!AF$15:AF$1318) -> 10162.21971 | AD22: =SUMIF(Calculations!$I$15:$I$1318,$J22,Calculations!AG$15:AG$1318) -> 10162.21971 | AE22: =SUMIF(Calculations!$I$15:$I$1318,$J22,Calculations!AH$15:AH$1318) -> 712.8382162 | AF22: =SUMIF(Calculations!$I$15:$I$1318,$J22,Calculations!AI$15:AI$1318) -> 712.8382162 | AG22: =SUMIF(Calculations!$I$15:$I$1318,$J22,Calculations!AJ$15:AJ$1318) -> 712.8382162 | AH22: =SUMIF(Calculations!$I$15:$I$1318,$J22,Calculations!AK$15:AK$1318) -> 0 | AI22: =SUMIF(Calculations!$I$15:$I$1318,$J22,Calculations!AL$15:AL$1318) -> 0 | AJ22: =SUMIF(Calculations!$I$15:$I$1318,$J22,Calculations!AM$15:AM$1318) -> 0
I23: Collection Costs | J23: 1Collection Costs | L23: =SUM(O23:AJ23) -> 367182.5224 | O23: =SUMIF(Calculations!$I$15:$I$1318,$J23,Calculations!R$15:R$1318) -> 0 | P23: =SUMIF(Calculations!$I$15:$I$1318,$J23,Calculations!S$15:S$1318) -> 0 | Q23: =SUMIF(Calculations!$I$15:$I$1318,$J23,Calculations!T$15:T$1318) -> 15179.13625 | R23: =SUMIF(Calculations!$I$15:$I$1318,$J23,Calculations!U$15:U$1318) -> 16981.87785 | S23: =SUMIF(Calculations!$I$15:$I$1318,$J23,Calculations!V$15:V$1318) -> 23070.0279 | T23: =SUMIF(Calculations!$I$15:$I$1318,$J23,Calculations!W$15:W$1318) -> 37634.64998 | U23: =SUMIF(Calculations!$I$15:$I$1318,$J23,Calculations!X$15:X$1318) -> 49075.10081 | V23: =SUMIF(Calculations!$I$15:$I$1318,$J23,Calculations!Y$15:Y$1318) -> 46233.45602 | W23: =SUMIF(Calculations!$I$15:$I$1318,$J23,Calculations!Z$15:Z$1318) -> 40441.54793 | X23: =SUMIF(Calculations!$I$15:$I$1318,$J23,Calculations!AA$15:AA$1318) -> 37247.52223 | Y23: =SUMIF(Calculations!$I$15:$I$1318,$J23,Calculations!AB$15:AB$1318) -> 28173.56076 | Z23: =SUMIF(Calculations!$I$15:$I$1318,$J23,Calculations!AC$15:AC$1318) -> 27497.8463 | AA23: =SUMIF(Calculations!$I$15:$I$1318,$J23,Calculations!AD$15:AD$1318) -> 24528.74834 | AB23: =SUMIF(Calculations!$I$15:$I$1318,$J23,Calculations!AE$15:AE$1318) -> 21119.048 | AC23: =SUMIF(Calculations!$I$15:$I$1318,$J23,Calculations!AF$15:AF$1318) -> 0 | AD23: =SUMIF(Calculations!$I$15:$I$1318,$J23,Calculations!AG$15:AG$1318) -> 0 | AE23: =SUMIF(Calculations!$I$15:$I$1318,$J23,Calculations!AH$15:AH$1318) -> 0 | AF23: =SUMIF(Calculations!$I$15:$I$1318,$J23,Calculations!AI$15:AI$1318) -> 0 | AG23: =SUMIF(Calculations!$I$15:$I$1318,$J23,Calculations!AJ$15:AJ$1318) -> 0 | AH23: =SUMIF(Calculations!$I$15:$I$1318,$J23,Calculations!AK$15:AK$1318) -> 0 | AI23: =SUMIF(Calculations!$I$15:$I$1318,$J23,Calculations!AL$15:AL$1318) -> 0 | AJ23: =SUMIF(Calculations!$I$15:$I$1318,$J23,Calculations!AM$15:AM$1318) -> 0
I24: Lactose | J24: 1Lactose | L24: =SUM(O24:AJ24) -> 602728.9459 | O24: =SUMIF(Calculations!$I$15:$I$1318,$J24,Calculations!R$15:R$1318) -> 0 | P24: =SUMIF(Calculations!$I$15:$I$1318,$J24,Calculations!S$15:S$1318) -> 0 | Q24: =SUMIF(Calculations!$I$15:$I$1318,$J24,Calculations!T$15:T$1318) -> 4140.858654 | R24: =SUMIF(Calculations!$I$15:$I$1318,$J24,Calculations!U$15:U$1318) -> 7054.157594 | S24: =SUMIF(Calculations!$I$15:$I$1318,$J24,Calculations!V$15:V$1318) -> 44661.18614 | T24: =SUMIF(Calculations!$I$15:$I$1318,$J24,Calculations!W$15:W$1318) -> 68446.51973 | U24: =SUMIF(Calculations!$I$15:$I$1318,$J24,Calculations!X$15:X$1318) -> 65935.77812 | V24: =SUMIF(Calculations!$I$15:$I$1318,$J24,Calculations!Y$15:Y$1318) -> 73770.30011 | W24: =SUMIF(Calculations!$I$15:$I$1318,$J24,Calculations!Z$15:Z$1318) -> 74546.00549 | X24: =SUMIF(Calculations!$I$15:$I$1318,$J24,Calculations!AA$15:AA$1318) -> 63071.21945 | Y24: =SUMIF(Calculations!$I$15:$I$1318,$J24,Calculations!AB$15:AB$1318) -> 54693.10096 | Z24: =SUMIF(Calculations!$I$15:$I$1318,$J24,Calculations!AC$15:AC$1318) -> 62707.3682 | AA24: =SUMIF(Calculations!$I$15:$I$1318,$J24,Calculations!AD$15:AD$1318) -> 54454.03914 | AB24: =SUMIF(Calculations!$I$15:$I$1318,$J24,Calculations!AE$15:AE$1318) -> 29248.41236 | AC24: =SUMIF(Calculations!$I$15:$I$1318,$J24,Calculations!AF$15:AF$1318) -> 0 | AD24: =SUMIF(Calculations!$I$15:$I$1318,$J24,Calculations!AG$15:AG$1318) -> 0 | AE24: =SUMIF(Calculations!$I$15:$I$1318,$J24,Calculations!AH$15:AH$1318) -> 0 | AF24: =SUMIF(Calculations!$I$15:$I$1318,$J24,Calculations!AI$15:AI$1318) -> 0 | AG24: =SUMIF(Calculations!$I$15:$I$1318,$J24,Calculations!AJ$15:AJ$1318) -> 0 | AH24: =SUMIF(Calculations!$I$15:$I$1318,$J24,Calculations!AK$15:AK$1318) -> 0 | AI24: =SUMIF(Calculations!$I$15:$I$1318,$J24,Calculations!AL$15:AL$1318) -> 0 | AJ24: =SUMIF(Calculations!$I$15:$I$1318,$J24,Calculations!AM$15:AM$1318) -> 0
I25: Operating Costs
I26: Packaging | J26: 1Packaging | L26: =SUM(O26:AJ26) -> 513725.1152 | O26: =SUMIF(Calculations!$I$15:$I$1318,$J26,Calculations!R$15:R$1318) -> 0 | P26: =SUMIF(Calculations!$I$15:$I$1318,$J26,Calculations!S$15:S$1318) -> 0 | Q26: =SUMIF(Calculations!$I$15:$I$1318,$J26,Calculations!T$15:T$1318) -> 2958.403451 | R26: =SUMIF(Calculations!$I$15:$I$1318,$J26,Calculations!U$15:U$1318) -> 4750.074699 | S26: =SUMIF(Calculations!$I$15:$I$1318,$J26,Calculations!V$15:V$1318) -> 33258.12832 | T26: =SUMIF(Calculations!$I$15:$I$1318,$J26,Calculations!W$15:W$1318) -> 62441.79747 | U26: =SUMIF(Calculations!$I$15:$I$1318,$J26,Calculations!X$15:X$1318) -> 73180.40061 | V26: =SUMIF(Calculations!$I$15:$I$1318,$J26,Calculations!Y$15:Y$1318) -> 69006.11816 | W26: =SUMIF(Calculations!$I$15:$I$1318,$J26,Calculations!Z$15:Z$1318) -> 64453.44493 | X26: =SUMIF(Calculations!$I$15:$I$1318,$J26,Calculations!AA$15:AA$1318) -> 56797.77557 | Y26: =SUMIF(Calculations!$I$15:$I$1318,$J26,Calculations!AB$15:AB$1318) -> 44502.27544 | Z26: =SUMIF(Calculations!$I$15:$I$1318,$J26,Calculations!AC$15:AC$1318) -> 44237.97368 | AA26: =SUMIF(Calculations!$I$15:$I$1318,$J26,Calculations!AD$15:AD$1318) -> 36942.437 | AB26: =SUMIF(Calculations!$I$15:$I$1318,$J26,Calculations!AE$15:AE$1318) -> 21196.28587 | AC26: =SUMIF(Calculations!$I$15:$I$1318,$J26,Calculations!AF$15:AF$1318) -> 0 | AD26: =SUMIF(Calculations!$I$15:$I$1318,$J26,Calculations!AG$15:AG$1318) -> 0 | AE26: =SUMIF(Calculations!$I$15:$I$1318,$J26,Calculations!AH$15:AH$1318) -> 0 | AF26: =SUMIF(Calculations!$I$15:$I$1318,$J26,Calculations!AI$15:AI$1318) -> 0 | AG26: =SUMIF(Calculations!$I$15:$I$1318,$J26,Calculations!AJ$15:AJ$1318) -> 0 | AH26: =SUMIF(Calculations!$I$15:$I$1318,$J26,Calculations!AK$15:AK$1318) -> 0 | AI26: =SUMIF(Calculations!$I$15:$I$1318,$J26,Calculations!AL$15:AL$1318) -> 0 | AJ26: =SUMIF(Calculations!$I$15:$I$1318,$J26,Calculations!AM$15:AM$1318) -> 0
I27: Energy - Variable | J27: 1Energy - Variable | L27: 0 | O27: =SUMIF(Calculations!$I$15:$I$1318,$J27,Calculations!R$15:R$1318) -> 0 | P27: =SUMIF(Calculations!$I$15:$I$1318,$J27,Calculations!S$15:S$1318) -> 0 | Q27: =SUMIF(Calculations!$I$15:$I$1318,$J27,Calculations!T$15:T$1318) -> 0 | R27: =SUMIF(Calculations!$I$15:$I$1318,$J27,Calculations!U$15:U$1318) -> 0 | S27: =SUMIF(Calculations!$I$15:$I$1318,$J27,Calculations!V$15:V$1318) -> 0 | T27: =SUMIF(Calculations!$I$15:$I$1318,$J27,Calculations!W$15:W$1318) -> 0 | U27: =SUMIF(Calculations!$I$15:$I$1318,$J27,Calculations!X$15:X$1318) -> 0 | V27: =SUMIF(Calculations!$I$15:$I$1318,$J27,Calculations!Y$15:Y$1318) -> 0 | W27: =SUMIF(Calculations!$I$15:$I$1318,$J27,Calculations!Z$15:Z$1318) -> 0 | X27: =SUMIF(Calculations!$I$15:$I$1318,$J27,Calculations!AA$15:AA$1318) -> 0 | Y27: =SUMIF(Calculations!$I$15:$I$1318,$J27,Calculations!AB$15:AB$1318) -> 0 | Z27: =SUMIF(Calculations!$I$15:$I$1318,$J27,Calculations!AC$15:AC$1318) -> 0 | AA27: =SUMIF(Calculations!$I$15:$I$1318,$J27,Calculations!AD$15:AD$1318) -> 0 | AB27: =SUMIF(Calculations!$I$15:$I$1318,$J27,Calculations!AE$15:AE$1318) -> 0 | AC27: =SUMIF(Calculations!$I$15:$I$1318,$J27,Calculations!AF$15:AF$1318) -> 0 | AD27: =SUMIF(Calculations!$I$15:$I$1318,$J27,Calculations!AG$15:AG$1318) -> 0 | AE27: =SUMIF(Calculations!$I$15:$I$1318,$J27,Calculations!AH$15:AH$1318) -> 0 | AF27: =SUMIF(Calculations!$I$15:$I$1318,$J27,Calculations!AI$15:AI$1318) -> 0 | AG27: =SUMIF(Calculations!$I$15:$I$1318,$J27,Calculations!AJ$15:AJ$1318) -> 0 | AH27: =SUMIF(Calculations!$I$15:$I$1318,$J27,Calculations!AK$15:AK$1318) -> 0 | AI27: =SUMIF(Calculations!$I$15:$I$1318,$J27,Calculations!AL$15:AL$1318) -> 0 | AJ27: =SUMIF(Calculations!$I$15:$I$1318,$J27,Calculations!AM$15:AM$1318) -> 0
I28: Water | J28: 1Water | L28: 0 | O28: =SUMIF(Calculations!$I$15:$I$1318,$J28,Calculations!R$15:R$1318) -> 0 | P28: =SUMIF(Calculations!$I$15:$I$1318,$J28,Calculations!S$15:S$1318) -> 0 | Q28: =SUMIF(Calculations!$I$15:$I$1318,$J28,Calculations!T$15:T$1318) -> 0 | R28: =SUMIF(Calculations!$I$15:$I$1318,$J28,Calculations!U$15:U$1318) -> 0 | S28: =SUMIF(Calculations!$I$15:$I$1318,$J28,Calculations!V$15:V$1318) -> 0 | T28: =SUMIF(Calculations!$I$15:$I$1318,$J28,Calculations!W$15:W$1318) -> 0 | U28: =SUMIF(Calculations!$I$15:$I$1318,$J28,Calculations!X$15:X$1318) -> 0 | V28: =SUMIF(Calculations!$I$15:$I$1318,$J28,Calculations!Y$15:Y$1318) -> 0 | W28: =SUMIF(Calculations!$I$15:$I$1318,$J28,Calculations!Z$15:Z$1318) -> 0 | X28: =SUMIF(Calculations!$I$15:$I$1318,$J28,Calculations!AA$15:AA$1318) -> 0 | Y28: =SUMIF(Calculations!$I$15:$I$1318,$J28,Calculations!AB$15:AB$1318) -> 0 | Z28: =SUMIF(Calculations!$I$15:$I$1318,$J28,Calculations!AC$15:AC$1318) -> 0 | AA28: =SUMIF(Calculations!$I$15:$I$1318,$J28,Calculations!AD$15:AD$1318) -> 0 | AB28: =SUMIF(Calculations!$I$15:$I$1318,$J28,Calculations!AE$15:AE$1318) -> 0 | AC28: =SUMIF(Calculations!$I$15:$I$1318,$J28,Calculations!AF$15:AF$1318) -> 0 | AD28: =SUMIF(Calculations!$I$15:$I$1318,$J28,Calculations!AG$15:AG$1318) -> 0 | AE28: =SUMIF(Calculations!$I$15:$I$1318,$J28,Calculations!AH$15:AH$1318) -> 0 | AF28: =SUMIF(Calculations!$I$15:$I$1318,$J28,Calculations!AI$15:AI$1318) -> 0 | AG28: =SUMIF(Calculations!$I$15:$I$1318,$J28,Calculations!AJ$15:AJ$1318) -> 0 | AH28: =SUMIF(Calculations!$I$15:$I$1318,$J28,Calculations!AK$15:AK$1318) -> 0 | AI28: =SUMIF(Calculations!$I$15:$I$1318,$J28,Calculations!AL$15:AL$1318) -> 0 | AJ28: =SUMIF(Calculations!$I$15:$I$1318,$J28,Calculations!AM$15:AM$1318) -> 0
I29: Cleaning & CIP | J29: 1Cleaning & CIP | L29: 0 | O29: =SUMIF(Calculations!$I$15:$I$1318,$J29,Calculations!R$15:R$1318) -> 0 | P29: =SUMIF(Calculations!$I$15:$I$1318,$J29,Calculations!S$15:S$1318) -> 0 | Q29: =SUMIF(Calculations!$I$15:$I$1318,$J29,Calculations!T$15:T$1318) -> 0 | R29: =SUMIF(Calculations!$I$15:$I$1318,$J29,Calculations!U$15:U$1318) -> 0 | S29: =SUMIF(Calculations!$I$15:$I$1318,$J29,Calculations!V$15:V$1318) -> 0 | T29: =SUMIF(Calculations!$I$15:$I$1318,$J29,Calculations!W$15:W$1318) -> 0 | U29: =SUMIF(Calculations!$I$15:$I$1318,$J29,Calculations!X$15:X$1318) -> 0 | V29: =SUMIF(Calculations!$I$15:$I$1318,$J29,Calculations!Y$15:Y$1318) -> 0 | W29: =SUMIF(Calculations!$I$15:$I$1318,$J29,Calculations!Z$15:Z$1318) -> 0 | X29: =SUMIF(Calculations!$I$15:$I$1318,$J29,Calculations!AA$15:AA$1318) -> 0 | Y29: =SUMIF(Calculations!$I$15:$I$1318,$J29,Calculations!AB$15:AB$1318) -> 0 | Z29: =SUMIF(Calculations!$I$15:$I$1318,$J29,Calculations!AC$15:AC$1318) -> 0 | AA29: =SUMIF(Calculations!$I$15:$I$1318,$J29,Calculations!AD$15:AD$1318) -> 0 | AB29: =SUMIF(Calculations!$I$15:$I$1318,$J29,Calculations!AE$15:AE$1318) -> 0 | AC29: =SUMIF(Calculations!$I$15:$I$1318,$J29,Calculations!AF$15:AF$1318) -> 0 | AD29: =SUMIF(Calculations!$I$15:$I$1318,$J29,Calculations!AG$15:AG$1318) -> 0 | AE29: =SUMIF(Calculations!$I$15:$I$1318,$J29,Calculations!AH$15:AH$1318) -> 0 | AF29: =SUMIF(Calculations!$I$15:$I$1318,$J29,Calculations!AI$15:AI$1318) -> 0 | AG29: =SUMIF(Calculations!$I$15:$I$1318,$J29,Calculations!AJ$15:AJ$1318) -> 0 | AH29: =SUMIF(Calculations!$I$15:$I$1318,$J29,Calculations!AK$15:AK$1318) -> 0 | AI29: =SUMIF(Calculations!$I$15:$I$1318,$J29,Calculations!AL$15:AL$1318) -> 0 | AJ29: =SUMIF(Calculations!$I$15:$I$1318,$J29,Calculations!AM$15:AM$1318) -> 0
I30: Consumables | J30: 1Consumables | L30: 0 | O30: =SUMIF(Calculations!$I$15:$I$1318,$J30,Calculations!R$15:R$1318) -> 0 | P30: =SUMIF(Calculations!$I$15:$I$1318,$J30,Calculations!S$15:S$1318) -> 0 | Q30: =SUMIF(Calculations!$I$15:$I$1318,$J30,Calculations!T$15:T$1318) -> 0 | R30: =SUMIF(Calculations!$I$15:$I$1318,$J30,Calculations!U$15:U$1318) -> 0 | S30: =SUMIF(Calculations!$I$15:$I$1318,$J30,Calculations!V$15:V$1318) -> 0 | T30: =SUMIF(Calculations!$I$15:$I$1318,$J30,Calculations!W$15:W$1318) -> 0 | U30: =SUMIF(Calculations!$I$15:$I$1318,$J30,Calculations!X$15:X$1318) -> 0 | V30: =SUMIF(Calculations!$I$15:$I$1318,$J30,Calculations!Y$15:Y$1318) -> 0 | W30: =SUMIF(Calculations!$I$15:$I$1318,$J30,Calculations!Z$15:Z$1318) -> 0 | X30: =SUMIF(Calculations!$I$15:$I$1318,$J30,Calculations!AA$15:AA$1318) -> 0 | Y30: =SUMIF(Calculations!$I$15:$I$1318,$J30,Calculations!AB$15:AB$1318) -> 0 | Z30: =SUMIF(Calculations!$I$15:$I$1318,$J30,Calculations!AC$15:AC$1318) -> 0 | AA30: =SUMIF(Calculations!$I$15:$I$1318,$J30,Calculations!AD$15:AD$1318) -> 0 | AB30: =SUMIF(Calculations!$I$15:$I$1318,$J30,Calculations!AE$15:AE$1318) -> 0 | AC30: =SUMIF(Calculations!$I$15:$I$1318,$J30,Calculations!AF$15:AF$1318) -> 0 | AD30: =SUMIF(Calculations!$I$15:$I$1318,$J30,Calculations!AG$15:AG$1318) -> 0 | AE30: =SUMIF(Calculations!$I$15:$I$1318,$J30,Calculations!AH$15:AH$1318) -> 0 | AF30: =SUMIF(Calculations!$I$15:$I$1318,$J30,Calculations!AI$15:AI$1318) -> 0 | AG30: =SUMIF(Calculations!$I$15:$I$1318,$J30,Calculations!AJ$15:AJ$1318) -> 0 | AH30: =SUMIF(Calculations!$I$15:$I$1318,$J30,Calculations!AK$15:AK$1318) -> 0 | AI30: =SUMIF(Calculations!$I$15:$I$1318,$J30,Calculations!AL$15:AL$1318) -> 0 | AJ30: =SUMIF(Calculations!$I$15:$I$1318,$J30,Calculations!AM$15:AM$1318) -> 0
I31: Effluent | J31: 1Effluent | L31: 0 | O31: =SUMIF(Calculations!$I$15:$I$1318,$J31,Calculations!R$15:R$1318) -> 0 | P31: =SUMIF(Calculations!$I$15:$I$1318,$J31,Calculations!S$15:S$1318) -> 0 | Q31: =SUMIF(Calculations!$I$15:$I$1318,$J31,Calculations!T$15:T$1318) -> 0 | R31: =SUMIF(Calculations!$I$15:$I$1318,$J31,Calculations!U$15:U$1318) -> 0 | S31: =SUMIF(Calculations!$I$15:$I$1318,$J31,Calculations!V$15:V$1318) -> 0 | T31: =SUMIF(Calculations!$I$15:$I$1318,$J31,Calculations!W$15:W$1318) -> 0 | U31: =SUMIF(Calculations!$I$15:$I$1318,$J31,Calculations!X$15:X$1318) -> 0 | V31: =SUMIF(Calculations!$I$15:$I$1318,$J31,Calculations!Y$15:Y$1318) -> 0 | W31: =SUMIF(Calculations!$I$15:$I$1318,$J31,Calculations!Z$15:Z$1318) -> 0 | X31: =SUMIF(Calculations!$I$15:$I$1318,$J31,Calculations!AA$15:AA$1318) -> 0 | Y31: =SUMIF(Calculations!$I$15:$I$1318,$J31,Calculations!AB$15:AB$1318) -> 0 | Z31: =SUMIF(Calculations!$I$15:$I$1318,$J31,Calculations!AC$15:AC$1318) -> 0 | AA31: =SUMIF(Calculations!$I$15:$I$1318,$J31,Calculations!AD$15:AD$1318) -> 0 | AB31: =SUMIF(Calculations!$I$15:$I$1318,$J31,Calculations!AE$15:AE$1318) -> 0 | AC31: =SUMIF(Calculations!$I$15:$I$1318,$J31,Calculations!AF$15:AF$1318) -> 0 | AD31: =SUMIF(Calculations!$I$15:$I$1318,$J31,Calculations!AG$15:AG$1318) -> 0 | AE31: =SUMIF(Calculations!$I$15:$I$1318,$J31,Calculations!AH$15:AH$1318) -> 0 | AF31: =SUMIF(Calculations!$I$15:$I$1318,$J31,Calculations!AI$15:AI$1318) -> 0 | AG31: =SUMIF(Calculations!$I$15:$I$1318,$J31,Calculations!AJ$15:AJ$1318) -> 0 | AH31: =SUMIF(Calculations!$I$15:$I$1318,$J31,Calculations!AK$15:AK$1318) -> 0 | AI31: =SUMIF(Calculations!$I$15:$I$1318,$J31,Calculations!AL$15:AL$1318) -> 0 | AJ31: =SUMIF(Calculations!$I$15:$I$1318,$J31,Calculations!AM$15:AM$1318) -> 0
I32: Laboratory | J32: 1Laboratory | L32: 0 | O32: =SUMIF(Calculations!$I$15:$I$1318,$J32,Calculations!R$15:R$1318) -> 0 | P32: =SUMIF(Calculations!$I$15:$I$1318,$J32,Calculations!S$15:S$1318) -> 0 | Q32: =SUMIF(Calculations!$I$15:$I$1318,$J32,Calculations!T$15:T$1318) -> 0 | R32: =SUMIF(Calculations!$I$15:$I$1318,$J32,Calculations!U$15:U$1318) -> 0 | S32: =SUMIF(Calculations!$I$15:$I$1318,$J32,Calculations!V$15:V$1318) -> 0 | T32: =SUMIF(Calculations!$I$15:$I$1318,$J32,Calculations!W$15:W$1318) -> 0 | U32: =SUMIF(Calculations!$I$15:$I$1318,$J32,Calculations!X$15:X$1318) -> 0 | V32: =SUMIF(Calculations!$I$15:$I$1318,$J32,Calculations!Y$15:Y$1318) -> 0 | W32: =SUMIF(Calculations!$I$15:$I$1318,$J32,Calculations!Z$15:Z$1318) -> 0 | X32: =SUMIF(Calculations!$I$15:$I$1318,$J32,Calculations!AA$15:AA$1318) -> 0 | Y32: =SUMIF(Calculations!$I$15:$I$1318,$J32,Calculations!AB$15:AB$1318) -> 0 | Z32: =SUMIF(Calculations!$I$15:$I$1318,$J32,Calculations!AC$15:AC$1318) -> 0 | AA32: =SUMIF(Calculations!$I$15:$I$1318,$J32,Calculations!AD$15:AD$1318) -> 0 | AB32: =SUMIF(Calculations!$I$15:$I$1318,$J32,Calculations!AE$15:AE$1318) -> 0 | AC32: =SUMIF(Calculations!$I$15:$I$1318,$J32,Calculations!AF$15:AF$1318) -> 0 | AD32: =SUMIF(Calculations!$I$15:$I$1318,$J32,Calculations!AG$15:AG$1318) -> 0 | AE32: =SUMIF(Calculations!$I$15:$I$1318,$J32,Calculations!AH$15:AH$1318) -> 0 | AF32: =SUMIF(Calculations!$I$15:$I$1318,$J32,Calculations!AI$15:AI$1318) -> 0 | AG32: =SUMIF(Calculations!$I$15:$I$1318,$J32,Calculations!AJ$15:AJ$1318) -> 0 | AH32: =SUMIF(Calculations!$I$15:$I$1318,$J32,Calculations!AK$15:AK$1318) -> 0 | AI32: =SUMIF(Calculations!$I$15:$I$1318,$J32,Calculations!AL$15:AL$1318) -> 0 | AJ32: =SUMIF(Calculations!$I$15:$I$1318,$J32,Calculations!AM$15:AM$1318) -> 0
I33: Variable operating costs | L33: =SUM(L26:L32) -> 513725.1152 | O33: =SUM(O26:O32) -> 0 | P33: 0 | Q33: 2958.403451 | R33: 4750.074699 | S33: 33258.12832 | T33: 62441.79747 | U33: 73180.40061 | V33: 69006.11816 | W33: 64453.44493 | X33: 56797.77557 | Y33: 44502.27544 | Z33: 44237.97368 | AA33: 36942.437 | AB33: 21196.28587 | AC33: 0 | AD33: 0 | AE33: 0 | AF33: 0 | AG33: 0 | AH33: 0 | AI33: 0 | AJ33: 0
I34: Wages & ERE | J34: 1Wages & ERE | L34: =SUM(O34:AJ34) -> 0 | O34: =SUMIF(Calculations!$I$15:$I$1318,$J34,Calculations!R$15:R$1318) -> 0 | P34: =SUMIF(Calculations!$I$15:$I$1318,$J34,Calculations!S$15:S$1318) -> 0 | Q34: =SUMIF(Calculations!$I$15:$I$1318,$J34,Calculations!T$15:T$1318) -> 0 | R34: =SUMIF(Calculations!$I$15:$I$1318,$J34,Calculations!U$15:U$1318) -> 0 | S34: =SUMIF(Calculations!$I$15:$I$1318,$J34,Calculations!V$15:V$1318) -> 0 | T34: =SUMIF(Calculations!$I$15:$I$1318,$J34,Calculations!W$15:W$1318) -> 0 | U34: =SUMIF(Calculations!$I$15:$I$1318,$J34,Calculations!X$15:X$1318) -> 0 | V34: =SUMIF(Calculations!$I$15:$I$1318,$J34,Calculations!Y$15:Y$1318) -> 0 | W34: =SUMIF(Calculations!$I$15:$I$1318,$J34,Calculations!Z$15:Z$1318) -> 0 | X34: =SUMIF(Calculations!$I$15:$I$1318,$J34,Calculations!AA$15:AA$1318) -> 0 | Y34: =SUMIF(Calculations!$I$15:$I$1318,$J34,Calculations!AB$15:AB$1318) -> 0 | Z34: =SUMIF(Calculations!$I$15:$I$1318,$J34,Calculations!AC$15:AC$1318) -> 0 | AA34: =SUMIF(Calculations!$I$15:$I$1318,$J34,Calculations!AD$15:AD$1318) -> 0 | AB34: =SUMIF(Calculations!$I$15:$I$1318,$J34,Calculations!AE$15:AE$1318) -> 0 | AC34: =SUMIF(Calculations!$I$15:$I$1318,$J34,Calculations!AF$15:AF$1318) -> 0 | AD34: =SUMIF(Calculations!$I$15:$I$1318,$J34,Calculations!AG$15:AG$1318) -> 0 | AE34: =SUMIF(Calculations!$I$15:$I$1318,$J34,Calculations!AH$15:AH$1318) -> 0 | AF34: =SUMIF(Calculations!$I$15:$I$1318,$J34,Calculations!AI$15:AI$1318) -> 0 | AG34: =SUMIF(Calculations!$I$15:$I$1318,$J34,Calculations!AJ$15:AJ$1318) -> 0 | AH34: =SUMIF(Calculations!$I$15:$I$1318,$J34,Calculations!AK$15:AK$1318) -> 0 | AI34: =SUMIF(Calculations!$I$15:$I$1318,$J34,Calculations!AL$15:AL$1318) -> 0 | AJ34: =SUMIF(Calculations!$I$15:$I$1318,$J34,Calculations!AM$15:AM$1318) -> 0
I35: Repairs & Maintenance | J35: 1Repairs & Maintenance | L35: =SUM(O35:AJ35) -> 0 | O35: =SUMIF(Calculations!$I$15:$I$1318,$J35,Calculations!R$15:R$1318) -> 0 | P35: =SUMIF(Calculations!$I$15:$I$1318,$J35,Calculations!S$15:S$1318) -> 0 | Q35: =SUMIF(Calculations!$I$15:$I$1318,$J35,Calculations!T$15:T$1318) -> 0 | R35: =SUMIF(Calculations!$I$15:$I$1318,$J35,Calculations!U$15:U$1318) -> 0 | S35: =SUMIF(Calculations!$I$15:$I$1318,$J35,Calculations!V$15:V$1318) -> 0 | T35: =SUMIF(Calculations!$I$15:$I$1318,$J35,Calculations!W$15:W$1318) -> 0 | U35: =SUMIF(Calculations!$I$15:$I$1318,$J35,Calculations!X$15:X$1318) -> 0 | V35: =SUMIF(Calculations!$I$15:$I$1318,$J35,Calculations!Y$15:Y$1318) -> 0 | W35: =SUMIF(Calculations!$I$15:$I$1318,$J35,Calculations!Z$15:Z$1318) -> 0 | X35: =SUMIF(Calculations!$I$15:$I$1318,$J35,Calculations!AA$15:AA$1318) -> 0 | Y35: =SUMIF(Calculations!$I$15:$I$1318,$J35,Calculations!AB$15:AB$1318) -> 0 | Z35: =SUMIF(Calculations!$I$15:$I$1318,$J35,Calculations!AC$15:AC$1318) -> 0 | AA35: =SUMIF(Calculations!$I$15:$I$1318,$J35,Calculations!AD$15:AD$1318) -> 0 | AB35: =SUMIF(Calculations!$I$15:$I$1318,$J35,Calculations!AE$15:AE$1318) -> 0 | AC35: =SUMIF(Calculations!$I$15:$I$1318,$J35,Calculations!AF$15:AF$1318) -> 0 | AD35: =SUMIF(Calculations!$I$15:$I$1318,$J35,Calculations!AG$15:AG$1318) -> 0 | AE35: =SUMIF(Calculations!$I$15:$I$1318,$J35,Calculations!AH$15:AH$1318) -> 0 | AF35: =SUMIF(Calculations!$I$15:$I$1318,$J35,Calculations!AI$15:AI$1318) -> 0 | AG35: =SUMIF(Calculations!$I$15:$I$1318,$J35,Calculations!AJ$15:AJ$1318) -> 0 | AH35: =SUMIF(Calculations!$I$15:$I$1318,$J35,Calculations!AK$15:AK$1318) -> 0 | AI35: =SUMIF(Calculations!$I$15:$I$1318,$J35,Calculations!AL$15:AL$1318) -> 0 | AJ35: =SUMIF(Calculations!$I$15:$I$1318,$J35,Calculations!AM$15:AM$1318) -> 0
I36: Energy - Fixed | J36: =$J$3&I36 -> 1Energy - Fixed | L36: =SUM(O36:AJ36) -> 0 | O36: =SUMIF(Calculations!$I$15:$I$1318,$J36,Calculations!R$15:R$1318) -> 0 | P36: =SUMIF(Calculations!$I$15:$I$1318,$J36,Calculations!S$15:S$1318) -> 0 | Q36: =SUMIF(Calculations!$I$15:$I$1318,$J36,Calculations!T$15:T$1318) -> 0 | R36: =SUMIF(Calculations!$I$15:$I$1318,$J36,Calculations!U$15:U$1318) -> 0 | S36: =SUMIF(Calculations!$I$15:$I$1318,$J36,Calculations!V$15:V$1318) -> 0 | T36: =SUMIF(Calculations!$I$15:$I$1318,$J36,Calculations!W$15:W$1318) -> 0 | U36: =SUMIF(Calculations!$I$15:$I$1318,$J36,Calculations!X$15:X$1318) -> 0 | V36: =SUMIF(Calculations!$I$15:$I$1318,$J36,Calculations!Y$15:Y$1318) -> 0 | W36: =SUMIF(Calculations!$I$15:$I$1318,$J36,Calculations!Z$15:Z$1318) -> 0 | X36: =SUMIF(Calculations!$I$15:$I$1318,$J36,Calculations!AA$15:AA$1318) -> 0 | Y36: =SUMIF(Calculations!$I$15:$I$1318,$J36,Calculations!AB$15:AB$1318) -> 0 | Z36: =SUMIF(Calculations!$I$15:$I$1318,$J36,Calculations!AC$15:AC$1318) -> 0 | AA36: =SUMIF(Calculations!$I$15:$I$1318,$J36,Calculations!AD$15:AD$1318) -> 0 | AB36: =SUMIF(Calculations!$I$15:$I$1318,$J36,Calculations!AE$15:AE$1318) -> 0 | AC36: =SUMIF(Calculations!$I$15:$I$1318,$J36,Calculations!AF$15:AF$1318) -> 0 | AD36: =SUMIF(Calculations!$I$15:$I$1318,$J36,Calculations!AG$15:AG$1318) -> 0 | AE36: =SUMIF(Calculations!$I$15:$I$1318,$J36,Calculations!AH$15:AH$1318) -> 0 | AF36: =SUMIF(Calculations!$I$15:$I$1318,$J36,Calculations!AI$15:AI$1318) -> 0 | AG36: =SUMIF(Calculations!$I$15:$I$1318,$J36,Calculations!AJ$15:AJ$1318) -> 0 | AH36: =SUMIF(Calculations!$I$15:$I$1318,$J36,Calculations!AK$15:AK$1318) -> 0 | AI36: =SUMIF(Calculations!$I$15:$I$1318,$J36,Calculations!AL$15:AL$1318) -> 0 | AJ36: =SUMIF(Calculations!$I$15:$I$1318,$J36,Calculations!AM$15:AM$1318) -> 0
I37: Site Overheads | J37: 1Site Overheads | L37: =SUM(O37:AJ37) -> 387041.7228 | O37: =SUMIF(Calculations!$I$15:$I$1318,$J37,Calculations!R$15:R$1318) -> 0 | P37: =SUMIF(Calculations!$I$15:$I$1318,$J37,Calculations!S$15:S$1318) -> 0 | Q37: =SUMIF(Calculations!$I$15:$I$1318,$J37,Calculations!T$15:T$1318) -> 36922.5138 | R37: =SUMIF(Calculations!$I$15:$I$1318,$J37,Calculations!U$15:U$1318) -> 36943.23344 | S37: =SUMIF(Calculations!$I$15:$I$1318,$J37,Calculations!V$15:V$1318) -> 33902.6147 | T37: =SUMIF(Calculations!$I$15:$I$1318,$J37,Calculations!W$15:W$1318) -> 31124.48917 | U37: =SUMIF(Calculations!$I$15:$I$1318,$J37,Calculations!X$15:X$1318) -> 31665.91977 | V37: =SUMIF(Calculations!$I$15:$I$1318,$J37,Calculations!Y$15:Y$1318) -> 30042.54534 | W37: =SUMIF(Calculations!$I$15:$I$1318,$J37,Calculations!Z$15:Z$1318) -> 30495.99131 | X37: =SUMIF(Calculations!$I$15:$I$1318,$J37,Calculations!AA$15:AA$1318) -> 28922.30114 | Y37: =SUMIF(Calculations!$I$15:$I$1318,$J37,Calculations!AB$15:AB$1318) -> 28047.43369 | Z37: =SUMIF(Calculations!$I$15:$I$1318,$J37,Calculations!AC$15:AC$1318) -> 30316.57892 | AA37: =SUMIF(Calculations!$I$15:$I$1318,$J37,Calculations!AD$15:AD$1318) -> 31738.74967 | AB37: =SUMIF(Calculations!$I$15:$I$1318,$J37,Calculations!AE$15:AE$1318) -> 36919.35187 | AC37: =SUMIF(Calculations!$I$15:$I$1318,$J37,Calculations!AF$15:AF$1318) -> 0 | AD37: =SUMIF(Calculations!$I$15:$I$1318,$J37,Calculations!AG$15:AG$1318) -> 0 | AE37: =SUMIF(Calculations!$I$15:$I$1318,$J37,Calculations!AH$15:AH$1318) -> 0 | AF37: =SUMIF(Calculations!$I$15:$I$1318,$J37,Calculations!AI$15:AI$1318) -> 0 | AG37: =SUMIF(Calculations!$I$15:$I$1318,$J37,Calculations!AJ$15:AJ$1318) -> 0 | AH37: =SUMIF(Calculations!$I$15:$I$1318,$J37,Calculations!AK$15:AK$1318) -> 0 | AI37: =SUMIF(Calculations!$I$15:$I$1318,$J37,Calculations!AL$15:AL$1318) -> 0 | AJ37: =SUMIF(Calculations!$I$15:$I$1318,$J37,Calculations!AM$15:AM$1318) -> 0
I38: Fixed operating costs | L38: =SUM(L34:L37) -> 387041.7228 | O38: =SUM(O34:O37) -> 0 | P38: =SUM(P34:P37) -> 0 | Q38: =SUM(Q34:Q37) -> 36922.5138 | R38: =SUM(R34:R37) -> 36943.23344 | S38: 33902.6147 | T38: 31124.48917 | U38: 31665.91977 | V38: 30042.54534 | W38: 30495.99131 | X38: 28922.30114 | Y38: 28047.43369 | Z38: 30316.57892 | AA38: 31738.74967 | AB38: 36919.35187 | AC38: 0 | AD38: 0 | AE38: 0 | AF38: 0 | AG38: 0 | AH38: 0 | AI38: 0 | AJ38: 0
I39: Operating Costs | L39: =L33+L38 -> 900766.838 | O39: =SUM(O33,O38) -> 0 | P39: =SUM(P33,P38) -> 0 | Q39: =SUM(Q33,Q38) -> 39880.91725 | R39: =SUM(R33,R38) -> 41693.30814 | S39: 67160.74301 | T39: 93566.28665 | U39: 104846.3204 | V39: 99048.66349 | W39: 94949.43624 | X39: 85720.07671 | Y39: 72549.70913 | Z39: 74554.5526 | AA39: 68681.18667 | AB39: 58115.63773 | AC39: 0 | AD39: 0 | AE39: 0 | AF39: 0 | AG39: 0 | AH39: 0 | AI39: 0 | AJ39: 0
I40: Variable supply chain costs | J40: 1Variable supply chain costs | L40: =SUM(O40:AJ40) -> 234733.3534 | O40: =SUMIF(Calculations!$I$15:$I$1318,$J40,Calculations!R$15:R$1318) -> 0 | P40: =SUMIF(Calculations!$I$15:$I$1318,$J40,Calculations!S$15:S$1318) -> 0 | Q40: =SUMIF(Calculations!$I$15:$I$1318,$J40,Calculations!T$15:T$1318) -> 0 | R40: =SUMIF(Calculations!$I$15:$I$1318,$J40,Calculations!U$15:U$1318) -> 0 | S40: =SUMIF(Calculations!$I$15:$I$1318,$J40,Calculations!V$15:V$1318) -> 0 | T40: =SUMIF(Calculations!$I$15:$I$1318,$J40,Calculations!W$15:W$1318) -> 12890.73437 | U40: =SUMIF(Calculations!$I$15:$I$1318,$J40,Calculations!X$15:X$1318) -> 12890.73437 | V40: =SUMIF(Calculations!$I$15:$I$1318,$J40,Calculations!Y$15:Y$1318) -> 26104.61088 | W40: =SUMIF(Calculations!$I$15:$I$1318,$J40,Calculations!Z$15:Z$1318) -> 26104.61088 | X40: =SUMIF(Calculations!$I$15:$I$1318,$J40,Calculations!AA$15:AA$1318) -> 26104.61088 | Y40: =SUMIF(Calculations!$I$15:$I$1318,$J40,Calculations!AB$15:AB$1318) -> 19738.52359 | Z40: =SUMIF(Calculations!$I$15:$I$1318,$J40,Calculations!AC$15:AC$1318) -> 19738.52359 | AA40: =SUMIF(Calculations!$I$15:$I$1318,$J40,Calculations!AD$15:AD$1318) -> 19738.52359 | AB40: =SUMIF(Calculations!$I$15:$I$1318,$J40,Calculations!AE$15:AE$1318) -> 16508.48496 | AC40: =SUMIF(Calculations!$I$15:$I$1318,$J40,Calculations!AF$15:AF$1318) -> 16508.48496 | AD40: =SUMIF(Calculations!$I$15:$I$1318,$J40,Calculations!AG$15:AG$1318) -> 16508.48496 | AE40: =SUMIF(Calculations!$I$15:$I$1318,$J40,Calculations!AH$15:AH$1318) -> 7299.008783 | AF40: =SUMIF(Calculations!$I$15:$I$1318,$J40,Calculations!AI$15:AI$1318) -> 7299.008783 | AG40: =SUMIF(Calculations!$I$15:$I$1318,$J40,Calculations!AJ$15:AJ$1318) -> 7299.008783 | AH40: =SUMIF(Calculations!$I$15:$I$1318,$J40,Calculations!AK$15:AK$1318) -> 0 | AI40: =SUMIF(Calculations!$I$15:$I$1318,$J40,Calculations!AL$15:AL$1318) -> 0 | AJ40: =SUMIF(Calculations!$I$15:$I$1318,$J40,Calculations!AM$15:AM$1318) -> 0
I41: Fixed supply chain costs | J41: 1Fixed supply chain costs | L41: =SUM(O41:AJ41) -> 0 | O41: =SUMIF(Calculations!$I$15:$I$1318,$J41,Calculations!R$15:R$1318) -> 0 | P41: =SUMIF(Calculations!$I$15:$I$1318,$J41,Calculations!S$15:S$1318) -> 0 | Q41: =SUMIF(Calculations!$I$15:$I$1318,$J41,Calculations!T$15:T$1318) -> 0 | R41: =SUMIF(Calculations!$I$15:$I$1318,$J41,Calculations!U$15:U$1318) -> 0 | S41: =SUMIF(Calculations!$I$15:$I$1318,$J41,Calculations!V$15:V$1318) -> 0 | T41: =SUMIF(Calculations!$I$15:$I$1318,$J41,Calculations!W$15:W$1318) -> 0 | U41: =SUMIF(Calculations!$I$15:$I$1318,$J41,Calculations!X$15:X$1318) -> 0 | V41: =SUMIF(Calculations!$I$15:$I$1318,$J41,Calculations!Y$15:Y$1318) -> 0 | W41: =SUMIF(Calculations!$I$15:$I$1318,$J41,Calculations!Z$15:Z$1318) -> 0 | X41: =SUMIF(Calculations!$I$15:$I$1318,$J41,Calculations!AA$15:AA$1318) -> 0 | Y41: =SUMIF(Calculations!$I$15:$I$1318,$J41,Calculations!AB$15:AB$1318) -> 0 | Z41: =SUMIF(Calculations!$I$15:$I$1318,$J41,Calculations!AC$15:AC$1318) -> 0 | AA41: =SUMIF(Calculations!$I$15:$I$1318,$J41,Calculations!AD$15:AD$1318) -> 0 | AB41: =SUMIF(Calculations!$I$15:$I$1318,$J41,Calculations!AE$15:AE$1318) -> 0 | AC41: =SUMIF(Calculations!$I$15:$I$1318,$J41,Calculations!AF$15:AF$1318) -> 0 | AD41: =SUMIF(Calculations!$I$15:$I$1318,$J41,Calculations!AG$15:AG$1318) -> 0 | AE41: =SUMIF(Calculations!$I$15:$I$1318,$J41,Calculations!AH$15:AH$1318) -> 0 | AF41: =SUMIF(Calculations!$I$15:$I$1318,$J41,Calculations!AI$15:AI$1318) -> 0 | AG41: =SUMIF(Calculations!$I$15:$I$1318,$J41,Calculations!AJ$15:AJ$1318) -> 0 | AH41: =SUMIF(Calculations!$I$15:$I$1318,$J41,Calculations!AK$15:AK$1318) -> 0 | AI41: =SUMIF(Calculations!$I$15:$I$1318,$J41,Calculations!AL$15:AL$1318) -> 0 | AJ41: =SUMIF(Calculations!$I$15:$I$1318,$J41,Calculations!AM$15:AM$1318) -> 0
I42: Supply Chain | L42: =SUM(L40:L41) -> 234733.3534 | O42: =SUM(O40:O41) -> 0 | P42: =SUM(P40:P41) -> 0 | Q42: =SUM(Q40:Q41) -> 0 | R42: 0 | S42: 0 | T42: 12890.73437 | U42: 12890.73437 | V42: 26104.61088 | W42: 26104.61088 | X42: 26104.61088 | Y42: 19738.52359 | Z42: 19738.52359 | AA42: 19738.52359 | AB42: 16508.48496 | AC42: 16508.48496 | AD42: 16508.48496 | AE42: 7299.008783 | AF42: 7299.008783 | AG42: 7299.008783 | AH42: 0 | AI42: 0 | AJ42: 0
I43: Administration | J43: 1Administration | L43: =SUM(O43:AJ43) -> 260645.4994 | O43: =SUMIF(Calculations!$I$15:$I$1318,$J43,Calculations!R$15:R$1318) -> 0 | P43: =SUMIF(Calculations!$I$15:$I$1318,$J43,Calculations!S$15:S$1318) -> 0 | Q43: =SUMIF(Calculations!$I$15:$I$1318,$J43,Calculations!T$15:T$1318) -> 18081.17628 | R43: =SUMIF(Calculations!$I$15:$I$1318,$J43,Calculations!U$15:U$1318) -> 42096.72711 | S43: =SUMIF(Calculations!$I$15:$I$1318,$J43,Calculations!V$15:V$1318) -> 19707.67248 | T43: =SUMIF(Calculations!$I$15:$I$1318,$J43,Calculations!W$15:W$1318) -> 20108.10684 | U43: =SUMIF(Calculations!$I$15:$I$1318,$J43,Calculations!X$15:X$1318) -> 22391.41918 | V43: =SUMIF(Calculations!$I$15:$I$1318,$J43,Calculations!Y$15:Y$1318) -> 19035.13364 | W43: =SUMIF(Calculations!$I$15:$I$1318,$J43,Calculations!Z$15:Z$1318) -> 21319.01085 | X43: =SUMIF(Calculations!$I$15:$I$1318,$J43,Calculations!AA$15:AA$1318) -> 18906.35511 | Y43: =SUMIF(Calculations!$I$15:$I$1318,$J43,Calculations!AB$15:AB$1318) -> 17454.89527 | Z43: =SUMIF(Calculations!$I$15:$I$1318,$J43,Calculations!AC$15:AC$1318) -> 20517.68189 | AA43: =SUMIF(Calculations!$I$15:$I$1318,$J43,Calculations!AD$15:AD$1318) -> 20006.01523 | AB43: =SUMIF(Calculations!$I$15:$I$1318,$J43,Calculations!AE$15:AE$1318) -> 21021.30556 | AC43: =SUMIF(Calculations!$I$15:$I$1318,$J43,Calculations!AF$15:AF$1318) -> 0 | AD43: =SUMIF(Calculations!$I$15:$I$1318,$J43,Calculations!AG$15:AG$1318) -> 0 | AE43: =SUMIF(Calculations!$I$15:$I$1318,$J43,Calculations!AH$15:AH$1318) -> 0 | AF43: =SUMIF(Calculations!$I$15:$I$1318,$J43,Calculations!AI$15:AI$1318) -> 0 | AG43: =SUMIF(Calculations!$I$15:$I$1318,$J43,Calculations!AJ$15:AJ$1318) -> 0 | AH43: =SUMIF(Calculations!$I$15:$I$1318,$J43,Calculations!AK$15:AK$1318) -> 0 | AI43: =SUMIF(Calculations!$I$15:$I$1318,$J43,Calculations!AL$15:AL$1318) -> 0 | AJ43: =SUMIF(Calculations!$I$15:$I$1318,$J43,Calculations!AM$15:AM$1318) -> 0
I44: Miscellaneous costs | J44: =$J$3&I44 -> 1Miscellaneous costs | L44: =SUM(O44:AJ44) -> 0 | O44: =SUMIF(Calculations!$I$15:$I$1318,$J44,Calculations!R$15:R$1318) -> 0 | P44: =SUMIF(Calculations!$I$15:$I$1318,$J44,Calculations!S$15:S$1318) -> 0 | Q44: =SUMIF(Calculations!$I$15:$I$1318,$J44,Calculations!T$15:T$1318) -> 0 | R44: =SUMIF(Calculations!$I$15:$I$1318,$J44,Calculations!U$15:U$1318) -> 0 | S44: =SUMIF(Calculations!$I$15:$I$1318,$J44,Calculations!V$15:V$1318) -> 0 | T44: =SUMIF(Calculations!$I$15:$I$1318,$J44,Calculations!W$15:W$1318) -> 0 | U44: =SUMIF(Calculations!$I$15:$I$1318,$J44,Calculations!X$15:X$1318) -> 0 | V44: =SUMIF(Calculations!$I$15:$I$1318,$J44,Calculations!Y$15:Y$1318) -> 0 | W44: =SUMIF(Calculations!$I$15:$I$1318,$J44,Calculations!Z$15:Z$1318) -> 0 | X44: =SUMIF(Calculations!$I$15:$I$1318,$J44,Calculations!AA$15:AA$1318) -> 0 | Y44: =SUMIF(Calculations!$I$15:$I$1318,$J44,Calculations!AB$15:AB$1318) -> 0 | Z44: =SUMIF(Calculations!$I$15:$I$1318,$J44,Calculations!AC$15:AC$1318) -> 0 | AA44: =SUMIF(Calculations!$I$15:$I$1318,$J44,Calculations!AD$15:AD$1318) -> 0 | AB44: =SUMIF(Calculations!$I$15:$I$1318,$J44,Calculations!AE$15:AE$1318) -> 0 | AC44: =SUMIF(Calculations!$I$15:$I$1318,$J44,Calculations!AF$15:AF$1318) -> 0 | AD44: =SUMIF(Calculations!$I$15:$I$1318,$J44,Calculations!AG$15:AG$1318) -> 0 | AE44: =SUMIF(Calculations!$I$15:$I$1318,$J44,Calculations!AH$15:AH$1318) -> 0 | AF44: =SUMIF(Calculations!$I$15:$I$1318,$J44,Calculations!AI$15:AI$1318) -> 0 | AG44: =SUMIF(Calculations!$I$15:$I$1318,$J44,Calculations!AJ$15:AJ$1318) -> 0 | AH44: =SUMIF(Calculations!$I$15:$I$1318,$J44,Calculations!AK$15:AK$1318) -> 0 | AI44: =SUMIF(Calculations!$I$15:$I$1318,$J44,Calculations!AL$15:AL$1318) -> 0 | AJ44: =SUMIF(Calculations!$I$15:$I$1318,$J44,Calculations!AM$15:AM$1318) -> 0
I45: Depreciation Expense | J45: =$J$3&I45 -> 1Depreciation Expense | L45: =SUM(O45:AJ45) -> 262527.4858 | O45: =SUMIF(Calculations!$I$15:$I$1318,$J45,Calculations!R$15:R$1318) -> 0 | P45: =SUMIF(Calculations!$I$15:$I$1318,$J45,Calculations!S$15:S$1318) -> 0 | Q45: =SUMIF(Calculations!$I$15:$I$1318,$J45,Calculations!T$15:T$1318) -> 0 | R45: =SUMIF(Calculations!$I$15:$I$1318,$J45,Calculations!U$15:U$1318) -> 0 | S45: =SUMIF(Calculations!$I$15:$I$1318,$J45,Calculations!V$15:V$1318) -> 0 | T45: =SUMIF(Calculations!$I$15:$I$1318,$J45,Calculations!W$15:W$1318) -> 0 | U45: =SUMIF(Calculations!$I$15:$I$1318,$J45,Calculations!X$15:X$1318) -> 0 | V45: =SUMIF(Calculations!$I$15:$I$1318,$J45,Calculations!Y$15:Y$1318) -> 0 | W45: =SUMIF(Calculations!$I$15:$I$1318,$J45,Calculations!Z$15:Z$1318) -> 0 | X45: =SUMIF(Calculations!$I$15:$I$1318,$J45,Calculations!AA$15:AA$1318) -> 0 | Y45: =SUMIF(Calculations!$I$15:$I$1318,$J45,Calculations!AB$15:AB$1318) -> 0 | Z45: =SUMIF(Calculations!$I$15:$I$1318,$J45,Calculations!AC$15:AC$1318) -> 0 | AA45: =SUMIF(Calculations!$I$15:$I$1318,$J45,Calculations!AD$15:AD$1318) -> 0 | AB45: =SUMIF(Calculations!$I$15:$I$1318,$J45,Calculations!AE$15:AE$1318) -> 262527.4858 | AC45: =SUMIF(Calculations!$I$15:$I$1318,$J45,Calculations!AF$15:AF$1318) -> 0 | AD45: =SUMIF(Calculations!$I$15:$I$1318,$J45,Calculations!AG$15:AG$1318) -> 0 | AE45: =SUMIF(Calculations!$I$15:$I$1318,$J45,Calculations!AH$15:AH$1318) -> 0 | AF45: =SUMIF(Calculations!$I$15:$I$1318,$J45,Calculations!AI$15:AI$1318) -> 0 | AG45: =SUMIF(Calculations!$I$15:$I$1318,$J45,Calculations!AJ$15:AJ$1318) -> 0 | AH45: =SUMIF(Calculations!$I$15:$I$1318,$J45,Calculations!AK$15:AK$1318) -> 0 | AI45: =SUMIF(Calculations!$I$15:$I$1318,$J45,Calculations!AL$15:AL$1318) -> 0 | AJ45: =SUMIF(Calculations!$I$15:$I$1318,$J45,Calculations!AM$15:AM$1318) -> 0
I46: Inventory Movement | J46: =$J$3&I46 -> 1Inventory Movement | L46: =SUM(O46:AJ46) -> 9.313225746e-10 | O46: =SUMIF(Calculations!$I$15:$I$1318,$J46,Calculations!R$15:R$1318) -> 0 | P46: =SUMIF(Calculations!$I$15:$I$1318,$J46,Calculations!S$15:S$1318) -> 0 | Q46: =SUMIF(Calculations!$I$15:$I$1318,$J46,Calculations!T$15:T$1318) -> -140021.5579 | R46: =SUMIF(Calculations!$I$15:$I$1318,$J46,Calculations!U$15:U$1318) -> -195223.2864 | S46: =SUMIF(Calculations!$I$15:$I$1318,$J46,Calculations!V$15:V$1318) -> -635328.9059 | T46: =SUMIF(Calculations!$I$15:$I$1318,$J46,Calculations!W$15:W$1318) -> -386399.7928 | U46: =SUMIF(Calculations!$I$15:$I$1318,$J46,Calculations!X$15:X$1318) -> -764904.0037 | V46: =SUMIF(Calculations!$I$15:$I$1318,$J46,Calculations!Y$15:Y$1318) -> -221310.7754 | W46: =SUMIF(Calculations!$I$15:$I$1318,$J46,Calculations!Z$15:Z$1318) -> -165112.5669 | X46: =SUMIF(Calculations!$I$15:$I$1318,$J46,Calculations!AA$15:AA$1318) -> -15194.39658 | Y46: =SUMIF(Calculations!$I$15:$I$1318,$J46,Calculations!AB$15:AB$1318) -> -50860.60696 | Z46: =SUMIF(Calculations!$I$15:$I$1318,$J46,Calculations!AC$15:AC$1318) -> -55613.2006 | AA46: =SUMIF(Calculations!$I$15:$I$1318,$J46,Calculations!AD$15:AD$1318) -> 67865.3599 | AB46: =SUMIF(Calculations!$I$15:$I$1318,$J46,Calculations!AE$15:AE$1318) -> 209642.2039 | AC46: =SUMIF(Calculations!$I$15:$I$1318,$J46,Calculations!AF$15:AF$1318) -> 679490.5967 | AD46: =SUMIF(Calculations!$I$15:$I$1318,$J46,Calculations!AG$15:AG$1318) -> 690475.0965 | AE46: =SUMIF(Calculations!$I$15:$I$1318,$J46,Calculations!AH$15:AH$1318) -> 311562.1914 | AF46: =SUMIF(Calculations!$I$15:$I$1318,$J46,Calculations!AI$15:AI$1318) -> 323340.7988 | AG46: =SUMIF(Calculations!$I$15:$I$1318,$J46,Calculations!AJ$15:AJ$1318) -> 347592.846 | AH46: =SUMIF(Calculations!$I$15:$I$1318,$J46,Calculations!AK$15:AK$1318) -> 0 | AI46: =SUMIF(Calculations!$I$15:$I$1318,$J46,Calculations!AL$15:AL$1318) -> 0 | AJ46: =SUMIF(Calculations!$I$15:$I$1318,$J46,Calculations!AM$15:AM$1318) -> 0
I47: Non-Milk Expenses | L47: =SUM(L22:L24,L39,L42:L46) -> 2754108.802 | O47: =SUM(O22:O24,O39,O42:O46) -> 0 | P47: 0 | Q47: -62739.46942 | R47: -87397.21573 | S47: -472179.3138 | T47: -143944.5935 | U47: -499955.7491 | V47: 53980.78848 | W47: 103347.4442 | X47: 226954.7875 | Y47: 152226.8555 | Z47: 159880.4448 | AA47: 265751.5457 | AB47: 628344.798 | AC47: 706161.3014 | AD47: 717145.8012 | AE47: 319574.0384 | AF47: 331352.6458 | AG47: 355604.693 | AH47: 0 | AI47: 0 | AJ47: 0
I49: Cost of Milk | J49: =$J$3&I49 -> 1Cost of Milk | L49: =SUM(O49:AJ49) -> 7096457.681 | O49: =SUMIF(Calculations!$I$15:$I$1318,$J49,Calculations!R$15:R$1318) -> 0 | P49: =SUMIF(Calculations!$I$15:$I$1318,$J49,Calculations!S$15:S$1318) -> 0 | Q49: =SUMIF(Calculations!$I$15:$I$1318,$J49,Calculations!T$15:T$1318) -> 40758.13291 | R49: =SUMIF(Calculations!$I$15:$I$1318,$J49,Calculations!U$15:U$1318) -> 65046.42447 | S49: =SUMIF(Calculations!$I$15:$I$1318,$J49,Calculations!V$15:V$1318) -> 454121.4346 | T49: =SUMIF(Calculations!$I$15:$I$1318,$J49,Calculations!W$15:W$1318) -> 856711.3471 | U49: =SUMIF(Calculations!$I$15:$I$1318,$J49,Calculations!X$15:X$1318) -> 1020874.822 | V49: =SUMIF(Calculations!$I$15:$I$1318,$J49,Calculations!Y$15:Y$1318) -> 950965.3306 | W49: =SUMIF(Calculations!$I$15:$I$1318,$J49,Calculations!Z$15:Z$1318) -> 884493.2683 | X49: =SUMIF(Calculations!$I$15:$I$1318,$J49,Calculations!AA$15:AA$1318) -> 783619.6479 | Y49: =SUMIF(Calculations!$I$15:$I$1318,$J49,Calculations!AB$15:AB$1318) -> 620188.529 | Z49: =SUMIF(Calculations!$I$15:$I$1318,$J49,Calculations!AC$15:AC$1318) -> 615261.783 | AA49: =SUMIF(Calculations!$I$15:$I$1318,$J49,Calculations!AD$15:AD$1318) -> 511735.4034 | AB49: =SUMIF(Calculations!$I$15:$I$1318,$J49,Calculations!AE$15:AE$1318) -> 292681.5573 | AC49: =SUMIF(Calculations!$I$15:$I$1318,$J49,Calculations!AF$15:AF$1318) -> 0 | AD49: =SUMIF(Calculations!$I$15:$I$1318,$J49,Calculations!AG$15:AG$1318) -> 0 | AE49: =SUMIF(Calculations!$I$15:$I$1318,$J49,Calculations!AH$15:AH$1318) -> 0 | AF49: =SUMIF(Calculations!$I$15:$I$1318,$J49,Calculations!AI$15:AI$1318) -> 0 | AG49: =SUMIF(Calculations!$I$15:$I$1318,$J49,Calculations!AJ$15:AJ$1318) -> 0 | AH49: =SUMIF(Calculations!$I$15:$I$1318,$J49,Calculations!AK$15:AK$1318) -> 0 | AI49: =SUMIF(Calculations!$I$15:$I$1318,$J49,Calculations!AL$15:AL$1318) -> 0 | AJ49: =SUMIF(Calculations!$I$15:$I$1318,$J49,Calculations!AM$15:AM$1318) -> 0
I51: EBIT | J51: =$J$3&I51 -> 1EBIT | L51: =L19-L47-L49 -> 689574.3484 | O51: =O19-O47-O49 -> 0 | P51: 0 | Q51: 21981.33651 | R51: 22350.79126 | S51: 18057.87917 | T51: -29881.00414 | U51: 161966.6764 | V51: 189154.515 | W51: 206259.9216 | X51: 183526.1986 | Y51: 68225.72055 | Z51: 65498.87729 | AA51: 63154.15598 | AB51: -184152.6631 | AC51: 30712.39079 | AD51: 19727.89098 | AE51: -33066.35883 | AF51: -44844.96615 | AG51: -69097.01344 | AH51: 0 | AI51: 0 | AJ51: 0
I53: Tax Expense | J53: =$J$3&I53 -> 1Tax Expense | L53: =SUM(O53:AJ53) -> 176243.6005 | O53: =SUMIF(Calculations!$I$15:$I$1318,$J53,Calculations!R$15:R$1318) -> 0 | P53: =SUMIF(Calculations!$I$15:$I$1318,$J53,Calculations!S$15:S$1318) -> 0 | Q53: =SUMIF(Calculations!$I$15:$I$1318,$J53,Calculations!T$15:T$1318) -> 14686.96671 | R53: =SUMIF(Calculations!$I$15:$I$1318,$J53,Calculations!U$15:U$1318) -> 14686.96671 | S53: =SUMIF(Calculations!$I$15:$I$1318,$J53,Calculations!V$15:V$1318) -> 14686.96671 | T53: =SUMIF(Calculations!$I$15:$I$1318,$J53,Calculations!W$15:W$1318) -> 14686.96671 | U53: =SUMIF(Calculations!$I$15:$I$1318,$J53,Calculations!X$15:X$1318) -> 14686.96671 | V53: =SUMIF(Calculations!$I$15:$I$1318,$J53,Calculations!Y$15:Y$1318) -> 14686.96671 | W53: =SUMIF(Calculations!$I$15:$I$1318,$J53,Calculations!Z$15:Z$1318) -> 14686.96671 | X53: =SUMIF(Calculations!$I$15:$I$1318,$J53,Calculations!AA$15:AA$1318) -> 14686.96671 | Y53: =SUMIF(Calculations!$I$15:$I$1318,$J53,Calculations!AB$15:AB$1318) -> 14686.96671 | Z53: =SUMIF(Calculations!$I$15:$I$1318,$J53,Calculations!AC$15:AC$1318) -> 14686.96671 | AA53: =SUMIF(Calculations!$I$15:$I$1318,$J53,Calculations!AD$15:AD$1318) -> 14686.96671 | AB53: =SUMIF(Calculations!$I$15:$I$1318,$J53,Calculations!AE$15:AE$1318) -> 14686.96671 | AC53: =SUMIF(Calculations!$I$15:$I$1318,$J53,Calculations!AF$15:AF$1318) -> 0 | AD53: =SUMIF(Calculations!$I$15:$I$1318,$J53,Calculations!AG$15:AG$1318) -> 0 | AE53: =SUMIF(Calculations!$I$15:$I$1318,$J53,Calculations!AH$15:AH$1318) -> 0 | AF53: =SUMIF(Calculations!$I$15:$I$1318,$J53,Calculations!AI$15:AI$1318) -> 0 | AG53: =SUMIF(Calculations!$I$15:$I$1318,$J53,Calculations!AJ$15:AJ$1318) -> 0 | AH53: =SUMIF(Calculations!$I$15:$I$1318,$J53,Calculations!AK$15:AK$1318) -> 0 | AI53: =SUMIF(Calculations!$I$15:$I$1318,$J53,Calculations!AL$15:AL$1318) -> 0 | AJ53: =SUMIF(Calculations!$I$15:$I$1318,$J53,Calculations!AM$15:AM$1318) -> 0
I55: NOPLAT | L55: =L51-L53 -> 513330.748 | O55: =O51-O53 -> 0 | P55: =P51-P53 -> 0 | Q55: =Q51-Q53 -> 7294.369806 | R55: 7663.824554 | S55: 3370.912465 | T55: -44567.97084 | U55: 147279.7097 | V55: 174467.5483 | W55: 191572.9549 | X55: 168839.2319 | Y55: 53538.75385 | Z55: 50811.91059 | AA55: 48467.18928 | AB55: -198839.6298 | AC55: 30712.39079 | AD55: 19727.89098 | AE55: -33066.35883 | AF55: -44844.96615 | AG55: -69097.01344 | AH55: 0 | AI55: 0 | AJ55: 0
I57: Capital Charge | J57: =$J$3&I57 -> 1Capital Charge | L57: =L67 -> 513330.7479 | O57: =O67 -> 0 | P57: =P67 -> 0 | Q57: =Q67 -> 144.538976 | R57: 613.5181527 | S57: 1514.220095 | T57: 2862.020601 | U57: 6614.059895 | V57: 9530.340663 | W57: 12972.21762 | X57: 13397.08497 | Y57: 13763.60994 | Z57: 13524.42408 | AA57: 13227.12293 | AB57: 406417.9634 | AC57: 12773.16977 | AD57: 10934.06822 | AE57: 7370.692883 | AF57: 4295.803447 | AG57: 2740.296212 | AH57: 1331.591709 | AI57: -1.45036549e-05 | AJ57: -1.726984723e-05
I59: Capital Base
I61: Capital Charge Rate | J61: =$J$3&I61 -> 1Capital Charge Rate | O61: =Global!$O$39 -> 0.004946515449 | P61: =Global!$O$39 -> 0.004946515449 | Q61: =Global!$O$39 -> 0.004946515449 | R61: =Q61 -> 0.004946515449 | S61: 0.004946515449 | T61: 0.004946515449 | U61: 0.004946515449 | V61: 0.004946515449 | W61: 0.004946515449 | X61: 0.004946515449 | Y61: 0.004946515449 | Z61: 0.004946515449 | AA61: 0.004946515449 | AB61: 0.004946515449 | AC61: 0.004946515449 | AD61: 0.004946515449 | AE61: 0.004946515449 | AF61: 0.004946515449 | AG61: 0.004946515449 | AH61: 0.004946515449 | AI61: 0.004946515449 | AJ61: 0.004946515449
I62: Capital Charge on Fixed Assets | L62: =Calculations!N1192 -> 393067.8407 | O62: =Calculations!R1192 -> 0 | P62: =Calculations!S1192 -> 0 | Q62: =Calculations!T1192 -> 0 | R62: =Calculations!U1192 -> 0 | S62: =Calculations!V1192 -> 0 | T62: =Calculations!W1192 -> 0 | U62: =Calculations!X1192 -> 0 | V62: =Calculations!Y1192 -> 0 | W62: =Calculations!Z1192 -> 0 | X62: =Calculations!AA1192 -> 0 | Y62: =Calculations!AB1192 -> 0 | Z62: =Calculations!AC1192 -> 0 | AA62: =Calculations!AD1192 -> 0 | AB62: =Calculations!AE1192 -> 393067.8407 | AC62: =Calculations!AF1192 -> 0 | AD62: =Calculations!AG1192 -> 0
I64: 12 Month Average | L64: =SUM(O64:AJ64)/12 -> 2374717.184 | O64: =Calculations!R1204 -> 0 | P64: =Calculations!S1204 -> 0 | Q64: =Calculations!T1204 -> 29220.36279 | R64: =Calculations!U1204 -> 124030.3723 | S64: =Calculations!V1204 -> 306118.5416 | T64: =Calculations!W1204 -> 578593.2806 | U64: =Calculations!X1204 -> 1337114.978 | V64: =Calculations!Y1204 -> 1926677.63 | W64: =Calculations!Z1204 -> 2622496.129 | X64: =Calculations!AA1204 -> 2708388.382 | Y64: =Calculations!AB1204 -> 2782485.99 | Z64: =Calculations!AC1204 -> 2734131.576 | AA64: =Calculations!AD1204 -> 2674028.429 | AB64: =Calculations!AE1204 -> 2698894.369 | AC64: =Calculations!AF1204 -> 2582256.117 | AD64: =Calculations!AG1204 -> 2210458.722 | AE64: =Calculations!AH1204 -> 1490077.805 | AF64: =Calculations!AI1204 -> 868450.4261 | AG64: =Calculations!AJ1204 -> 553985.1725 | AH64: =Calculations!AK1204 -> 269197.9282 | AI64: =Calculations!AL1204 -> -0.002463842488 | AJ64: =Calculations!AM1204 -> -0.00293209534
I65: Capital Charge on Net Working Capital | L65: =SUM(O65:AJ65) -> 140958.9028 | O65: =O61*O64 -> 0 | P65: =P61*P64 -> 0 | Q65: =Q61*Q64 -> 144.538976 | R65: 613.5181527 | S65: 1514.220095 | T65: 2862.020601 | U65: 6614.059895 | V65: 9530.340663 | W65: 12972.21762 | X65: 13397.08497 | Y65: 13763.60994 | Z65: 13524.42408 | AA65: 13227.12293 | AB65: 13350.12269 | AC65: 12773.16977 | AD65: 10934.06822 | AE65: 7370.692884 | AF65: 4295.803449 | AG65: 2740.296214 | AH65: 1331.591711 | AI65: -1.218743493e-05 | AJ65: -1.45036549e-05
I66: Time Value of Money Adjustment | L66: =L55-L62-L65 -> -20695.99556
I67: Total Capital Charge | L67: =L65+L62+L66 -> 513330.748 | O67: =O65+O62 -> 0 | P67: =P65+P62 -> 0 | Q67: =Q65+Q62 -> 144.538976 | R67: 613.5181527 | S67: 1514.220095 | T67: 2862.020601 | U67: 6614.059895 | V67: 9530.340663 | W67: 12972.21762 | X67: 13397.08497 | Y67: 13763.60994 | Z67: 13524.42408 | AA67: 13227.12293 | AB67: 406417.9634 | AC67: 12773.16977 | AD67: 10934.06822 | AE67: 7370.692884 | AF67: 4295.803449 | AG67: 2740.296214 | AH67: 1331.591711 | AI67: -1.218743493e-05 | AJ67: -1.45036549e-05
I69: Per KGMS
I70: Revenue
I71: Sales | J71: =$J$3&I71 -> 1Sales | L71: =L17/L$11 -> 6.52965864
I72: Downgrade expense (excl rework) | J72: =$J$3&I72 -> 1Downgrade expense (excl rework) | L72: =L18/L$11 -> 0
I73: Net Sales | L73: =SUM(L71:L72) -> 6.52965864
I75: Non-Milk Costs
I76: Commission | J76: =$J$3&I76 -> 1Commission | L76: =L22/L$11 -> 0.07776270855
I77: Collection Costs | J77: =$J$3&I77 -> 1Collection Costs | L77: =L23/L$11 -> 0.2274710146
I78: Lactose | L78: =L24/L$11 -> 0.3733929491
I79: Operating Costs
I80: Packaging | J80: =$J$3&I80 -> 1Packaging | L80: =L26/L$11 -> 0.3182547264
I81: Energy - Variable | J81: 1Energy - Variable | L81: 0
I82: Water | J82: 1Water | L82: 0
I83: Cleaning & CIP | J83: 1Cleaning & CIP | L83: 0
I84: Consumables | J84: 1Consumables | L84: 0
I85: Effluent | J85: 1Effluent | L85: 0
I86: Laboratory | J86: 1Laboratory | L86: 0
I87: Variable operating costs | L87: 0.3182547264
I88: Wages & ERE | J88: =$J$3&I88 -> 1Wages & ERE | L88: 0
I89: Repairs & Maintenance | J89: =$J$3&I89 -> 1Repairs & Maintenance | L89: 0
I90: Energy - Fixed | J90: =$J$3&I90 -> 1Energy - Fixed | L90: 0
I91: Site Overheads | J91: =$J$3&I91 -> 1Site Overheads | L91: =L37/L$11 -> 0.2397738673
I92: Fixed operating costs | L92: 0.2397738673
I93: Operating Costs | J93: =$J$3&I93 -> 1Operating Costs | L93: 0.5580285937
I94: Variable supply chain costs | J94: 1Variable supply chain costs | L94: 0.1454182343
I95: Fixed supply chain costs | J95: 1Fixed supply chain costs | L95: 0
I96: Supply Chain | J96: 1Supply Chain | L96: 0.1454182343
I97: Administration | J97: 1Administration | L97: 0.1614709105
I98: Miscellaneous costs | J98: 1Miscellaneous costs | L98: 0
I99: Depreciation Expense | J99: 1Depreciation Expense | L99: 0.1626368085
I100: Capital Charge | J100: 1Capital Charge | L100: =L111 -> 0.3180104143
I101: Tax Expense | J101: 1Tax Expense | L101: =L53/L$11 -> 0.1091836026
I102: Total Expenses | L102: =SUM(L76:L78,L93,L96:L101) -> 2.133375236
I104: Milk Price | L104: =Calculations!$N$1249 -> 4.396283403
L105: =L104-(L73-L102) -> -1.032409713e-10
I107: Capital Base
I108: Capital Charge on Fixed Assets | L108: =L62/L$11 -> 0.243507071
I109: Capital Charge on Net Working Capital | L109: =L65/L$11 -> 0.08732459388
I110: Time Value of Money Adjustment | L110: =L66/L$11 -> -0.01282125053
I111: Total Capital Charge | L111: =L109+L108+L110 -> 0.3180104144
I113: Cash Flows
I115: Cash From Sales | L115: =SUM(O115:AJ115) -> 10540140.83 | O115: =Calculations!R909 -> 0 | P115: =Calculations!S909 -> 0 | Q115: =Calculations!T909 -> 0 | R115: =Calculations!U909 -> 0 | S115: =Calculations!V909 -> 0 | T115: =Calculations!W909 -> 19869.85759 | U115: =Calculations!X909 -> 704273.3589 | V115: =Calculations!Y909 -> 676372.9078 | W115: =Calculations!Z909 -> 1231499.215 | X115: =Calculations!AA909 -> 1194100.634 | Y115: =Calculations!AB909 -> 1078542.508 | Z115: =Calculations!AC909 -> 934844.4951 | AA115: =Calculations!AD909 -> 814312.684 | AB115: =Calculations!AE909 -> 860700.2775 | AC115: =Calculations!AF909 -> 713795.2098 | AD115: =Calculations!AG909 -> 759952.1745 | AE115: =Calculations!AH909 -> 709664.2198 | AF115: =Calculations!AI909 -> 277534.4153 | AG115: =Calculations!AJ909 -> 295480.9439 | AH115: =Calculations!AK909 -> 269197.9303 | AI115: =Calculations!AL909 -> 0 | AJ115: =Calculations!AM909 -> 0
I117: Trade Creditors | L117: =SUM(O117:AJ117) -> -2491581.317 | O117: =Calculations!R1256 -> 0 | P117: =Calculations!S1256 -> -29220.36279 | Q117: =Calculations!T1256 -> -87515.6397 | R117: =Calculations!U1256 -> -128069.1292 | S117: =Calculations!V1256 -> -195124.9466 | T117: =Calculations!W1256 -> -247728.3104 | U117: =Calculations!X1256 -> -272090.5751 | V117: =Calculations!Y1256 -> -269434.2066 | W117: =Calculations!Z1256 -> -258832.793 | X117: =Calculations!AA1256 -> -235818.1971 | Y117: =Calculations!AB1256 -> -199665.1002 | Z117: =Calculations!AC1256 -> -211464.5915 | AA117: =Calculations!AD1256 -> -180210.3917 | AB117: =Calculations!AE1256 -> -109114.3175 | AC117: =Calculations!AF1256 -> -26345.40805 | AD117: =Calculations!AG1256 -> -19843.36726 | AE117: =Calculations!AH1256 -> -8109.565706 | AF117: =Calculations!AI1256 -> -7914.128294 | AG117: =Calculations!AJ1256 -> -5080.285821 | AH117: =Calculations!AK1256 -> 0 | AI117: =Calculations!AL1256 -> 0 | AJ117: =Calculations!AM1256 -> 0
I118: Suppliers | L118: =SUM(O118:AJ118) -> -7096457.681 | O118: =Calculations!R1257 -> 0 | P118: =Calculations!S1257 -> 0 | Q118: =Calculations!T1257 -> 0 | R118: =Calculations!U1257 -> -46355.2155 | S118: =Calculations!V1257 -> -73978.88 | T118: =Calculations!W1257 -> -516483.3485 | U118: =Calculations!X1257 -> -874465.7265 | V118: =Calculations!Y1257 -> -928289.6517 | W118: =Calculations!Z1257 -> -866985.7197 | X118: =Calculations!AA1257 -> -804792.9469 | Y118: =Calculations!AB1257 -> -776984.24 | Z118: =Calculations!AC1257 -> -612464.846 | AA118: =Calculations!AD1257 -> -610501.043 | AB118: =Calculations!AE1257 -> -512511.9851 | AC118: =Calculations!AF1257 -> -284940.0165 | AD118: =Calculations!AG1257 -> 0 | AE118: =Calculations!AH1257 -> -112993.634 | AF118: =Calculations!AI1257 -> 0.0001338338042 | AG118: =Calculations!AJ1257 -> -74710.42764 | AH118: =Calculations!AK1257 -> 0 | AI118: =Calculations!AL1257 -> 0 | AJ118: =Calculations!AM1257 -> 0
I119: Tax | L119: =SUM(O119:AJ119) -> -176243.6004 | O119: =Calculations!R1258 -> 0 | P119: =Calculations!S1258 -> 0 | Q119: =Calculations!T1258 -> 0 | R119: =Calculations!U1258 -> 0 | S119: =Calculations!V1258 -> 0 | T119: =Calculations!W1258 -> -58747.86681 | U119: =Calculations!X1258 -> 0 | V119: =Calculations!Y1258 -> 0 | W119: =Calculations!Z1258 -> 0 | X119: =Calculations!AA1258 -> -58747.86681 | Y119: =Calculations!AB1258 -> 0 | Z119: =Calculations!AC1258 -> 0 | AA119: =Calculations!AD1258 -> 0 | AB119: =Calculations!AE1258 -> -58747.86681 | AC119: =Calculations!AF1258 -> 0 | AD119: =Calculations!AG1258 -> 0 | AE119: =Calculations!AH1258 -> 0 | AF119: =Calculations!AI1258 -> 0 | AG119: =Calculations!AJ1258 -> 0 | AH119: =Calculations!AK1258 -> 0 | AI119: =Calculations!AL1258 -> 0 | AJ119: =Calculations!AM1258 -> 0
I121: Operating Cash Flow | L121: =SUM(O121:AJ121) -> 775858.2338 | O121: =SUM(O115,O117:O119) -> 0 | P121: =SUM(P115,P117:P119) -> -29220.36279 | Q121: =SUM(Q115,Q117:Q119) -> -87515.6397 | R121: -174424.3447 | S121: -269103.8266 | T121: -803089.6681 | U121: -442282.9428 | V121: -521350.9505 | W121: 105680.7023 | X121: 94741.62328 | Y121: 101893.168 | Z121: 110915.0575 | AA121: 23601.24924 | AB121: 180326.1081 | AC121: 402509.7853 | AD121: 740108.8073 | AE121: 588561.0202 | AF121: 269620.2871 | AG121: 215690.2305 | AH121: 269197.9303 | AI121: 0 | AJ121: 0
I123: WACC | L123: =Global!O38 -> 0.061 | O123: =O61 -> 0.004946515449 | P123: =P61 -> 0.004946515449 | Q123: =Q61 -> 0.004946515449 | R123: 0.004946515449 | S123: 0.004946515449 | T123: 0.004946515449 | U123: 0.004946515449 | V123: 0.004946515449 | W123: 0.004946515449 | X123: 0.004946515449 | Y123: 0.004946515449 | Z123: 0.004946515449 | AA123: 0.004946515449 | AB123: 0.004946515449 | AC123: 0.004946515449 | AD123: 0.004946515449 | AE123: 0.004946515449 | AF123: 0.004946515449 | AG123: 0.004946515449 | AH123: 0.004946515449 | AI123: 0.004946515449 | AJ123: 0.004946515449
I125: Discount Factor | O125: =P125*(1+O123) -> 1.004946515 | P125: =Q125*(1+P123) -> 1 | Q125: =1/(1+Q123) -> 0.9950778321 | R125: =Q125/(1+R123) -> 0.990179892 | S125: =R125/(1+S123) -> 0.9853060603 | T125: 0.9804562185 | U125: 0.9756302484 | V125: 0.9708280326 | W125: 0.966049454 | X125: 0.9612943964 | Y125: 0.956562744 | Z125: 0.9518543816 | AA125: 0.9471691946 | AB125: 0.9425070688 | AC125: 0.9378678908 | AD125: 0.9332515476 | AE125: 0.9286579268 | AF125: 0.9240869166 | AG125: 0.9195384057 | AH125: 0.9150122833 | AI125: 0.9105084392 | AJ125: 0.9060267638
I126: Discounted Cash Flows | L126: =SUM(O126:AJ126) -> 617903.2293 | O126: =O125*O121 -> 0 | P126: =P125*P121 -> -29220.36279 | Q126: =Q125*Q121 -> -87084.87303 | R126: =R125*R121 -> -172711.4788 | S126: =S125*S121 -> -265149.6312 | T126: -787394.2592 | U126: -431504.6174 | V126: -506142.1176 | W126: 102092.7848 | X126: 91074.59157 | Y126: 97467.20839 | Z126: 105574.9835 | AA126: 22354.37623 | AB126: 169958.6316 | AC126: 377501.0034 | AD126: 690707.6898 | AE126: 546571.8568 | AF126: 249152.5798 | AG126: 198335.4507 | AH126: 246319.4128 | AI126: 0 | AJ126: 0
I128: Present Value of required return
I129: Capital charge on fixed assets (discounted) | L129: =SUMPRODUCT(Q$125:AD$125,Q62:AD62) -> 370469.2184
I130: Depreciation (discounted) | L130: =SUMPRODUCT(Q$125:AD$125,Q45:AD45) -> 247434.0111
I131: Net | L131: =SUM(L129:L130) -> 617903.2295
I133: Excess / (Deficit) Return | L133: =L126-L131 -> -0.0001918639755
I134: cents / kgms | L134: =L133/L12 -> -1.188656035e-10
I136: Check consistency of financials / cash flows
I137: NOPLAT | O137: =O55 -> 0 | P137: =P55 -> 0 | Q137: =Q55 -> 7294.369806 | R137: 7663.824554 | S137: 3370.912465 | T137: -44567.97084 | U137: 147279.7097 | V137: 174467.5483 | W137: 191572.9549 | X137: 168839.2319 | Y137: 53538.75385 | Z137: 50811.91059 | AA137: 48467.18928 | AB137: -198839.6298 | AC137: 30712.39079 | AD137: 19727.89098 | AE137: -33066.35883 | AF137: -44844.96615 | AG137: -69097.01344 | AH137: 0 | AI137: 0 | AJ137: 0
I138: + depreciation | O138: =O45 -> 0 | P138: =P45 -> 0 | Q138: =Q45 -> 0 | R138: 0 | S138: 0 | T138: 0 | U138: 0 | V138: 0 | W138: 0 | X138: 0 | Y138: 0 | Z138: 0 | AA138: 0 | AB138: 262527.4858 | AC138: 0 | AD138: 0 | AE138: 0 | AF138: 0 | AG138: 0 | AH138: 0 | AI138: 0 | AJ138: 0
I139: + change in working capital | O139: =-(P64-O64) -> 0 | P139: =-(Q64-P64) -> -29220.36279 | Q139: =-(R64-Q64) -> -94810.00951 | R139: -182088.1693 | S139: -272474.739 | T139: -758521.6973 | U139: -589562.6525 | V139: -695818.4988 | W139: -85892.25247 | X139: -74097.60857 | Y139: 48354.41424 | Z139: 60103.147 | AA139: -24865.93991 | AB139: 116638.2523 | AC139: 371797.3947 | AD139: 720380.9165 | AE139: 621627.3793 | AF139: 314465.2536 | AG139: 284787.2443 | AH139: 269197.9307 | AI139: 0.0004682528524 | AJ139: -0.00293209534
I140: Operating Cash Flow | O140: =SUM(O137:O139) -> 0 | P140: =SUM(P137:P139) -> -29220.36279 | Q140: =SUM(Q137:Q139) -> -87515.6397 | R140: -174424.3447 | S140: -269103.8266 | T140: -803089.6681 | U140: -442282.9428 | V140: -521350.9505 | W140: 105680.7024 | X140: 94741.62335 | Y140: 101893.1681 | Z140: 110915.0576 | AA140: 23601.24936 | AB140: 180326.1083 | AC140: 402509.7855 | AD140: 740108.8075 | AE140: 588561.0204 | AF140: 269620.2874 | AG140: 215690.2308 | AH140: 269197.9307 | AI140: 0.0004682528524 | AJ140: -0.00293209534
I141: check | L141: =IF(ROUND(SUM(O141:AJ141),3)=0,"Okay","Error") -> Okay | O141: =O121-O140 -> 0 | P141: =P121-P140 -> 0 | Q141: =Q121-Q140 -> 2.801069058e-06 | R141: =R121-R140 -> 4.203640856e-06 | S141: 2.479937393e-06 | T141: -1.211441122e-05 | U141: -2.184155164e-05 | V141: -3.278302029e-05 | W141: -4.519021604e-05 | X141: -6.806233432e-05 | Y141: -8.473602065e-05 | Z141: -0.0001044628298 | AA141: -0.0001269723143 | AB141: -0.0001608416787 | AC141: -0.0001926929108 | AD141: -0.0002289410913 | AE141: -0.0002722293139 | AF141: -0.0003491996322 | AG141: -0.0003288190637 | AH141: -0.000392242684 | AI141: -0.0004682528524 | AJ141: 0.00293209534

Sheet LookupTables (hidden)
E10: Year to date month | I10: Selected
E11: =Global!K32 -> 2014-06-30 | F11: YTD_Months | I11: 14
E12: =EOMONTH(E11,1) -> 2014-07-31 | I12: =CHOOSE(YTD_Months_No,$E$11,$E$12,$E$13,$E$14,$E$15,$E$16,$E$17,$E$18,$E$19,$E$20,$E$21,$E$22,$E$23,$E$24,$E$25,$E$26,$E$27,$E$28) -> 2015-07-31
E13: =EOMONTH(E12,1) -> 2014-08-31
E14: 2014-09-30
E15: 2014-10-31
E16: 2014-11-30
E17: 2014-12-31
E18: 2015-01-31
E19: 2015-02-28
E20: 2015-03-31
E21: 2015-04-30
E22: 2015-05-31
E23: 2015-06-30
E24: 2015-07-31
E25: 2015-08-31
E26: 2015-09-30
E27: 2015-10-31
E28: 2015-11-30

Sheet nav_inputs (hidden)
B5: Full | C5: References | F5: Caption
B6: Caption | C6: Worksheet | D6: Cell | E6: Level A | F6: Level B | G6: Level C
B7: Entities | C7: Global | D7: A1 | E7: Global
B8: =E8&IF(F8="","",IF(G8=""," / "&F8," / "&F8&" / "&G8)) -> Data Input / GLOBAL | C8: Data Input | D8: ="A"&MATCH(F8,'Data Input'!$F$13:$F$715,0)+15 -> A17 | E8: Data Input | F8: ='Data Input'!F14 -> GLOBAL
B9: Data Input / MILK SUPPLY | C9: Data Input | D9: ="A"&MATCH(F9,'Data Input'!$F$13:$F$715,0)+15 -> A27 | E9: Data Input | F9: ='Data Input'!F24 -> MILK SUPPLY
B10: Data Input / PRODUCTION | C10: Data Input | D10: ="A"&MATCH(F10,'Data Input'!$F$13:$F$715,0)+15 -> A39 | E10: Data Input | F10: ='Data Input'!F36 -> PRODUCTION
B11: Data Input / REVENUE / 1. Base Commodity Prices | C11: Data Input | D11: ="A"&MATCH(G11,'Data Input'!$E$13:$E$715,0)+15 -> A86 | E11: Data Input | F11: ='Data Input'!F77 -> REVENUE | G11: ='Data Input'!E83 -> 1. Base Commodity Prices
B12: =E12&IF(F12="","",IF(G12=""," / "&F12," / "&F12&" / "&G12)) -> Data Input / REVENUE / 2. Sales Phasing | C12: Data Input | D12: ="A"&MATCH(G12,'Data Input'!$E$13:$E$715,0)+15 -> A100 | E12: Data Input | F12: =F11 -> REVENUE | G12: ='Data Input'!E97 -> 2. Sales Phasing
B13: =E13&IF(F13="","",IF(G13=""," / "&F13," / "&F13&" / "&G13)) -> Data Input / COLLECTION | C13: Data Input | D13: ="A"&MATCH(F13,'Data Input'!$F$13:$F$715,0)+15 -> A135 | E13: Data Input | F13: ='Data Input'!F132 -> COLLECTION
B14: Data Input / OPEX | C14: Data Input | D14: ="A"&MATCH(F14,'Data Input'!$F$13:$F$715,0)+15 -> A146 | E14: Data Input | F14: ='Data Input'!F143 -> OPEX
B15: Data Input / SUPPLY CHAIN | C15: Data Input | D15: ="A"&MATCH(F15,'Data Input'!$F$13:$F$715,0)+15 -> A192 | E15: Data Input | F15: ='Data Input'!F189 -> SUPPLY CHAIN
B16: Data Input / ADMINISTRATION | C16: Data Input | D16: ="A"&MATCH(F16,'Data Input'!$F$13:$F$715,0)+15 -> A219 | E16: Data Input | F16: ='Data Input'!F216 -> ADMINISTRATION
B17: Data Input / FIXED ASSETS | C17: Data Input | D17: ="A"&MATCH(F17,'Data Input'!$F$13:$F$715,0)+15 -> A232 | E17: Data Input | F17: ='Data Input'!F229 -> FIXED ASSETS
B18: Data Input / INCOME TAX | C18: Data Input | D18: ="A"&MATCH(F18,'Data Input'!$F$13:$F$715,0)+15 -> A243 | E18: Data Input | F18: ='Data Input'!F240 -> INCOME TAX
B19: Data Input / WORKING CAPITAL | C19: Data Input | D19: ="A"&MATCH(F19,'Data Input'!$F$13:$F$715,0)+15 -> A253 | E19: Data Input | F19: ='Data Input'!F250 -> WORKING CAPITAL
B20: Data Input / WORKING CAPITAL | C20: Data Input | D20: ="A"&MATCH(F20,'Data Input'!$F$13:$F$715,0)+14 -> A252 | E20: Data Input | F20: ='Data Input'!F250 -> WORKING CAPITAL
B21: Calculations / PRODUCTION | C21: Calculations | D21: ="A"&MATCH(F21,Calculations!$D$11:$D$1318,0)+13 -> A17 | E21: =C21 -> Calculations | F21: =Calculations!D14 -> PRODUCTION
B22: Calculations / COMPONENT MILK PRICE | C22: Calculations | D22: ="A"&MATCH(F22,Calculations!$D$11:$D$1318,0)+13 -> A221 | E22: Calculations | F22: =Calculations!D218 -> COMPONENT MILK PRICE
B23: Calculations / SALES REVENUE | C23: Calculations | D23: ="A"&MATCH(F23,Calculations!$D$11:$D$1318,0)+13 -> A282 | E23: Calculations | F23: =Calculations!D279 -> SALES REVENUE
B24: Calculations / COST OF MILK | C24: Calculations | D24: ="A"&MATCH(F24,Calculations!$D$11:$D$1318,0)+13 -> A507 | E24: Calculations | F24: =Calculations!D504 -> COST OF MILK
B25: Calculations / COLLECTION COSTS | C25: Calculations | D25: ="A"&MATCH(F25,Calculations!$D$11:$D$1318,0)+13 -> A523 | E25: Calculations | F25: =Calculations!D520 -> COLLECTION COSTS
B26: Calculations / OPEX | C26: Calculations | D26: ="A"&MATCH(F26,Calculations!$D$11:$D$1318,0)+13 -> A544 | E26: Calculations | F26: =Calculations!D541 -> OPEX
B27: Calculations / SUPPLY CHAIN COSTS | C27: Calculations | D27: ="A"&MATCH(F27,Calculations!$D$11:$D$1318,0)+13 -> A741 | E27: Calculations | F27: =Calculations!D738 -> SUPPLY CHAIN COSTS
B28: Calculations / ADMINISTRATION COSTS | C28: Calculations | D28: ="A"&MATCH(F28,Calculations!$D$11:$D$1318,0)+13 -> A830 | E28: Calculations | F28: =Calculations!D827 -> ADMINISTRATION COSTS
B29: Calculations / CURRENT ASSET MOVEMENTS / Receivables | C29: Calculations | D29: ="A"&MATCH(G29,Calculations!$D$11:$D$1318,0)+13 -> A868 | E29: Calculations | F29: =Calculations!D863 -> CURRENT ASSET MOVEMENTS | G29: =Calculations!D865 -> Receivables
B30: Calculations / CURRENT ASSET MOVEMENTS / INVENTORY | C30: Calculations | D30: ="A"&MATCH(G30,Calculations!$D$11:$D$1318,0)+13 -> A916 | E30: Calculations | F30: =F29 -> CURRENT ASSET MOVEMENTS | G30: =Calculations!D913 -> INVENTORY
B31: Calculations / CURRENT LIABILITY MOVEMENTS / TRADE CREDITORS | C31: Calculations | D31: ="A"&MATCH(G31,Calculations!$D$11:$D$1318,0)+13 -> A1080 | E31: Calculations | F31: =Calculations!D1075 -> CURRENT LIABILITY MOVEMENTS | G31: =Calculations!D1077 -> TRADE CREDITORS
B32: Calculations / CURRENT LIABILITY MOVEMENTS / OWING TO SUPPLIERS | C32: Calculations | D32: ="A"&MATCH(G32,Calculations!$D$11:$D$1318,0)+13 -> A1138 | E32: Calculations | F32: =F31 -> CURRENT LIABILITY MOVEMENTS | G32: =Calculations!D1135 -> OWING TO SUPPLIERS
B33: Calculations / FIXED ASSETS | C33: Calculations | D33: ="A"&MATCH(F33,Calculations!$D$11:$D$1318,0)+13 -> A1169 | E33: Calculations | F33: =Calculations!D1166 -> FIXED ASSETS
B34: Calculations / CAPITAL CHARGE | C34: Calculations | D34: ="A"&MATCH(F34,Calculations!$D$11:$D$1318,0)+13 -> A1180 | E34: Calculations | F34: =Calculations!D1177 -> CAPITAL CHARGE
B35: Calculations / MILK PRICE CALCULATION | C35: Calculations | D35: ="A"&MATCH(F35,Calculations!$D$11:$D$1318,0)+13 -> A1211 | E35: Calculations | F35: =Calculations!D1208 -> MILK PRICE CALCULATION
B36: Calculations / TAX EXPENSE | C36: Calculations | D36: ="A"&MATCH(F36,Calculations!$D$11:$D$1318,0)+13 -> A1272 | E36: Calculations | F36: =Calculations!D1269 -> TAX EXPENSE
B37: Calculations / TAX PAYMENTS | C37: Calculations | D37: ="A"&MATCH(F37,Calculations!$D$11:$D$1318,0)+13 -> A1301 | E37: Calculations | F37: =Calculations!D1298 -> TAX PAYMENTS
B38: Summary | C38: Summary | D38: A1 | E38: Summary
B40: =E40&IF(F40="","",IF(G40=""," / "&F40," / "&F40&" / "&G40)) -> 
D67: Worksheet Names
D69: Global
D70: Data Input
D71: GDT
D72: Calculations
D73: Summary
D74: LookupTables
